Workbook

Sheet INICIO (hidden)

Sheet Instructivo (hidden)
B2: Matriz Mapa de Riesgos
B4: Teniendo en cuenta que con la expedición del Decreto 1499 de 2017 “Por medio del cual se modifica el Decreto 1083 de 2015, Decreto Único Reglamentario del Sector Función Pública, en lo relacionado con el Sistema de Gestión establecido en el artículo 133 de la Ley 1753 de 2015”, se crea un solo Sistema de Gestión y se alinea con el Sistema de Control Interno, hoy todas las entidades públicas requieren actualizar y/o implementar el Modelo Integrado de Planeación y Gestión MIPG, modelo que incorpora el Modelo Estándar de Control Interno MECI a través de la 7a dimensión del mismo. En este marco general, el proceso de administración del riesgo es un esfuerzo conjunto entre la Alta Dirección y los servidores en todos sus niveles, ejercicio que inicia con la formulación de la política de Administración del Riesgo, la cual incluye los niveles de responsabilidad frente al seguimiento y evaluación, aspectos que deberán definirse acorde con el Esquema de Líneas de Defensa vinculado a la Dimensión 7. Teniendo en cuenta lo anterior y dada la necesidad de las entidades frente a la estructuración de los mapas de riesgos, como herramienta fundamental frente a la gestión del riesgo, el presente formato desarrolla un esquema completo acorde con los contenidos metodológicos de la Guía para la Administración del Riesgo y el diseño de controles V5. El formato cuenta con celdas parametrizadas y permite contar con los respectivos mapas de calor para riesgo inherente y riesgo residual.
B6: Orientaciones Generales
B7: Antes de iniciar con el diligenciamiento de la información en la matriz, se requiere haber avanzado en el análisis del proceso, su objetivo, alcance, actividades clave, considere los lineamientos establecidos en el Paso 2: identificación del riesgo, donde se explica ampliamente las bases para adelanter este análisis. Así mismo, considere en el Paso 3: valoración del riesgo los lineamientos para definir el No. de veces que se hace la actividad con la cual se relaciona el riesgo y su impacto en términos económicos o reputacionales. En este mismo paso se analizan los controles que deben responder a los atributos de eficiencia e informativos. NOTA: Si lo considera pertinente, es posible agregar hojas de trabajo adicionales al presente formato que permitan incluir la traza de estos análisis.
B9: El archivo contiene las siguientes hojas: - Hoja 1 Instructivo - Hoja 2 Mapa Riesgos: Encontrará la totalidad de la estructura para la identificación y valoración de los riesgos por proceso, programa o proyecto, acorde con el nivel de desagregación que la entidad considere necesaria.
C12: Columna | E12: Descripción - Lineamientos para el diligenciamiento
C13: Proceso | E13: Diligencie el nombre del proceso al cual se le identificarán y valorarán los riesgos.
C14: Objetivo | E14: Diligencie el objetivo del proceso.
C15: Alcance | E15: Diligencie el alcance del proceso.
C16: Referencia | E16: Permite definir unl consecutivo de riesgos. Una entidad puede ir en el riesgo 150, pero tener 70 riesgos, lo que permite llevar una traza de los riesgos. Esta información la debe administrar la oficina asesora de planeación o gerencia de riesgos. Cuando un el riesgo salga del mapa no existirá otro riesgo con el mismo número.
C17: Impacto | E17: Analice las consecuencias que puede ocasionar a la organización la materialización del riesgo, redacte de la forma más concreta posible.
C18: Causa Inmediata | E18: Circunstancias bajo las cuales se presenta el riesgo, es la situación más evidente frente al riesgo, redacte de la forma más concreta posible.
C19: Causa Raíz | E19: Causa principal o básica, corresponde a las razones por la cuales se puede presentar el riesgo, redacte de la forma más concreta posible.
C20: Descripción del Riesgo | E20: Consolida o resume los análisis sobre impacto + causa inmediata + causa raíz, permitiendo contar con una redacción clara y concreta del riesgo indentificado. Tenga en cuenta la estructura de alto nivel establecida en al guía, inicia con POSIBILIDAD DE + Impacto para la entidad (Qué) + Causa Inmediata (Cómo) + Causa Raíz (Por qué)
C21: Clasificación del Riesgo | E21: Utilice la lista de despligue que se encuentra parametrizada, le aparecerán las opciones: i)Daños Activos Fisicos, ii)Ejecucion y Administracion de procesos, iii)Fallas Tecnologicas, iv)Fraude Externo, v)Fraude Interno, vi)Relaciones Laborales, vii)Usuarios, productos y practicas organizacionales.
C22: Frecuencia con la cual se lleva a cabo la actividad | E22: Defina el # de veces que se ejecuta la actividad durante el año, (Recuerde la probabilidad e ocurrencia del riesgo se defien como el No. de veces que se pasa por el punto de riesgo en el periodo de 1 año). La matriz automáticamente hará el cálculo para el nivel de probabilidad inherente (Columnas H-I)
C23: Criterios de Impacto | E23: Utilice la lista de despligue que se encuentra parametrizada, le aparecerán las opciones de la tabla de Impacto en la tabla Impacto del presente documento. La matriz automáticamente hará el cálculo para el nivel de impacto inherente (Columnas K)
C24: Zona de Riesgo Inherente | E24: Teniendo en cuenta que ingresó la información de PROBABILIDAD e IMPACTO, la matriz automáticamente hará el cálculo para la zona de riesgo inherente (Columna O)
C25: Descripción del Control | E25: Recuerde que el control se define como la medida que permite reducir o mitigar un riesgo. Defina el control (es) que atacan la causa raíz del riesgo, considere la estructura explicada en la guía: Responsable de ejecutar el control + Acción + Complemento
C26: Afectación | E26: Esta casilla no se diligencia, depende de la selección en la columna S.
C27: ATRIBUTOS EFICIENCIA Tipo | E27: Utilice la lista de despligue que se encuentra parametrizada, le aparecerán las opciones: i)Preventivo, ii)Detectivo, iii)Correctivo.
C28: ATRIBUTOS EFICIENCIA Implementación | E28: Utilice la lista de despligue que se encuentra parametrizada, le aparecerán las opciones: i)Automático, ii)Manual.
C29: ATRIBUTOS EFICIENCIA Implementación | E29: Utilice la lista de despligue que se encuentra parametrizada, le aparecerán las opciones: i)Automático, ii)Manual.
C30: ATRIBUTOS EFICIENCIA Calificación | E30: La matriz automáticamente hará el cálculo para el control analizado (Columna T)
C31: ATRIBUTOS INFORMATIVOS Documentación | E31: Utilice la lista de despligue que se encuentra parametrizada, le aparecerán las opciones: i)Documentado, ii)Sin documentar.
C32: ATRIBUTOS INFORMATIVOS Frecuencia | E32: Utilice la lista de despligue que se encuentra parametrizada, le aparecerán las opciones: i)Continua, ii)Aleatoria.
C33: ATRIBUTOS INFORMATIVOS Evidencia | E33: Utilice la lista de despligue que se encuentra parametrizada, le aparecerán las opciones: i)Con Registro, ii) Sin Registro.
C34: Evaluación del Nivel de Riesgo - Nivel de Riesgo Residual | E34: La matriz automáticamente hará el cálculo, acorde con el control o controles definidos con sus atributos analizados, lo que permitirá establecer el nivel de riesgo inherente (Columnas Y- Z- AA -AB- AC-AD).
C35: Tratamiento | E35: Utilice la lista de despligue que se encuentra parametrizada, le aparecerán las opciones: i)Aceptar, ii)Evitar, iii)Reducir (compartir), iv)Reducir (mitigar).
C36: Plan de Acción Responsable, fecha implementación, fecha seguimiento, seguimiento. | E36: Esta casilla dependerá del tratamiento establecido, si es Aceptar no se requieren acciones adicionales, en caso de escoger Reducir (mitigar) se deben diligenciar las acciones que se adelantarán como complemento a los controles establecidos, no necesariamente son controles adicionales. Para Reducir (compartir), es viable diligenciar la acción que deriva de esta (ejemplo póliza seguros, terceración), indicando información relevante.
C37: Estado | E37: Utilice la lista de despligue que se encuentra parametrizada, le aparecerán las opciones: i)Finalizado, ii)En curso, la selección en este caso dependerá de las acciones del plan que se hayan establecido en cada caso.
B40: - Hoja 3 Mapa Riesgos de Corrupción: Encontrará la totalidad de la estructura para la identificación y valoración de los riesgos por proceso, programa o proyecto, acorde con el nivel de desagregación que la entidad considere necesaria.
B41: - Hoja 4 Matriz de Calor Inherente: En esta hoja, en la medida en que ese diligencia el Mapa Final, se verán reflejados los riesgos en su zona correspondiente. Esta hoja no se diligencia se genera de manera automática.
B42: - Hoja 5 Matriz de Calor Residual: En esta hoja, en la medida en que ese diligencia el Mapa Final, se verán reflejados los riesgos en su zona correspondiente. Esta hoja no se diligencia se genera de manera automática.
B43: - Hoja 6 Tabla de probabilidad: Tabla referente para todos los cálculos (no se diligencia)
B44: - Hoja 7 Tabla de Impacto: Tabla referente para todos los cálculos (no se diligencia)
B45: - Hoja 8 Tabla de Valoración de Controles: Tabla referente para todos los cálculos (no se diligencia)

Sheet Matriz_Riesgos_Gestión_Fiscal
C2: FORMATO PARA LA FORMULACIÓN Y TRATAMIENTOS DE RIESGOS
F3: E-ME-F-08
F4: 2025-12-30 | G4: V-3
A5: PROCESO | C5: TODOS LOS PROCESOS
A6: Identificación del riesgo | J6: Análisis del riesgo inherente | Q6: Evaluación del riesgo - Valoración de los controles | W6: Atributos | AC6: Evaluación del riesgo - Nivel del riesgo residual | AJ6: Plan de acción | AN6: Responsable de Tratamiento
A7: Referencia | B7: Proceso | C7: Tipo de Riesgo | D7: Descripción del Riesgo | E7: Impacto | F7: Causa o circunstancia Inmediata ¿Cómo? | G7: Causa Raíz ¿Por a que? | H7: Clasificación del Riesgo | I7: Frecuencia con la cual se realiza la actividad anual | J7: Probabilidad Inherente | K7: % | L7: Impacto | M7: Observación de criterio | N7: Impacto Inherente | O7: % | P7: Zona de Riesgo Inherente | Q7: No. Control | R7: Descripción del Control | S7: Cargo del responsable del control | T7: Acción que realiza | U7: Evidencia esperada del control | V7: Afectación | W7: Tipo | X7: Implementación | Y7: Calificación | Z7: Documentación | AA7: Frecuencia | AB7: Evidencia | AC7: Probabilidad Residual | AD7: Probabilidad Residual Final | AE7: % | AF7: Impacto Residual Final | AG7: % | AH7: Zona de Riesgo Final | AI7: Tratamiento | AJ7: Acción a realizar | AK7: Cargo del Responsable | AL7: Fecha de implementación | AM7: Fecha de seguimiento | AN7: Cargo del responsable | AO7: Área del Responsable | AP7: Jefe del Área del Responsable | AQ7: Fecha Implementación (Inicio) | AR7: Fecha de Implementación (Fin) | AS7: Reporte primer Trimestre | AT7: ¿se materializó? Si/No | AU7: Seguimiento segunda línea de defensa | AV7: Reporte segundo Trimestre | AW7: ¿se materializó? Si/No | AX7: Seguimiento segunda línea de defensa | AY7: Reporte tercer Trimestre | AZ7: ¿se materializó? Si/No | BA7: Seguimiento segunda línea de defensa | BB7: Reporte cuarto Trimestre | BC7: ¿se materializó? Si/No | BD7: Seguimiento segunda línea de defensa
A8: 1 | B8: DIRECCIONAMIENTO ESTRATÉGICO | C8: Gestión | D8: =IF(C8="Fiscal",_xlfn.CONCAT("Posibilidad de efectos dañosos sobre bienes públicos "," por o para ",F8," debido a ",G8),IF(C8="Gestión",_xlfn.CONCAT("Posibilidad de afectacion ",E8," por ",F8," debido a ",G8),"")) -> Posibilidad de afectacion reputacional por Brindar inadecuada información a la ciudadanía sobre el cumplimiento de las metas y toma de decisiones imprecisas por parte de la alta dirección en temas estratégicos debido a Ineficiente seguimiento y evaluación por parte de los líderes/ ejecutores de la programación y seguimiento de las prioridades estratégicas y los compromisos adquiridos | E8: reputacional | F8: Brindar inadecuada información a la ciudadanía sobre el cumplimiento de las metas y toma de decisiones imprecisas por parte de la alta dirección en temas estratégicos | G8: Ineficiente seguimiento y evaluación por parte de los líderes/ ejecutores de la programación y seguimiento de las prioridades estratégicas y los compromisos adquiridos | H8: Ejecucion y Administracion de procesos | I8: 24 | J8: =IF(I8<=0,"",IF(I8<=2,"Muy Baja",IF(I8<=24,"Baja",IF(I8<=500,"Media",IF(I8<=5000,"Alta","Muy Alta"))))) -> Baja | K8: =IF(J8="","",IF(J8="Muy Baja",0.2,IF(J8="Baja",0.4,IF(J8="Media",0.6,IF(J8="Alta",0.8,IF(J8="Muy Alta",1,)))))) -> 0.4 | L8: El riesgo afecta la imagen de la entidad a nivel nacional, con efecto publicitarios sostenible a nivel país | M8: =IF(NOT(ISERROR(MATCH(L8,'Tabla Impacto'!#REF!,0))),'Tabla Impacto'!$F$229&"Por favor no seleccionar los criterios de impacto(Afectación Económica o presupuestal y Pérdida Reputacional)",L8) -> El riesgo afecta la imagen de la entidad a nivel nacional, con efecto publicitarios sostenible a nivel país | N8: =IF(OR(M8='Tabla Impacto'!$C$11,M8='Tabla Impacto'!$D$11),"Leve",IF(OR(M8='Tabla Impacto'!$C$12,M8='Tabla Impacto'!$D$12),"Menor",IF(OR(M8='Tabla Impacto'!$C$13,M8='Tabla Impacto'!$D$13),"Moderado",IF(OR(M8='Tabla Impacto'!$C$14,M8='Tabla Impacto'!$D$14),"Mayor",IF(OR(M8='Tabla Impacto'!$C$15,M8='Tabla Impacto'!$D$15),"Catastrófico",""))))) -> Catastrófico | O8: =IF(N8="","",IF(N8="Leve",0.2,IF(N8="Menor",0.4,IF(N8="Moderado",0.6,IF(N8="Mayor",0.8,IF(N8="Catastrófico",1,)))))) -> 1 | P8: =IF(OR(AND(J8="Muy Baja",N8="Leve"),AND(J8="Muy Baja",N8="Menor"),AND(J8="Baja",N8="Leve")),"Bajo",IF(OR(AND(J8="Muy baja",N8="Moderado"),AND(J8="Baja",N8="Menor"),AND(J8="Baja",N8="Moderado"),AND(J8="Media",N8="Leve"),AND(J8="Media",N8="Menor"),AND(J8="Media",N8="Moderado"),AND(J8="Alta",N8="Leve"),AND(J8="Alta",N8="Menor")),"Moderado",IF(OR(AND(J8="Muy Baja",N8="Mayor"),AND(J8="Baja",N8="Mayor"),AND(J8="Media",N8="Mayor"),AND(J8="Alta",N8="Moderado"),AND(J8="Alta",N8="Mayor"),AND(J8="Muy Alta",N8="Leve"),AND(J8="Muy Alta",N8="Menor"),AND(J8="Muy Alta",N8="Moderado"),AND(J8="Muy Alta",N8="Mayor")),"Alto",IF(OR(AND(J8="Muy Baja",N8="Catastrófico"),AND(J8="Baja",N8="Catastrófico"),AND(J8="Media",N8="Catastrófico"),AND(J8="Alta",N8="Catastrófico"),AND(J8="Muy Alta",N8="Catastrófico")),"Extremo","")))) -> Extremo | Q8: 1 | R8: El profesional de la Oficina de Planeación y Gestión Internacional, del Grupo de Gestión y Cumplimiento, realiza un seguimiento de manera periódica de los avances cuantitativos/cualitativos del cronograma de actividades frente a las acciones estipuladas en el Plan de Acción Anual, los Planes Plurianuales de Inversiones y los compromisos CONPES y lo presenta de manera oportuna a la alta dirección para la toma de decisiones. En caso de encontrar desviaciones en la ejecución de las acciones solicita aclaraciones a la primera línea de defensa | S8: Profesional de la Oficina de Planeación y Gestión Internacional del Grupo de Gestión y Cumplimiento | T8: Formulación de un cronograma de actividades para cumplir con las acciones estipuladas en el Plan de Acción Anual, los Planes Plurianuales de Inversiones y los compromisos CONPES y realiza el seguimiento de manera periódica de los avances cuantitativos/cualitativos y lo presenta de manera oportuna a la alta dirección para la toma de decisiones. | U8: Informes detallados Cronograma de actividades | V8: =IF(OR(W8="Preventivo",W8="Detectivo"),"Probabilidad",IF(W8="Correctivo","Impacto","")) -> Probabilidad | W8: Detectivo | X8: Automático | Y8: =IF(AND(W8="Preventivo",X8="Automático"),"50%",IF(AND(W8="Preventivo",X8="Manual"),"40%",IF(AND(W8="Detectivo",X8="Automático"),"40%",IF(AND(W8="Detectivo",X8="Manual"),"30%",IF(AND(W8="Correctivo",X8="Automático"),"35%",IF(AND(W8="Correctivo",X8="Manual"),"25%","")))))) -> 40% | Z8: Documentado | AA8: Continua | AB8: Con Registro | AC8: =IFERROR(IF(V8="Probabilidad",(K8-(+K8*Y8)),IF(V8="Impacto",K8,"")),"") -> 0.24 | AD8: =IFERROR(IF(AC8="","",IF(AC8<=0.2,"Muy Baja",IF(AC8<=0.4,"Baja",IF(AC8<=0.6,"Media",IF(AC8<=0.8,"Alta","Muy Alta"))))),"") -> Baja | AE8: =+AC8 -> 0.24 | AF8: =IFERROR(IF(AG8="","",IF(AG8<=0.2,"Leve",IF(AG8<=0.4,"Menor",IF(AG8<=0.6,"Moderado",IF(AG8<=0.8,"Mayor","Catastrófico"))))),"") -> Catastrófico | AG8: =IFERROR(IF(V8="Impacto",(O8-(+O8*Y8)),IF(V8="Probabilidad",O8,"")),"") -> 1 | AH8: =IFERROR(IF(OR(AND(AD8="Muy Baja",AF8="Leve"),AND(AD8="Muy Baja",AF8="Menor"),AND(AD8="Baja",AF8="Leve")),"Bajo",IF(OR(AND(AD8="Muy baja",AF8="Moderado"),AND(AD8="Baja",AF8="Menor"),AND(AD8="Baja",AF8="Moderado"),AND(AD8="Media",AF8="Leve"),AND(AD8="Media",AF8="Menor"),AND(AD8="Media",AF8="Moderado"),AND(AD8="Alta",AF8="Leve"),AND(AD8="Alta",AF8="Menor")),"Moderado",IF(OR(AND(AD8="Muy Baja",AF8="Mayor"),AND(AD8="Baja",AF8="Mayor"),AND(AD8="Media",AF8="Mayor"),AND(AD8="Alta",AF8="Moderado"),AND(AD8="Alta",AF8="Mayor"),AND(AD8="Muy Alta",AF8="Leve"),AND(AD8="Muy Alta",AF8="Menor"),AND(AD8="Muy Alta",AF8="Moderado"),AND(AD8="Muy Alta",AF8="Mayor")),"Alto",IF(OR(AND(AD8="Muy Baja",AF8="Catastrófico"),AND(AD8="Baja",AF8="Catastrófico"),AND(AD8="Media",AF8="Catastrófico"),AND(AD8="Alta",AF8="Catastrófico"),AND(AD8="Muy Alta",AF8="Catastrófico")),"Extremo","")))),"") -> Extremo | AI8: Evitar | AN8: Laura Vivianne Bermúdez Oficina de Planeación y Gestión Internacional Grupo de Gestión y Cumplimiento | AO8: Oficina de Planeación y Gestión Internacional | AP8: Jefe de la Oficina de Planeación y Gestión Internacional | AQ8: 2025-02-01 | AR8: 2025-12-31
A9: 2 | B9: DIRECCIONAMIENTO ESTRATÉGICO | C9: Gestión | D9: =IF(C9="Fiscal",_xlfn.CONCAT("Posibilidad de efectos dañosos sobre bienes públicos "," por o para ",F9," debido a ",G9),IF(C9="Gestión",_xlfn.CONCAT("Posibilidad de afectacion ",E9," por ",F9," debido a ",G9),"")) -> Posibilidad de afectacion reputacional por Incumplimiento de los tiempos para el registro o actualización de los proyectos de inversión en la PIIP, debido a devoluciones de los procesos y/o trámites presupuestales | E9: reputacional | F9: Incumplimiento de los tiempos para el registro o actualización de los proyectos de inversión en la PIIP, | G9: devoluciones de los procesos y/o trámites presupuestales | H9: Ejecucion y Administracion de procesos | I9: 172 | J9: Media | K9: 0.6 | L9: El riesgo afecta la imagen de la entidad a nivel nacional, con efecto publicitarios sostenible a nivel país | M9: =IF(NOT(ISERROR(MATCH(L9,'Tabla Impacto'!#REF!,0))),'Tabla Impacto'!$F$229&"Por favor no seleccionar los criterios de impacto(Afectación Económica o presupuestal y Pérdida Reputacional)",L9) -> El riesgo afecta la imagen de la entidad a nivel nacional, con efecto publicitarios sostenible a nivel país | N9: =IF(OR(M9='Tabla Impacto'!$C$11,M9='Tabla Impacto'!$D$11),"Leve",IF(OR(M9='Tabla Impacto'!$C$12,M9='Tabla Impacto'!$D$12),"Menor",IF(OR(M9='Tabla Impacto'!$C$13,M9='Tabla Impacto'!$D$13),"Moderado",IF(OR(M9='Tabla Impacto'!$C$14,M9='Tabla Impacto'!$D$14),"Mayor",IF(OR(M9='Tabla Impacto'!$C$15,M9='Tabla Impacto'!$D$15),"Catastrófico",""))))) -> Catastrófico | O9: =IF(N9="","",IF(N9="Leve",0.2,IF(N9="Menor",0.4,IF(N9="Moderado",0.6,IF(N9="Mayor",0.8,IF(N9="Catastrófico",1,)))))) -> 1 | P9: =IF(OR(AND(J9="Muy Baja",N9="Leve"),AND(J9="Muy Baja",N9="Menor"),AND(J9="Baja",N9="Leve")),"Bajo",IF(OR(AND(J9="Muy baja",N9="Moderado"),AND(J9="Baja",N9="Menor"),AND(J9="Baja",N9="Moderado"),AND(J9="Media",N9="Leve"),AND(J9="Media",N9="Menor"),AND(J9="Media",N9="Moderado"),AND(J9="Alta",N9="Leve"),AND(J9="Alta",N9="Menor")),"Moderado",IF(OR(AND(J9="Muy Baja",N9="Mayor"),AND(J9="Baja",N9="Mayor"),AND(J9="Media",N9="Mayor"),AND(J9="Alta",N9="Moderado"),AND(J9="Alta",N9="Mayor"),AND(J9="Muy Alta",N9="Leve"),AND(J9="Muy Alta",N9="Menor"),AND(J9="Muy Alta",N9="Moderado"),AND(J9="Muy Alta",N9="Mayor")),"Alto",IF(OR(AND(J9="Muy Baja",N9="Catastrófico"),AND(J9="Baja",N9="Catastrófico"),AND(J9="Media",N9="Catastrófico"),AND(J9="Alta",N9="Catastrófico"),AND(J9="Muy Alta",N9="Catastrófico")),"Extremo","")))) -> Extremo | Q9: 1 | R9: El y/o la Coordinador(a) del Grupo de Programación y Gestión Estrategica de Proyectos y profesional designado, dispone de un enlace para asesorar a los gerentes de proyectos de inversión, presenta e informa el cronograma del ciclo de formulación y actualización de proyectos, Anteproyecto y MGMP, posteriormente realiza seguimiento al estado de avance de cada uno de los trámites para el registro y/o actualización de los mismos en la PIIP; en caso de encontrar desviaciones en los tiempos definidos establece acciones correctivas y/o preventivas requeridas con el gerente del proyecto y de ser necesario con la alta dirección. | S9: Coordinador(a) y profesionales designados del Grupo de Programación y Gestión Estratégica de Proyectos | T9: Disponer de un enlace para asesorar los gerentes de proyectos de inversión Presentar e informar el cronograma del ciclo del proyecto de inversión Realizar el seguimiento al estado de avance de cada uno de los trámites para el registro y/o actualización de los proyectos de inversión en la PIIP Establecer acciones correctivas y/o preventivas requeridas con el gerente del proyecto y de ser necesario con la alta dirección | U9: Instrumentos de control definidos para tal fin, cronograma ciclo de proyectos de inversión, formato de ajuste de ficha proyectos de inversión, matriz de proyectos, presentaciones y reuniones de seguimiento | V9: =IF(OR(W9="Preventivo",W9="Detectivo"),"Probabilidad",IF(W9="Correctivo","Impacto","")) -> Probabilidad | W9: Preventivo | X9: Manual | Y9: =IF(AND(W9="Preventivo",X9="Automático"),"50%",IF(AND(W9="Preventivo",X9="Manual"),"40%",IF(AND(W9="Detectivo",X9="Automático"),"40%",IF(AND(W9="Detectivo",X9="Manual"),"30%",IF(AND(W9="Correctivo",X9="Automático"),"35%",IF(AND(W9="Correctivo",X9="Manual"),"25%","")))))) -> 40% | Z9: Sin Documentar | AA9: Continua | AB9: Con Registro | AC9: =IFERROR(IF(V9="Probabilidad",(K9-(+K9*Y9)),IF(V9="Impacto",K9,"")),"") -> 0.36 | AD9: =IFERROR(IF(AC9="","",IF(AC9<=0.2,"Muy Baja",IF(AC9<=0.4,"Baja",IF(AC9<=0.6,"Media",IF(AC9<=0.8,"Alta","Muy Alta"))))),"") -> Baja | AE9: =+AC9 -> 0.36 | AF9: =IFERROR(IF(AG9="","",IF(AG9<=0.2,"Leve",IF(AG9<=0.4,"Menor",IF(AG9<=0.6,"Moderado",IF(AG9<=0.8,"Mayor","Catastrófico"))))),"") -> Catastrófico | AG9: =IFERROR(IF(V9="Impacto",(O9-(+O9*Y9)),IF(V9="Probabilidad",O9,"")),"") -> 1 | AH9: =IFERROR(IF(OR(AND(AD9="Muy Baja",AF9="Leve"),AND(AD9="Muy Baja",AF9="Menor"),AND(AD9="Baja",AF9="Leve")),"Bajo",IF(OR(AND(AD9="Muy baja",AF9="Moderado"),AND(AD9="Baja",AF9="Menor"),AND(AD9="Baja",AF9="Moderado"),AND(AD9="Media",AF9="Leve"),AND(AD9="Media",AF9="Menor"),AND(AD9="Media",AF9="Moderado"),AND(AD9="Alta",AF9="Leve"),AND(AD9="Alta",AF9="Menor")),"Moderado",IF(OR(AND(AD9="Muy Baja",AF9="Mayor"),AND(AD9="Baja",AF9="Mayor"),AND(AD9="Media",AF9="Mayor"),AND(AD9="Alta",AF9="Moderado"),AND(AD9="Alta",AF9="Mayor"),AND(AD9="Muy Alta",AF9="Leve"),AND(AD9="Muy Alta",AF9="Menor"),AND(AD9="Muy Alta",AF9="Moderado"),AND(AD9="Muy Alta",AF9="Mayor")),"Alto",IF(OR(AND(AD9="Muy Baja",AF9="Catastrófico"),AND(AD9="Baja",AF9="Catastrófico"),AND(AD9="Media",AF9="Catastrófico"),AND(AD9="Alta",AF9="Catastrófico"),AND(AD9="Muy Alta",AF9="Catastrófico")),"Extremo","")))),"") -> Extremo | AI9: Evitar | AN9: Profesional Grupo de Programación y Gestión Estratégica de Proyectos | AO9: Oficina Asesora de Planeación y Gestión Internacional | AP9: Miguel Angel Cardozo Tovar | AQ9: 2025-01-15 | AR9: 2025-12-31
A10: 3 | B10: DIRECCIONAMIENTO ESTRATÉGICO | C10: Gestión | D10: Posibilidad de afectacion económico por falta de oportunidad en el reporte de alertas tempranas por rezagos en la ejecución presupuestal del rubro de inversión debido a incumplimiento al seguimiento de la ejecución presupuestal en el marco de los acuerdos de gestión | E10: económico | F10: falta de oportunidad en el reporte de alertas tempranas por rezagos en la ejecución presupuestal del rubro de inversión | G10: incumplimiento al seguimiento de la ejecución presupuestal en el marco de los acuerdos de gestión | H10: Usuarios, productos y practicas , organizacionales | I10: 88 | J10: Media | K10: 0.6 | L10: El riesgo afecta la imagen de de la entidad con efecto publicitario sostenido a nivel de sector administrativo, nivel departamental o municipal | M10: =IF(NOT(ISERROR(MATCH(L10,'[5]Tabla Impacto'!#REF!,0))),'[5]Tabla Impacto'!$F$229&"Por favor no seleccionar los criterios de impacto(Afectación Económica o presupuestal y Pérdida Reputacional)",L10) -> El riesgo afecta la imagen de de la entidad con efecto publicitario sostenido a nivel de sector administrativo, nivel departamental o municipal | N10: =IF(OR(M10='[5]Tabla Impacto'!$C$11,M10='[5]Tabla Impacto'!$D$11),"Leve",IF(OR(M10='[5]Tabla Impacto'!$C$12,M10='[5]Tabla Impacto'!$D$12),"Menor",IF(OR(M10='[5]Tabla Impacto'!$C$13,M10='[5]Tabla Impacto'!$D$13),"Moderado",IF(OR(M10='[5]Tabla Impacto'!$C$14,M10='[5]Tabla Impacto'!$D$14),"Mayor",IF(OR(M10='[5]Tabla Impacto'!$C$15,M10='[5]Tabla Impacto'!$D$15),"Catastrófico",""))))) -> Mayor | O10: 0.8 | P10: Alto | Q10: 1 | R10: El y/o la Coordinador(a) del Grupo de Programación y Gestión Estrategica de Proyectos y profesionales designados, solicitan a los responsables de la ejecución de proyectos de inversión el diligenciamiento de la matriz de acuerdos de gestión, en cumplimiento de parámetros establecidos por el Ministerio y posteriormente realiza seguimiento periódico a la ejecución presupuestal; en caso de encontrar desviaciones, solicita la respectiva justificación a los gerentes de proyectos, con el fin de que establezcan un plan de choque para alcanzar las metas de ejecución presupuestal a través de acuerdos de gestión. | S10: Coordinador(a) y profesionales designados del Grupo de Programación y Gestión Estratégica de Proyectos | T10: Solicitar la formalización de los acuerdos de gestión y consolidar la información Realizar seguimiento periódico a la ejecución presupuestal en el marco de los acuerdos de gestión | U10: Acuerdos de gestión, informes de ejecución, boletines ejecutivos, correo electrónico con informe de reuniones de seguimiento sobre PAE y reuniones de seguimiento con las áreas organizaciones y/o entidades adscritas. Reportes de seguimiento a nivel de producto en la PIIP | V10: Probabilidad | W10: Preventivo | X10: Manual | Y10: =IF(AND(W10="Preventivo",X10="Automático"),"50%",IF(AND(W10="Preventivo",X10="Manual"),"40%",IF(AND(W10="Detectivo",X10="Automático"),"40%",IF(AND(W10="Detectivo",X10="Manual"),"30%",IF(AND(W10="Correctivo",X10="Automático"),"35%",IF(AND(W10="Correctivo",X10="Manual"),"25%","")))))) -> 40% | Z10: Sin Documentar | AA10: Continua | AB10: Con Registro | AC10: 0.36 | AD10: Baja | AE10: 0.36 | AF10: Mayor | AG10: 0.8 | AH10: Alto | AI10: Reducir (compartir) | AN10: Profesional Grupo de Grupo de Programación y Gestión Estratégica de Proyectos | AO10: Oficina Asesora de Planeación y Gestión Internacional | AP10: Miguel Angel Cardozo Tovar | AQ10: 2025-01-15 | AR10: 2025-12-31
A11: 4 | B11: DIRECCIONAMIENTO ESTRATÉGICO | C11: Gestión | D11: Posibilidad de afectacion económico y reputacional por demandas y quejas de los interesados en la gestión de los trámites debido a incumplimiento normativo relacionado con los trámites y servicios del Ministerio. | E11: económico y reputacional | F11: demandas y quejas de los interesados en la gestión de los trámites | G11: incumplimiento normativo relacionado con los trámites y servicios del Ministerio. | H11: Usuarios, productos y practicas , organizacionales | I11: 40 | J11: Media | K11: =IF(J11="","",IF(J11="Muy Baja",0.2,IF(J11="Baja",0.4,IF(J11="Media",0.6,IF(J11="Alta",0.8,IF(J11="Muy Alta",1,)))))) -> 0.6 | L11: El riesgo afecta la imagen de la entidad a nivel nacional, con efecto publicitarios sostenible a nivel país | M11: =IF(NOT(ISERROR(MATCH(L11,'[5]Tabla Impacto'!#REF!,0))),'[5]Tabla Impacto'!$F$229&"Por favor no seleccionar los criterios de impacto(Afectación Económica o presupuestal y Pérdida Reputacional)",L11) -> El riesgo afecta la imagen de la entidad a nivel nacional, con efecto publicitarios sostenible a nivel país | N11: =IF(OR(M11='[5]Tabla Impacto'!$C$11,M11='[5]Tabla Impacto'!$D$11),"Leve",IF(OR(M11='[5]Tabla Impacto'!$C$12,M11='[5]Tabla Impacto'!$D$12),"Menor",IF(OR(M11='[5]Tabla Impacto'!$C$13,M11='[5]Tabla Impacto'!$D$13),"Moderado",IF(OR(M11='[5]Tabla Impacto'!$C$14,M11='[5]Tabla Impacto'!$D$14),"Mayor",IF(OR(M11='[5]Tabla Impacto'!$C$15,M11='[5]Tabla Impacto'!$D$15),"Catastrófico",""))))) -> Catastrófico | O11: =IF(N11="","",IF(N11="Leve",0.2,IF(N11="Menor",0.4,IF(N11="Moderado",0.6,IF(N11="Mayor",0.8,IF(N11="Catastrófico",1,)))))) -> 1 | P11: =IF(OR(AND(J11="Muy Baja",N11="Leve"),AND(J11="Muy Baja",N11="Menor"),AND(J11="Baja",N11="Leve")),"Bajo",IF(OR(AND(J11="Muy baja",N11="Moderado"),AND(J11="Baja",N11="Menor"),AND(J11="Baja",N11="Moderado"),AND(J11="Media",N11="Leve"),AND(J11="Media",N11="Menor"),AND(J11="Media",N11="Moderado"),AND(J11="Alta",N11="Leve"),AND(J11="Alta",N11="Menor")),"Moderado",IF(OR(AND(J11="Muy Baja",N11="Mayor"),AND(J11="Baja",N11="Mayor"),AND(J11="Media",N11="Mayor"),AND(J11="Alta",N11="Moderado"),AND(J11="Alta",N11="Mayor"),AND(J11="Muy Alta",N11="Leve"),AND(J11="Muy Alta",N11="Menor"),AND(J11="Muy Alta",N11="Moderado"),AND(J11="Muy Alta",N11="Mayor")),"Alto",IF(OR(AND(J11="Muy Baja",N11="Catastrófico"),AND(J11="Baja",N11="Catastrófico"),AND(J11="Media",N11="Catastrófico"),AND(J11="Alta",N11="Catastrófico"),AND(J11="Muy Alta",N11="Catastrófico")),"Extremo","")))) -> Extremo | Q11: 1 | R11: El profesional de la Oficina de Planeación y Gestión Internacional, del Grupo de Gestión y Desempeño, verifica que la información de los tramites publicados en el SUIT se encuentra actualizada y sea la correcta a través de una plantilla de validación de información de cada tramite y la revisa con los encargados misionales correspondientes | S11: Profesional Grupo de Gestión y Desempeño que administra el SUIT | T11: Verifica que la información de los tramites publicados en el SUIT se encuentra actualizada y sea la correcta a través de una plantilla de validación de información de cada tramite y la revisa con los encargados misionales correspondientes | U11: Plantilla de validación de información de cada tramite | V11: =IF(OR(W11="Preventivo",W11="Detectivo"),"Probabilidad",IF(W11="Correctivo","Impacto","")) -> Probabilidad | W11: Preventivo | X11: Manual | Y11: 40% | Z11: Sin Documentar | AA11: Continua | AB11: Con Registro | AC11: =IFERROR(IF(V11="Probabilidad",(K11-(+K11*Y11)),IF(V11="Impacto",K11,"")),"") -> 0.36 | AD11: =IFERROR(IF(AC11="","",IF(AC11<=0.2,"Muy Baja",IF(AC11<=0.4,"Baja",IF(AC11<=0.6,"Media",IF(AC11<=0.8,"Alta","Muy Alta"))))),"") -> Baja | AE11: =+AC11 -> 0.36 | AF11: =IFERROR(IF(AG11="","",IF(AG11<=0.2,"Leve",IF(AG11<=0.4,"Menor",IF(AG11<=0.6,"Moderado",IF(AG11<=0.8,"Mayor","Catastrófico"))))),"") -> Catastrófico | AG11: =IFERROR(IF(V11="Impacto",(O11-(+O11*Y11)),IF(V11="Probabilidad",O11,"")),"") -> 1 | AH11: =IFERROR(IF(OR(AND(AD11="Muy Baja",AF11="Leve"),AND(AD11="Muy Baja",AF11="Menor"),AND(AD11="Baja",AF11="Leve")),"Bajo",IF(OR(AND(AD11="Muy baja",AF11="Moderado"),AND(AD11="Baja",AF11="Menor"),AND(AD11="Baja",AF11="Moderado"),AND(AD11="Media",AF11="Leve"),AND(AD11="Media",AF11="Menor"),AND(AD11="Media",AF11="Moderado"),AND(AD11="Alta",AF11="Leve"),AND(AD11="Alta",AF11="Menor")),"Moderado",IF(OR(AND(AD11="Muy Baja",AF11="Mayor"),AND(AD11="Baja",AF11="Mayor"),AND(AD11="Media",AF11="Mayor"),AND(AD11="Alta",AF11="Moderado"),AND(AD11="Alta",AF11="Mayor"),AND(AD11="Muy Alta",AF11="Leve"),AND(AD11="Muy Alta",AF11="Menor"),AND(AD11="Muy Alta",AF11="Moderado"),AND(AD11="Muy Alta",AF11="Mayor")),"Alto",IF(OR(AND(AD11="Muy Baja",AF11="Catastrófico"),AND(AD11="Baja",AF11="Catastrófico"),AND(AD11="Media",AF11="Catastrófico"),AND(AD11="Alta",AF11="Catastrófico"),AND(AD11="Muy Alta",AF11="Catastrófico")),"Extremo","")))),"") -> Extremo | AI11: Reducir (compartir) | AN11: Profesional Grupo de Gestión y Desempeño que administra el SUIT | AO11: Oficina Asesora de Planeación y Gestión Internacional | AP11: Miguel Angel Cardozo Tovar | AQ11: 2025-01-15 | AR11: 2025-12-31
A12: 5 | B12: MEJORAMIENTO | C12: Gestión | D12: Posibilidad de afectacion reputacional por reprocesos y aumento de carga administrativa debido a documentos del Sistema Integrado de Gestión publicados sin el cumplimiento de los requerimientos de calidad establecidos | E12: reputacional | F12: reprocesos y aumento de carga administrativa | G12: documentos del Sistema Integrado de Gestión publicados sin el cumplimiento de los requerimientos de calidad establecidos | H12: Ejecucion y Administracion de procesos | I12: 51 | J12: Media | K12: =IF(J12="","",IF(J12="Muy Baja",0.2,IF(J12="Baja",0.4,IF(J12="Media",0.6,IF(J12="Alta",0.8,IF(J12="Muy Alta",1,)))))) -> 0.6 | L12: El riesgo afecta la imagen de la entidad a nivel nacional, con efecto publicitarios sostenible a nivel país | M12: =IF(NOT(ISERROR(MATCH(L12,'[5]Tabla Impacto'!#REF!,0))),'[5]Tabla Impacto'!$F$229&"Por favor no seleccionar los criterios de impacto(Afectación Económica o presupuestal y Pérdida Reputacional)",L12) -> El riesgo afecta la imagen de la entidad a nivel nacional, con efecto publicitarios sostenible a nivel país | N12: =IF(OR(M12='[5]Tabla Impacto'!$C$11,M12='[5]Tabla Impacto'!$D$11),"Leve",IF(OR(M12='[5]Tabla Impacto'!$C$12,M12='[5]Tabla Impacto'!$D$12),"Menor",IF(OR(M12='[5]Tabla Impacto'!$C$13,M12='[5]Tabla Impacto'!$D$13),"Moderado",IF(OR(M12='[5]Tabla Impacto'!$C$14,M12='[5]Tabla Impacto'!$D$14),"Mayor",IF(OR(M12='[5]Tabla Impacto'!$C$15,M12='[5]Tabla Impacto'!$D$15),"Catastrófico",""))))) -> Catastrófico | O12: =IF(N12="","",IF(N12="Leve",0.2,IF(N12="Menor",0.4,IF(N12="Moderado",0.6,IF(N12="Mayor",0.8,IF(N12="Catastrófico",1,)))))) -> 1 | P12: =IF(OR(AND(J12="Muy Baja",N12="Leve"),AND(J12="Muy Baja",N12="Menor"),AND(J12="Baja",N12="Leve")),"Bajo",IF(OR(AND(J12="Muy baja",N12="Moderado"),AND(J12="Baja",N12="Menor"),AND(J12="Baja",N12="Moderado"),AND(J12="Media",N12="Leve"),AND(J12="Media",N12="Menor"),AND(J12="Media",N12="Moderado"),AND(J12="Alta",N12="Leve"),AND(J12="Alta",N12="Menor")),"Moderado",IF(OR(AND(J12="Muy Baja",N12="Mayor"),AND(J12="Baja",N12="Mayor"),AND(J12="Media",N12="Mayor"),AND(J12="Alta",N12="Moderado"),AND(J12="Alta",N12="Mayor"),AND(J12="Muy Alta",N12="Leve"),AND(J12="Muy Alta",N12="Menor"),AND(J12="Muy Alta",N12="Moderado"),AND(J12="Muy Alta",N12="Mayor")),"Alto",IF(OR(AND(J12="Muy Baja",N12="Catastrófico"),AND(J12="Baja",N12="Catastrófico"),AND(J12="Media",N12="Catastrófico"),AND(J12="Alta",N12="Catastrófico"),AND(J12="Muy Alta",N12="Catastrófico")),"Extremo","")))) -> Extremo | Q12: 1 | R12: El profesional de la Oficina de Planeación y Gestión Internacional del Grupo de Gestión y Desempeño realiza asesoría y revisión de las solicitudes de control documental en conjunto con los responsables de los procesos y posteriormente, valida los documentos que son remitidos para ser aprobados; en caso de encontrar inconsistencias en los documentos remite a los procesos para ajustes | S12: Profesional Grupo de Gestión y Desempeño que administra el SIG | T12: Realizar asesoría y revisión de las solicitudes de control documental en conjunto con los responsables de los procesos Validar los documentos antes de ser aprobados para evitar errores en forma y/o contenido, | U12: Listado de verificación de actualización de documentos Correos Electrónicos | V12: =IF(OR(W12="Preventivo",W12="Detectivo"),"Probabilidad",IF(W12="Correctivo","Impacto","")) -> Probabilidad | W12: Preventivo | X12: Manual | Y12: =IF(AND(W12="Preventivo",X12="Automático"),"50%",IF(AND(W12="Preventivo",X12="Manual"),"40%",IF(AND(W12="Detectivo",X12="Automático"),"40%",IF(AND(W12="Detectivo",X12="Manual"),"30%",IF(AND(W12="Correctivo",X12="Automático"),"35%",IF(AND(W12="Correctivo",X12="Manual"),"25%","")))))) -> 40% | Z12: Documentado | AA12: Continua | AB12: Con Registro | AC12: =IFERROR(IF(V12="Probabilidad",(K12-(+K12*Y12)),IF(V12="Impacto",K12,"")),"") -> 0.36 | AD12: =IFERROR(IF(AC12="","",IF(AC12<=0.2,"Muy Baja",IF(AC12<=0.4,"Baja",IF(AC12<=0.6,"Media",IF(AC12<=0.8,"Alta","Muy Alta"))))),"") -> Baja | AE12: =+AC12 -> 0.36 | AF12: =IFERROR(IF(AG12="","",IF(AG12<=0.2,"Leve",IF(AG12<=0.4,"Menor",IF(AG12<=0.6,"Moderado",IF(AG12<=0.8,"Mayor","Catastrófico"))))),"") -> Catastrófico | AG12: =IFERROR(IF(V12="Impacto",(O12-(+O12*Y12)),IF(V12="Probabilidad",O12,"")),"") -> 1 | AH12: =IFERROR(IF(OR(AND(AD12="Muy Baja",AF12="Leve"),AND(AD12="Muy Baja",AF12="Menor"),AND(AD12="Baja",AF12="Leve")),"Bajo",IF(OR(AND(AD12="Muy baja",AF12="Moderado"),AND(AD12="Baja",AF12="Menor"),AND(AD12="Baja",AF12="Moderado"),AND(AD12="Media",AF12="Leve"),AND(AD12="Media",AF12="Menor"),AND(AD12="Media",AF12="Moderado"),AND(AD12="Alta",AF12="Leve"),AND(AD12="Alta",AF12="Menor")),"Moderado",IF(OR(AND(AD12="Muy Baja",AF12="Mayor"),AND(AD12="Baja",AF12="Mayor"),AND(AD12="Media",AF12="Mayor"),AND(AD12="Alta",AF12="Moderado"),AND(AD12="Alta",AF12="Mayor"),AND(AD12="Muy Alta",AF12="Leve"),AND(AD12="Muy Alta",AF12="Menor"),AND(AD12="Muy Alta",AF12="Moderado"),AND(AD12="Muy Alta",AF12="Mayor")),"Alto",IF(OR(AND(AD12="Muy Baja",AF12="Catastrófico"),AND(AD12="Baja",AF12="Catastrófico"),AND(AD12="Media",AF12="Catastrófico"),AND(AD12="Alta",AF12="Catastrófico"),AND(AD12="Muy Alta",AF12="Catastrófico")),"Extremo","")))),"") -> Extremo | AI12: Evitar | AN12: Profesional Grupo de Gestión y Desempeño que administra el SIG | AO12: Oficina de Planeación y Gestión Internacional | AP12: Jefe de la Oficina de Planeación y Gestión Internacional | AQ12: 2025-01-15 | AR12: 2025-12-31
A13: 6 | B13: MEJORAMIENTO | C13: Gestión | D13: Posibilidad de afectacion económico y reputacional por sanciones, multas o demandas debido a incumplimiento u omisión de requisitos legales y otros aplicables al Sistema de Gestión Ambiental de la entidad. | E13: económico y reputacional | F13: sanciones, multas o demandas | G13: incumplimiento u omisión de requisitos legales y otros aplicables al Sistema de Gestión Ambiental de la entidad. | H13: Ejecucion y Administracion de procesos | I13: 24 | J13: Baja | K13: =IF(J13="","",IF(J13="Muy Baja",0.2,IF(J13="Baja",0.4,IF(J13="Media",0.6,IF(J13="Alta",0.8,IF(J13="Muy Alta",1,)))))) -> 0.4 | L13: El riesgo afecta la imagen de la entidad con algunos usuarios de relevancia frente al logro de los objetivos | M13: =IF(NOT(ISERROR(MATCH(L13,'[5]Tabla Impacto'!#REF!,0))),'[5]Tabla Impacto'!$F$229&"Por favor no seleccionar los criterios de impacto(Afectación Económica o presupuestal y Pérdida Reputacional)",L13) -> El riesgo afecta la imagen de la entidad con algunos usuarios de relevancia frente al logro de los objetivos | N13: =IF(OR(M13='[5]Tabla Impacto'!$C$11,M13='[5]Tabla Impacto'!$D$11),"Leve",IF(OR(M13='[5]Tabla Impacto'!$C$12,M13='[5]Tabla Impacto'!$D$12),"Menor",IF(OR(M13='[5]Tabla Impacto'!$C$13,M13='[5]Tabla Impacto'!$D$13),"Moderado",IF(OR(M13='[5]Tabla Impacto'!$C$14,M13='[5]Tabla Impacto'!$D$14),"Mayor",IF(OR(M13='[5]Tabla Impacto'!$C$15,M13='[5]Tabla Impacto'!$D$15),"Catastrófico",""))))) -> Moderado | O13: =IF(N13="","",IF(N13="Leve",0.2,IF(N13="Menor",0.4,IF(N13="Moderado",0.6,IF(N13="Mayor",0.8,IF(N13="Catastrófico",1,)))))) -> 0.6 | P13: =IF(OR(AND(J13="Muy Baja",N13="Leve"),AND(J13="Muy Baja",N13="Menor"),AND(J13="Baja",N13="Leve")),"Bajo",IF(OR(AND(J13="Muy baja",N13="Moderado"),AND(J13="Baja",N13="Menor"),AND(J13="Baja",N13="Moderado"),AND(J13="Media",N13="Leve"),AND(J13="Media",N13="Menor"),AND(J13="Media",N13="Moderado"),AND(J13="Alta",N13="Leve"),AND(J13="Alta",N13="Menor")),"Moderado",IF(OR(AND(J13="Muy Baja",N13="Mayor"),AND(J13="Baja",N13="Mayor"),AND(J13="Media",N13="Mayor"),AND(J13="Alta",N13="Moderado"),AND(J13="Alta",N13="Mayor"),AND(J13="Muy Alta",N13="Leve"),AND(J13="Muy Alta",N13="Menor"),AND(J13="Muy Alta",N13="Moderado"),AND(J13="Muy Alta",N13="Mayor")),"Alto",IF(OR(AND(J13="Muy Baja",N13="Catastrófico"),AND(J13="Baja",N13="Catastrófico"),AND(J13="Media",N13="Catastrófico"),AND(J13="Alta",N13="Catastrófico"),AND(J13="Muy Alta",N13="Catastrófico")),"Extremo","")))) -> Moderado | Q13: 1 | R13: El profesional de la Oficina de Planeación y Gestión Internacional que brinda soporte al Sistema de Gestión Ambiental, realiza la revisión semestral a la implementación de los controles operacionales y al cumplimiento de los requisitos legales y otros aplicables al Sistema de Gestión Ambiental | S13: El profesional de la Oficina de Planeación y Gestión Internacional que brinda soporte al Sistema de Gestión Ambiental | T13: Realizar la revisión semestral a la implementación de los controles operacionales y al cumplimiento de los requisitos legales y otros aplicables al Sistema de Gestión Ambienta | U13: Matriz de identificación de Aspectos y Valoración de Impactos Ambientales. Monitoreo en la Matriz de requisitos legales ambientales. | V13: Probabilidad | W13: Preventivo | X13: Manual | Y13: 40% | Z13: Sin Documentar | AA13: Continua | AB13: Con Registro | AC13: =IFERROR(IF(V13="Probabilidad",(K13-(+K13*Y13)),IF(V13="Impacto",K13,"")),"") -> 0.24 | AD13: =IFERROR(IF(AC13="","",IF(AC13<=0.2,"Muy Baja",IF(AC13<=0.4,"Baja",IF(AC13<=0.6,"Media",IF(AC13<=0.8,"Alta","Muy Alta"))))),"") -> Baja | AE13: =+AC13 -> 0.24 | AF13: =IFERROR(IF(AG13="","",IF(AG13<=0.2,"Leve",IF(AG13<=0.4,"Menor",IF(AG13<=0.6,"Moderado",IF(AG13<=0.8,"Mayor","Catastrófico"))))),"") -> Moderado | AG13: =IFERROR(IF(V13="Impacto",(O13-(+O13*Y13)),IF(V13="Probabilidad",O13,"")),"") -> 0.6 | AH13: =IFERROR(IF(OR(AND(AD13="Muy Baja",AF13="Leve"),AND(AD13="Muy Baja",AF13="Menor"),AND(AD13="Baja",AF13="Leve")),"Bajo",IF(OR(AND(AD13="Muy baja",AF13="Moderado"),AND(AD13="Baja",AF13="Menor"),AND(AD13="Baja",AF13="Moderado"),AND(AD13="Media",AF13="Leve"),AND(AD13="Media",AF13="Menor"),AND(AD13="Media",AF13="Moderado"),AND(AD13="Alta",AF13="Leve"),AND(AD13="Alta",AF13="Menor")),"Moderado",IF(OR(AND(AD13="Muy Baja",AF13="Mayor"),AND(AD13="Baja",AF13="Mayor"),AND(AD13="Media",AF13="Mayor"),AND(AD13="Alta",AF13="Moderado"),AND(AD13="Alta",AF13="Mayor"),AND(AD13="Muy Alta",AF13="Leve"),AND(AD13="Muy Alta",AF13="Menor"),AND(AD13="Muy Alta",AF13="Moderado"),AND(AD13="Muy Alta",AF13="Mayor")),"Alto",IF(OR(AND(AD13="Muy Baja",AF13="Catastrófico"),AND(AD13="Baja",AF13="Catastrófico"),AND(AD13="Media",AF13="Catastrófico"),AND(AD13="Alta",AF13="Catastrófico"),AND(AD13="Muy Alta",AF13="Catastrófico")),"Extremo","")))),"") -> Moderado | AI13: Evitar | AN13: Profesional Grupo de Gestión y Desempeño que administra el SGA | AO13: Oficina de Planeación y Gestión Internacional | AP13: Jefe de la Oficina de Planeación y Gestión Internacional | AQ13: 2025-01-15 | AR13: 2025-12-31
A14: 7 | B14: GESTIÓN TALENTO HUMANO | C14: Gestión | D14: Posibilidad de afectacion económico y reputacional por fuga de conocimiento debido a entrega inadecuada del cargo | E14: económico y reputacional | F14: fuga de conocimiento | G14: entrega inadecuada del cargo | H14: Ejecucion y Administracion de procesos | I14: 75 | J14: Media | K14: 0.6 | L14: El riesgo afecta la imagen de alguna área de la organización | M14: =IF(NOT(ISERROR(MATCH(L14,'[5]Tabla Impacto'!#REF!,0))),'[5]Tabla Impacto'!$F$229&"Por favor no seleccionar los criterios de impacto(Afectación Económica o presupuestal y Pérdida Reputacional)",L14) -> El riesgo afecta la imagen de alguna área de la organización | N14: =IF(OR(M14='[5]Tabla Impacto'!$C$11,M14='[5]Tabla Impacto'!$D$11),"Leve",IF(OR(M14='[5]Tabla Impacto'!$C$12,M14='[5]Tabla Impacto'!$D$12),"Menor",IF(OR(M14='[5]Tabla Impacto'!$C$13,M14='[5]Tabla Impacto'!$D$13),"Moderado",IF(OR(M14='[5]Tabla Impacto'!$C$14,M14='[5]Tabla Impacto'!$D$14),"Mayor",IF(OR(M14='[5]Tabla Impacto'!$C$15,M14='[5]Tabla Impacto'!$D$15),"Catastrófico",""))))) -> Leve | O14: 0.2 | P14: Moderado | Q14: 1 | R14: El coordinador del Grupo de Gestión Laboral y Carrera Administrativa realiza la verificación del diligenciamiento del formato de control de documento, de los empleados que ya no harán parte de la carrera administrativa; en caso que no se cuente con el documento se solicitará al jefe inmediato el documento hasta obtener el documento | S14: coordinador del Grupo de Gestión Laboral y Carrera Administrativa | T14: Realizar la verificación del diligenciamiento del formato de control de documento, de los empleados que ya no harán parte de la carrera administrativa | U14: Formato control de documentos para retiro diligenciado y parte de los expedientes | V14: =IF(OR(W14="Preventivo",W14="Detectivo"),"Probabilidad",IF(W14="Correctivo","Impacto","")) -> Probabilidad | W14: Detectivo | X14: Manual | Y14: =IF(AND(W14="Preventivo",X14="Automático"),"50%",IF(AND(W14="Preventivo",X14="Manual"),"40%",IF(AND(W14="Detectivo",X14="Automático"),"40%",IF(AND(W14="Detectivo",X14="Manual"),"30%",IF(AND(W14="Correctivo",X14="Automático"),"35%",IF(AND(W14="Correctivo",X14="Manual"),"25%","")))))) -> 30% | Z14: Documentado | AA14: Continua | AB14: Con Registro | AC14: 0.42 | AD14: Media | AE14: 0.42 | AF14: Leve | AG14: 0.2 | AH14: Moderado | AI14: Evitar | AN14: Julia Felipe Aguilar Arboleda Coordinador Grupo Humanización | AO14: Subdirección de Talento Humano | AP14: Subdirectora de Talento Humano | AQ14: 2025-02-01 | AR14: 2025-12-31
A15: 8 | B15: GESTIÓN DE COMUNICACIONES | C15: Gestión | D15: Posibilidad de afectacion económico y reputacional por Investigaciones penales, fiscales o disciplinarias, aumento de PQRSD debido a baja divulgación y socialización de la temática institucional y sectorial mediante la difusión de información por medio de los diferentes canales de comunicación (internos y externos) | E15: económico y reputacional | F15: Investigaciones penales, fiscales o disciplinarias, aumento de PQRSD | G15: baja divulgación y socialización de la temática institucional y sectorial mediante la difusión de información por medio de los diferentes canales de comunicación (internos y externos) | H15: Ejecucion y Administracion de procesos | I15: 50 | J15: Media | K15: 0.6 | L15: Entre 100 y 500 SMLMV | M15: =IF(NOT(ISERROR(MATCH(L15,'[5]Tabla Impacto'!#REF!,0))),'[5]Tabla Impacto'!$F$229&"Por favor no seleccionar los criterios de impacto(Afectación Económica o presupuestal y Pérdida Reputacional)",L15) -> Entre 100 y 500 SMLMV | N15: =IF(OR(M15='[5]Tabla Impacto'!$C$11,M15='[5]Tabla Impacto'!$D$11),"Leve",IF(OR(M15='[5]Tabla Impacto'!$C$12,M15='[5]Tabla Impacto'!$D$12),"Menor",IF(OR(M15='[5]Tabla Impacto'!$C$13,M15='[5]Tabla Impacto'!$D$13),"Moderado",IF(OR(M15='[5]Tabla Impacto'!$C$14,M15='[5]Tabla Impacto'!$D$14),"Mayor",IF(OR(M15='[5]Tabla Impacto'!$C$15,M15='[5]Tabla Impacto'!$D$15),"Catastrófico",""))))) -> Mayor | O15: 0.8 | P15: Alto | Q15: 1 | R15: La Lider SIG, gestion y calidad, realiza mesas de trabajo al interior del gupo de comunicaciones y prensa, para verificar el cumplimiento de las acciones trazadas para el cumplimiento del objetivo del proceso,información que queda documentada a traves de actas en las mesas de trabajo | S15: Lideo SIG y Gestor de Calidad | T15: Verificar el cumplimiento de las las acciones estratégicas que se realizarán para cumplir los objetivos del proceso | U15: actas que documenten lo tratado en las mesas de trabajo | V15: =IF(OR(W15="Preventivo",W15="Detectivo"),"Probabilidad",IF(W15="Correctivo","Impacto","")) -> Probabilidad | W15: Preventivo | X15: Manual | Y15: =IF(AND(W15="Preventivo",X15="Automático"),"50%",IF(AND(W15="Preventivo",X15="Manual"),"40%",IF(AND(W15="Detectivo",X15="Automático"),"40%",IF(AND(W15="Detectivo",X15="Manual"),"30%",IF(AND(W15="Correctivo",X15="Automático"),"35%",IF(AND(W15="Correctivo",X15="Manual"),"25%","")))))) -> 40% | Z15: Sin Documentar | AA15: Continua | AB15: Con Registro | AC15: 0.36 | AD15: Baja | AE15: 0.36 | AF15: Mayor | AG15: 0.8 | AH15: Alto | AI15: Evitar | AN15: Lideo SIG y Gestor de Calidad | AO15: Grupo de Comunicaciones y Prensa | AP15: Laura Vanessa Gomez Charris | AQ15: 2025-02-01 | AR15: 30/04/2025
A16: 9 | B16: GESTIÓN DE COMUNICACIONES | C16: Gestión | D16: Posibilidad de afectacion económico y reputacional por Demandas de los grupos de valor, partes interesadas, usuarios por incumplimiento de contenga la estrategia institucional a realizar a través de los diferentes canales de comunicación del Ministerio de Minas y Energía debido a Ausencia de un Plan Estratégico de Comunicaciones | E16: económico y reputacional | F16: Demandas de los grupos de valor, partes interesadas, usuarios por incumplimiento de contenga la estrategia institucional a realizar a través de los diferentes canales de comunicación del Ministerio de Minas y Energía | G16: Ausencia de un Plan Estratégico de Comunicaciones | H16: Ejecucion y Administracion de procesos | I16: 50 | J16: Media | K16: =IF(J16="","",IF(J16="Muy Baja",0.2,IF(J16="Baja",0.4,IF(J16="Media",0.6,IF(J16="Alta",0.8,IF(J16="Muy Alta",1,)))))) -> 0.6 | L16: Mayor a 500 SMLMV | M16: =IF(NOT(ISERROR(MATCH(L16,'[5]Tabla Impacto'!#REF!,0))),'[5]Tabla Impacto'!$F$229&"Por favor no seleccionar los criterios de impacto(Afectación Económica o presupuestal y Pérdida Reputacional)",L16) -> Mayor a 500 SMLMV | N16: =IF(OR(M16='[5]Tabla Impacto'!$C$11,M16='[5]Tabla Impacto'!$D$11),"Leve",IF(OR(M16='[5]Tabla Impacto'!$C$12,M16='[5]Tabla Impacto'!$D$12),"Menor",IF(OR(M16='[5]Tabla Impacto'!$C$13,M16='[5]Tabla Impacto'!$D$13),"Moderado",IF(OR(M16='[5]Tabla Impacto'!$C$14,M16='[5]Tabla Impacto'!$D$14),"Mayor",IF(OR(M16='[5]Tabla Impacto'!$C$15,M16='[5]Tabla Impacto'!$D$15),"Catastrófico",""))))) -> Catastrófico | O16: =IF(N16="","",IF(N16="Leve",0.2,IF(N16="Menor",0.4,IF(N16="Moderado",0.6,IF(N16="Mayor",0.8,IF(N16="Catastrófico",1,)))))) -> 1 | P16: =IF(OR(AND(J16="Muy Baja",N16="Leve"),AND(J16="Muy Baja",N16="Menor"),AND(J16="Baja",N16="Leve")),"Bajo",IF(OR(AND(J16="Muy baja",N16="Moderado"),AND(J16="Baja",N16="Menor"),AND(J16="Baja",N16="Moderado"),AND(J16="Media",N16="Leve"),AND(J16="Media",N16="Menor"),AND(J16="Media",N16="Moderado"),AND(J16="Alta",N16="Leve"),AND(J16="Alta",N16="Menor")),"Moderado",IF(OR(AND(J16="Muy Baja",N16="Mayor"),AND(J16="Baja",N16="Mayor"),AND(J16="Media",N16="Mayor"),AND(J16="Alta",N16="Moderado"),AND(J16="Alta",N16="Mayor"),AND(J16="Muy Alta",N16="Leve"),AND(J16="Muy Alta",N16="Menor"),AND(J16="Muy Alta",N16="Moderado"),AND(J16="Muy Alta",N16="Mayor")),"Alto",IF(OR(AND(J16="Muy Baja",N16="Catastrófico"),AND(J16="Baja",N16="Catastrófico"),AND(J16="Media",N16="Catastrófico"),AND(J16="Alta",N16="Catastrófico"),AND(J16="Muy Alta",N16="Catastrófico")),"Extremo","")))) -> Extremo | Q16: 1 | R16: La Lider SIG, gestion y calidad, realiza seguimiento al plan de comunicaciones y verifica el cumplimiento de los indicadores, en caso de encontrar desviaciones en el control, solicita ajustes respectivos | S16: Lideo SIG y Gestor de Calidad | T16: Formulación del plan de comunicaciones Realizar seguimiento al plan de comunicaciones Meición del plan de comunicaciones a través de indicadores | U16: Plan de comunicaciones Seguimientos al plan de comunicaciones Reporte de indicadores | V16: Probabilidad | W16: Preventivo | X16: Manual | Y16: 40% | Z16: Sin Documentar | AA16: Continua | AB16: Con Registro | AC16: =IFERROR(IF(V16="Probabilidad",(K16-(+K16*Y16)),IF(V16="Impacto",K16,"")),"") -> 0.36 | AD16: =IFERROR(IF(AC16="","",IF(AC16<=0.2,"Muy Baja",IF(AC16<=0.4,"Baja",IF(AC16<=0.6,"Media",IF(AC16<=0.8,"Alta","Muy Alta"))))),"") -> Baja | AE16: =+AC16 -> 0.36 | AF16: =IFERROR(IF(AG16="","",IF(AG16<=0.2,"Leve",IF(AG16<=0.4,"Menor",IF(AG16<=0.6,"Moderado",IF(AG16<=0.8,"Mayor","Catastrófico"))))),"") -> Catastrófico | AG16: =IFERROR(IF(V16="Impacto",(O16-(+O16*Y16)),IF(V16="Probabilidad",O16,"")),"") -> 1 | AH16: =IFERROR(IF(OR(AND(AD16="Muy Baja",AF16="Leve"),AND(AD16="Muy Baja",AF16="Menor"),AND(AD16="Baja",AF16="Leve")),"Bajo",IF(OR(AND(AD16="Muy baja",AF16="Moderado"),AND(AD16="Baja",AF16="Menor"),AND(AD16="Baja",AF16="Moderado"),AND(AD16="Media",AF16="Leve"),AND(AD16="Media",AF16="Menor"),AND(AD16="Media",AF16="Moderado"),AND(AD16="Alta",AF16="Leve"),AND(AD16="Alta",AF16="Menor")),"Moderado",IF(OR(AND(AD16="Muy Baja",AF16="Mayor"),AND(AD16="Baja",AF16="Mayor"),AND(AD16="Media",AF16="Mayor"),AND(AD16="Alta",AF16="Moderado"),AND(AD16="Alta",AF16="Mayor"),AND(AD16="Muy Alta",AF16="Leve"),AND(AD16="Muy Alta",AF16="Menor"),AND(AD16="Muy Alta",AF16="Moderado"),AND(AD16="Muy Alta",AF16="Mayor")),"Alto",IF(OR(AND(AD16="Muy Baja",AF16="Catastrófico"),AND(AD16="Baja",AF16="Catastrófico"),AND(AD16="Media",AF16="Catastrófico"),AND(AD16="Alta",AF16="Catastrófico"),AND(AD16="Muy Alta",AF16="Catastrófico")),"Extremo","")))),"") -> Extremo | AI16: Evitar | AN16: Lideo SIG y Gestor de Calidad | AO16: Grupo de Comunicaciones y Prensa | AP16: Laura Vanessa Gomez Charris | AQ16: 2025-02-01 | AR16: 30/04/2025
A17: 10 | B17: GESTIÓN TECNOLÓGICA | C17: Gestión | D17: Posibilidad de afectacion económico y reputacional por Generación de sobrecostos por redundancia de software en sistemas de información y herramientas tecnologías que ya se encuentran en funcionamiento dentro de la infraestructura de la entidad, baja gobernanza sobre la soberanía de datos y aumento de brechas en seguridad. debido a Ausencia de normativas y controles obligatorios para la supervisión y aprobación de adquisiciones y desarrollos tecnológicos por parte del Ministerio y Ausencia de mecanismos de control y seguimiento continuo sobre los contratos TIC, permitiendo su ejecución sin auditoría técnica, financiera y de cumplimiento. | E17: económico y reputacional | F17: Generación de sobrecostos por redundancia de software en sistemas de información y herramientas tecnologías que ya se encuentran en funcionamiento dentro de la infraestructura de la entidad, baja gobernanza sobre la soberanía de datos y aumento de brechas en seguridad. | G17: Ausencia de normativas y controles obligatorios para la supervisión y aprobación de adquisiciones y desarrollos tecnológicos por parte del Ministerio y Ausencia de mecanismos de control y seguimiento continuo sobre los contratos TIC, permitiendo su ejecución sin auditoría técnica, financiera y de cumplimiento. | H17: Ejecucion y Administracion de procesos | I17: 12 | J17: Baja | K17: 0.4 | L17: Entre 100 y 500 SMLMV | M17: =IF(NOT(ISERROR(MATCH(L17,'[5]Tabla Impacto'!#REF!,0))),'[5]Tabla Impacto'!$F$229&"Por favor no seleccionar los criterios de impacto(Afectación Económica o presupuestal y Pérdida Reputacional)",L17) -> Entre 100 y 500 SMLMV | N17: =IF(OR(M17='[5]Tabla Impacto'!$C$11,M17='[5]Tabla Impacto'!$D$11),"Leve",IF(OR(M17='[5]Tabla Impacto'!$C$12,M17='[5]Tabla Impacto'!$D$12),"Menor",IF(OR(M17='[5]Tabla Impacto'!$C$13,M17='[5]Tabla Impacto'!$D$13),"Moderado",IF(OR(M17='[5]Tabla Impacto'!$C$14,M17='[5]Tabla Impacto'!$D$14),"Mayor",IF(OR(M17='[5]Tabla Impacto'!$C$15,M17='[5]Tabla Impacto'!$D$15),"Catastrófico",""))))) -> Mayor | O17: 0.8 | P17: Alto | Q17: 1 | R17: El contratista de segudidad de la información verifica que exista el lineamiento institucional para la adquisición y desarrollos tecnológicos alineados con la estrategia TIC del ministerio, adicionalmente, valida que haya una supervisión y auditoría trimestral a los proyectos tecnológicos en ejecución, verificando cumplimiento, trazabilidad y uso eficiente del presupuesto, igualmente, verifica que inventario de activos de Información se encuentre actualizado, asegurando que toda nueva adquisición o desarrollo sea registrado y gestionado adecuadamente | S17: contratista- Seguridad de la información | T17: 1. Establecer un lineamiento institucional para la adquisición y desarrollos tecnológicos alineados con la estrategia TIC del ministerio. Que cuente con la aprobación del grupo TIC. 2. Supervisar y auditar trimestralmente los proyectos tecnológicos en ejecución, verificando cumplimiento, trazabilidad y uso eficiente del presupuesto. 3. Actualizar y mantener el inventario de activos de Información, asegurando que toda nueva adquisición o desarrollo sea registrado y gestionado adecuadamente. | U17: 1. Lineamiento institucional y actas de aprobación o rechazo de adquisiciones y desarrollos tecnológicos, documentadas en el sistema de gestión del Grupo TIC. 2. Reportes de auditoría trimestral sobre el cumplimiento del procedimiento de supervisión de proyectos TIC, con hallazgos y acciones correctivas. 3. Registro actualizado en el Inventario de Activos de Información, reflejando cada adquisición o desarrollo aprobado, su responsable y estado de uso. | V17: =IF(OR(W17="Preventivo",W17="Detectivo"),"Probabilidad",IF(W17="Correctivo","Impacto","")) -> Probabilidad | W17: Preventivo | X17: Manual | Y17: =IF(AND(W17="Preventivo",X17="Automático"),"50%",IF(AND(W17="Preventivo",X17="Manual"),"40%",IF(AND(W17="Detectivo",X17="Automático"),"40%",IF(AND(W17="Detectivo",X17="Manual"),"30%",IF(AND(W17="Correctivo",X17="Automático"),"35%",IF(AND(W17="Correctivo",X17="Manual"),"25%","")))))) -> 40% | Z17: Sin Documentar | AA17: Continua | AB17: Con Registro | AC17: 0.24 | AD17: Baja | AE17: 0.24 | AF17: Mayor | AG17: 0.8 | AH17: Alto | AI17: Evitar | AJ17: Documentar el procedimiento de adquisición de software o herramientas de tecnología | AK17: Andrés Molano- contratista- Seguridad de la información | AL17: 2025-04-20 | AM17: 2025-06-30 | AN17: contratista- Seguridad de la información | AO17: Grupo de Tecnologías de la Información y las Comunicaciones TICS. | AP17: Andrés Alejandro Ayure- Coordinador Grupo TICS | AQ17: 2025-02-21 | AR17: 2025-12-31
A18: 11 | B18: GESTIÓN TECNOLÓGICA | C18: Gestión | D18: Posibilidad de afectacion económico y reputacional por Retrasos en la ejecución presupuestal, sobrecostos y afectación en la continuidad operativa debido a Ausencia de un mecanismo de planeación estratégica que permita programar con antelación las necesidades tecnológicas y optimizar la ejecución del presupuesto TIC. | E18: económico y reputacional | F18: Retrasos en la ejecución presupuestal, sobrecostos y afectación en la continuidad operativa | G18: Ausencia de un mecanismo de planeación estratégica que permita programar con antelación las necesidades tecnológicas y optimizar la ejecución del presupuesto TIC. | H18: Ejecucion y Administracion de procesos | I18: 2 | J18: Muy Baja | K18: =IF(J18="","",IF(J18="Muy Baja",0.2,IF(J18="Baja",0.4,IF(J18="Media",0.6,IF(J18="Alta",0.8,IF(J18="Muy Alta",1,)))))) -> 0.2 | L18: Entre 100 y 500 SMLMV | M18: =IF(NOT(ISERROR(MATCH(L18,'[5]Tabla Impacto'!#REF!,0))),'[5]Tabla Impacto'!$F$229&"Por favor no seleccionar los criterios de impacto(Afectación Económica o presupuestal y Pérdida Reputacional)",L18) -> Entre 100 y 500 SMLMV | N18: =IF(OR(M18='[5]Tabla Impacto'!$C$11,M18='[5]Tabla Impacto'!$D$11),"Leve",IF(OR(M18='[5]Tabla Impacto'!$C$12,M18='[5]Tabla Impacto'!$D$12),"Menor",IF(OR(M18='[5]Tabla Impacto'!$C$13,M18='[5]Tabla Impacto'!$D$13),"Moderado",IF(OR(M18='[5]Tabla Impacto'!$C$14,M18='[5]Tabla Impacto'!$D$14),"Mayor",IF(OR(M18='[5]Tabla Impacto'!$C$15,M18='[5]Tabla Impacto'!$D$15),"Catastrófico",""))))) -> Mayor | O18: =IF(N18="","",IF(N18="Leve",0.2,IF(N18="Menor",0.4,IF(N18="Moderado",0.6,IF(N18="Mayor",0.8,IF(N18="Catastrófico",1,)))))) -> 0.8 | P18: =IF(OR(AND(J18="Muy Baja",N18="Leve"),AND(J18="Muy Baja",N18="Menor"),AND(J18="Baja",N18="Leve")),"Bajo",IF(OR(AND(J18="Muy baja",N18="Moderado"),AND(J18="Baja",N18="Menor"),AND(J18="Baja",N18="Moderado"),AND(J18="Media",N18="Leve"),AND(J18="Media",N18="Menor"),AND(J18="Media",N18="Moderado"),AND(J18="Alta",N18="Leve"),AND(J18="Alta",N18="Menor")),"Moderado",IF(OR(AND(J18="Muy Baja",N18="Mayor"),AND(J18="Baja",N18="Mayor"),AND(J18="Media",N18="Mayor"),AND(J18="Alta",N18="Moderado"),AND(J18="Alta",N18="Mayor"),AND(J18="Muy Alta",N18="Leve"),AND(J18="Muy Alta",N18="Menor"),AND(J18="Muy Alta",N18="Moderado"),AND(J18="Muy Alta",N18="Mayor")),"Alto",IF(OR(AND(J18="Muy Baja",N18="Catastrófico"),AND(J18="Baja",N18="Catastrófico"),AND(J18="Media",N18="Catastrófico"),AND(J18="Alta",N18="Catastrófico"),AND(J18="Muy Alta",N18="Catastrófico")),"Extremo","")))) -> Alto | Q18: 1 | R18: El funcionario del Grupo TICs, verifica que se realice el cumplimiento del cronograma anual de contrataciones TIC, que este se encuentre actualizado para que garantice la optimización del presupuesto y la oportunidad en las compras; adicionalmente, realiza control y seguimiento a los contratos TIC suscritos | S18: Funcionario | T18: 1. Implementar un cronograma anual de contrataciones TIC alineado con el presupuesto y las necesidades operativas del ministerio. 2. Actualizar y mantener un plan de adquisiciones tecnológicas que garantice la optimización del presupuesto y la oportunidad en las compras. 3. Control y seguimiento trimestralmente los contratos TIC, verificando entregables, costos y calidad de los productos adquiridos. | U18: 1. Plan Anual de Contrataciones TIC, con cronogramas de ejecución y seguimiento. 2. Registro actualizado en el sistema de adquisiciones TIC, reflejando el estado de cada proceso de contratación. 3. Informes de calidad de cierre | V18: Probabilidad | W18: Preventivo | X18: Manual | Y18: 40% | Z18: Documentado | AA18: Continua | AB18: Con Registro | AC18: =IFERROR(IF(V18="Probabilidad",(K18-(+K18*Y18)),IF(V18="Impacto",K18,"")),"") -> 0.12 | AD18: =IFERROR(IF(AC18="","",IF(AC18<=0.2,"Muy Baja",IF(AC18<=0.4,"Baja",IF(AC18<=0.6,"Media",IF(AC18<=0.8,"Alta","Muy Alta"))))),"") -> Muy Baja | AE18: =+AC18 -> 0.12 | AF18: =IFERROR(IF(AG18="","",IF(AG18<=0.2,"Leve",IF(AG18<=0.4,"Menor",IF(AG18<=0.6,"Moderado",IF(AG18<=0.8,"Mayor","Catastrófico"))))),"") -> Mayor | AG18: =IFERROR(IF(V18="Impacto",(O18-(+O18*Y18)),IF(V18="Probabilidad",O18,"")),"") -> 0.8 | AH18: =IFERROR(IF(OR(AND(AD18="Muy Baja",AF18="Leve"),AND(AD18="Muy Baja",AF18="Menor"),AND(AD18="Baja",AF18="Leve")),"Bajo",IF(OR(AND(AD18="Muy baja",AF18="Moderado"),AND(AD18="Baja",AF18="Menor"),AND(AD18="Baja",AF18="Moderado"),AND(AD18="Media",AF18="Leve"),AND(AD18="Media",AF18="Menor"),AND(AD18="Media",AF18="Moderado"),AND(AD18="Alta",AF18="Leve"),AND(AD18="Alta",AF18="Menor")),"Moderado",IF(OR(AND(AD18="Muy Baja",AF18="Mayor"),AND(AD18="Baja",AF18="Mayor"),AND(AD18="Media",AF18="Mayor"),AND(AD18="Alta",AF18="Moderado"),AND(AD18="Alta",AF18="Mayor"),AND(AD18="Muy Alta",AF18="Leve"),AND(AD18="Muy Alta",AF18="Menor"),AND(AD18="Muy Alta",AF18="Moderado"),AND(AD18="Muy Alta",AF18="Mayor")),"Alto",IF(OR(AND(AD18="Muy Baja",AF18="Catastrófico"),AND(AD18="Baja",AF18="Catastrófico"),AND(AD18="Media",AF18="Catastrófico"),AND(AD18="Alta",AF18="Catastrófico"),AND(AD18="Muy Alta",AF18="Catastrófico")),"Extremo","")))),"") -> Alto | AI18: Evitar | AN18: Funcionario | AO18: Grupo de Tecnologías de la Información y las Comunicaciones TICS. | AP18: Andrés Alejandro Ayure- Coordinador Grupo TICS | AQ18: 2025-02-21 | AR18: 2025-12-31
A19: 12 | B19: GESTIÓN TECNOLÓGICA | C19: Gestión | D19: Posibilidad de afectacion económico y reputacional por Generación de sobrecostos y desperdicio de recursos TIC debido a la falta de monitoreo y optimización de la infraestructura tecnológica del ministerio, lo que impacta la eficiencia operativa y la sostenibilidad del gasto. debido a Ausencia de un proceso de gestión, monitoreo y optimización de la infraestructura tecnológica, permitiendo el subuso, sobrecarga o inadecuada distribución de los recursos TIC. | E19: económico y reputacional | F19: Generación de sobrecostos y desperdicio de recursos TIC debido a la falta de monitoreo y optimización de la infraestructura tecnológica del ministerio, lo que impacta la eficiencia operativa y la sostenibilidad del gasto. | G19: Ausencia de un proceso de gestión, monitoreo y optimización de la infraestructura tecnológica, permitiendo el subuso, sobrecarga o inadecuada distribución de los recursos TIC. | H19: Ejecucion y Administracion de procesos | I19: 2 | J19: Muy Baja | K19: 0.2 | L19: Entre 50 y 100 SMLMV | M19: =IF(NOT(ISERROR(MATCH(L19,'[5]Tabla Impacto'!#REF!,0))),'[5]Tabla Impacto'!$F$229&"Por favor no seleccionar los criterios de impacto(Afectación Económica o presupuestal y Pérdida Reputacional)",L19) -> Entre 50 y 100 SMLMV | N19: =IF(OR(M19='[5]Tabla Impacto'!$C$11,M19='[5]Tabla Impacto'!$D$11),"Leve",IF(OR(M19='[5]Tabla Impacto'!$C$12,M19='[5]Tabla Impacto'!$D$12),"Menor",IF(OR(M19='[5]Tabla Impacto'!$C$13,M19='[5]Tabla Impacto'!$D$13),"Moderado",IF(OR(M19='[5]Tabla Impacto'!$C$14,M19='[5]Tabla Impacto'!$D$14),"Mayor",IF(OR(M19='[5]Tabla Impacto'!$C$15,M19='[5]Tabla Impacto'!$D$15),"Catastrófico",""))))) -> Moderado | O19: 0.6 | P19: Moderado | Q19: 1 | R19: El contratista de infraestuctura tecnológica valida trimestralmente la capacidad y carga de la infraestructura, optimizando su uso antes de realizar nuevas adquisiciones; en caso de encontrar desviaciones procede a la informar lo encontrado para ajustar los recursos | S19: Contratista- Infraestructura tecnológica | T19: Supervisar trimestralmente la capacidad y carga de la infraestructura, optimizando su uso antes de realizar nuevas adquisiciones; en caso de encontrar desviaciones procede a la informar | U19: Actas de auditoría y revisión de capacidad, identificando necesidades reales de adquisición o ajuste de recursos. | V19: Probabilidad | W19: Preventivo | X19: Manual | Y19: 40% | Z19: Documentado | AA19: Continua | AB19: Con Registro | AC19: 0.12 | AD19: Muy Baja | AE19: 0.12 | AF19: Moderado | AG19: 0.6 | AH19: Moderado | AI19: Evitar | AN19: Contratista- Infraestructura tecnológica | AO19: Grupo de Tecnologías de la Información y las Comunicaciones TICS. | AP19: Andrés Alejandro Ayure- Coordinador Grupo TICS | AQ19: 2025-02-21 | AR19: 2025-12-31
A20: 13 | B20: GESTIÓN DEL CONOCIMIENTO, LA INFORMACIÓN Y LA INNOVACIÓN | C20: Gestión | D20: Posibilidad de afectacion económico y reputacional por Pérdida de conocimiento estratégico debido a baja capacidad de transferencia y difusión del conocimiento en los procesos llevados a cabo dentro del Ministerio | E20: económico y reputacional | F20: Pérdida de conocimiento estratégico | G20: baja capacidad de transferencia y difusión del conocimiento en los procesos llevados a cabo dentro del Ministerio | H20: Ejecucion y Administracion de procesos | I20: 10 | J20: Baja | K20: =IF(J20="","",IF(J20="Muy Baja",0.2,IF(J20="Baja",0.4,IF(J20="Media",0.6,IF(J20="Alta",0.8,IF(J20="Muy Alta",1,)))))) -> 0.4 | L20: El riesgo afecta la imagen de la entidad a nivel nacional, con efecto publicitarios sostenible a nivel país | M20: =IF(NOT(ISERROR(MATCH(L20,'[5]Tabla Impacto'!#REF!,0))),'[5]Tabla Impacto'!$F$229&"Por favor no seleccionar los criterios de impacto(Afectación Económica o presupuestal y Pérdida Reputacional)",L20) -> El riesgo afecta la imagen de la entidad a nivel nacional, con efecto publicitarios sostenible a nivel país | N20: =IF(OR(M20='[5]Tabla Impacto'!$C$11,M20='[5]Tabla Impacto'!$D$11),"Leve",IF(OR(M20='[5]Tabla Impacto'!$C$12,M20='[5]Tabla Impacto'!$D$12),"Menor",IF(OR(M20='[5]Tabla Impacto'!$C$13,M20='[5]Tabla Impacto'!$D$13),"Moderado",IF(OR(M20='[5]Tabla Impacto'!$C$14,M20='[5]Tabla Impacto'!$D$14),"Mayor",IF(OR(M20='[5]Tabla Impacto'!$C$15,M20='[5]Tabla Impacto'!$D$15),"Catastrófico",""))))) -> Catastrófico | O20: =IF(N20="","",IF(N20="Leve",0.2,IF(N20="Menor",0.4,IF(N20="Moderado",0.6,IF(N20="Mayor",0.8,IF(N20="Catastrófico",1,)))))) -> 1 | P20: =IF(OR(AND(J20="Muy Baja",N20="Leve"),AND(J20="Muy Baja",N20="Menor"),AND(J20="Baja",N20="Leve")),"Bajo",IF(OR(AND(J20="Muy baja",N20="Moderado"),AND(J20="Baja",N20="Menor"),AND(J20="Baja",N20="Moderado"),AND(J20="Media",N20="Leve"),AND(J20="Media",N20="Menor"),AND(J20="Media",N20="Moderado"),AND(J20="Alta",N20="Leve"),AND(J20="Alta",N20="Menor")),"Moderado",IF(OR(AND(J20="Muy Baja",N20="Mayor"),AND(J20="Baja",N20="Mayor"),AND(J20="Media",N20="Mayor"),AND(J20="Alta",N20="Moderado"),AND(J20="Alta",N20="Mayor"),AND(J20="Muy Alta",N20="Leve"),AND(J20="Muy Alta",N20="Menor"),AND(J20="Muy Alta",N20="Moderado"),AND(J20="Muy Alta",N20="Mayor")),"Alto",IF(OR(AND(J20="Muy Baja",N20="Catastrófico"),AND(J20="Baja",N20="Catastrófico"),AND(J20="Media",N20="Catastrófico"),AND(J20="Alta",N20="Catastrófico"),AND(J20="Muy Alta",N20="Catastrófico")),"Extremo","")))) -> Extremo | Q20: 1 | R20: El grupo de Comunicaciones, realiza la formulación del plan de comunicaciones, posteriormente realizar seguimiento al plan, a través de reuniones que documentan los trabajado en las mesas de trabajo | S20: Contratista encargado de los procesos de gestión del conocimiento y la innovación delegado por la Subdirectora de Talento Humano Subdirectora de Talento Humano | T20: Formular, aprobar y ejecutar un plan de trabajo que logre identificar y evitar la pérdida de conocimiento estratégico del ministerio, el plan contiene acciones de transferencia y difusión del conocimiento Realizar actividades de seguimiento al plan establecido; en caso de encontrar desviaciones en la ejecución del plan se tomarán acciones correctivas para lograr el objetivo del plan | U20: Diagnóstico del estado de la información Estadísticas Documentos word y excel Elementos de comunicación estratégica | V20: =IF(OR(W20="Preventivo",W20="Detectivo"),"Probabilidad",IF(W20="Correctivo","Impacto","")) -> Probabilidad | W20: Preventivo | X20: Manual | Y20: =IF(AND(W20="Preventivo",X20="Automático"),"50%",IF(AND(W20="Preventivo",X20="Manual"),"40%",IF(AND(W20="Detectivo",X20="Automático"),"40%",IF(AND(W20="Detectivo",X20="Manual"),"30%",IF(AND(W20="Correctivo",X20="Automático"),"35%",IF(AND(W20="Correctivo",X20="Manual"),"25%","")))))) -> 40% | Z20: Sin Documentar | AA20: Continua | AB20: Con Registro | AC20: =IFERROR(IF(V20="Probabilidad",(K20-(+K20*Y20)),IF(V20="Impacto",K20,"")),"") -> 0.24 | AD20: =IFERROR(IF(AC20="","",IF(AC20<=0.2,"Muy Baja",IF(AC20<=0.4,"Baja",IF(AC20<=0.6,"Media",IF(AC20<=0.8,"Alta","Muy Alta"))))),"") -> Baja | AE20: =+AC20 -> 0.24 | AF20: =IFERROR(IF(AG20="","",IF(AG20<=0.2,"Leve",IF(AG20<=0.4,"Menor",IF(AG20<=0.6,"Moderado",IF(AG20<=0.8,"Mayor","Catastrófico"))))),"") -> Catastrófico | AG20: =IFERROR(IF(V20="Impacto",(O20-(+O20*Y20)),IF(V20="Probabilidad",O20,"")),"") -> 1 | AH20: =IFERROR(IF(OR(AND(AD20="Muy Baja",AF20="Leve"),AND(AD20="Muy Baja",AF20="Menor"),AND(AD20="Baja",AF20="Leve")),"Bajo",IF(OR(AND(AD20="Muy baja",AF20="Moderado"),AND(AD20="Baja",AF20="Menor"),AND(AD20="Baja",AF20="Moderado"),AND(AD20="Media",AF20="Leve"),AND(AD20="Media",AF20="Menor"),AND(AD20="Media",AF20="Moderado"),AND(AD20="Alta",AF20="Leve"),AND(AD20="Alta",AF20="Menor")),"Moderado",IF(OR(AND(AD20="Muy Baja",AF20="Mayor"),AND(AD20="Baja",AF20="Mayor"),AND(AD20="Media",AF20="Mayor"),AND(AD20="Alta",AF20="Moderado"),AND(AD20="Alta",AF20="Mayor"),AND(AD20="Muy Alta",AF20="Leve"),AND(AD20="Muy Alta",AF20="Menor"),AND(AD20="Muy Alta",AF20="Moderado"),AND(AD20="Muy Alta",AF20="Mayor")),"Alto",IF(OR(AND(AD20="Muy Baja",AF20="Catastrófico"),AND(AD20="Baja",AF20="Catastrófico"),AND(AD20="Media",AF20="Catastrófico"),AND(AD20="Alta",AF20="Catastrófico"),AND(AD20="Muy Alta",AF20="Catastrófico")),"Extremo","")))),"") -> Extremo | AI20: Evitar | AN20: Contratista encargado de los procesos de gestión del conocimiento y la innovación delegado por la Subdirectora de Talento Humano | AO20: Subdirección de Talento Humano | AP20: Subdirectora de Talento Humano | AQ20: 2025-02-01 | AR20: 2025-12-31
A21: 14 | B21: GESTIÓN JURÍDICA | C21: Gestión | D21: Posibilidad de afectacion económico por sanciones de entes de control por imposibilidad de realizar el cobro del título ejecutivo debido a incumplimiento de las caracteristicas legales que soporten la exigibilidad del título | E21: económico | F21: sanciones de entes de control por imposibilidad de realizar el cobro del título ejecutivo | G21: incumplimiento de las caracteristicas legales que soporten la exigibilidad del título | H21: Ejecucion y Administracion de procesos | I21: 80 | J21: Media | K21: 0.6 | L21: Entre 100 y 500 SMLMV | M21: =IF(NOT(ISERROR(MATCH(L21,'[5]Tabla Impacto'!#REF!,0))),'[5]Tabla Impacto'!$F$229&"Por favor no seleccionar los criterios de impacto(Afectación Económica o presupuestal y Pérdida Reputacional)",L21) -> Entre 100 y 500 SMLMV | N21: =IF(OR(M21='[5]Tabla Impacto'!$C$11,M21='[5]Tabla Impacto'!$D$11),"Leve",IF(OR(M21='[5]Tabla Impacto'!$C$12,M21='[5]Tabla Impacto'!$D$12),"Menor",IF(OR(M21='[5]Tabla Impacto'!$C$13,M21='[5]Tabla Impacto'!$D$13),"Moderado",IF(OR(M21='[5]Tabla Impacto'!$C$14,M21='[5]Tabla Impacto'!$D$14),"Mayor",IF(OR(M21='[5]Tabla Impacto'!$C$15,M21='[5]Tabla Impacto'!$D$15),"Catastrófico",""))))) -> Mayor | O21: 0.8 | P21: Alto | Q21: 1 | R21: El profesional a cargo del proceso, verifica los requisitos del Título Ejecutivo (Claro, Expreso y Exigible) y que cuente con los anexos soporte del mismo (Actos Administrativos y certificación de ejecutoria). El profesional certifica expresamente el cumplimiento o no de requisitos y envía al Coordinador del grupo el proyecto de Auto de Avocar Conocimiento o el proyecto de Memorando devolutivo al área de origen, para que subsane | S21: Profesional | T21: Verifica el cumplimiento de los requisitos del Titulo Ejecutivo en caractríticas legales tales como: claro, expreso y exigible con sus anexos soporte que se encuentran descritos, para que su cobro sea jurídicamente viable. | U21: Correo electrónico de cumplimiento de requisitos legales (sábana) | V21: Probabilidad | W21: Preventivo | X21: Manual | Y21: =IF(AND(W21="Preventivo",X21="Automático"),"50%",IF(AND(W21="Preventivo",X21="Manual"),"40%",IF(AND(W21="Detectivo",X21="Automático"),"40%",IF(AND(W21="Detectivo",X21="Manual"),"30%",IF(AND(W21="Correctivo",X21="Automático"),"35%",IF(AND(W21="Correctivo",X21="Manual"),"25%","")))))) -> 40% | Z21: Sin Documentar | AA21: Continua | AB21: Con Registro | AC21: 0.36 | AD21: Baja | AE21: 0.36 | AF21: Mayor | AG21: 0.8 | AH21: Alto | AI21: Evitar | AJ21: Revisar la Resolución 90430 de 2014 expedida por el Ministerio, con el fin de verificar la necesidad de iniciar un proceso de actualización al Manual de Recaudo de Cartera del Ministerio de Minas y Energía, proceso que culmina con la presentación para aprobación y firma del Sr. Ministro, de un proyecto de Resolución | AK21: Abogado Profesional del grupo coactivos | AL21: 2025-06-30 | AM21: 2025-08-30 | AN21: Abogado Profesional del grupo coactivos | AO21: Grupo de Jurisdicción Coactiva de Secretaría General | AP21: Lelis Francisco Forero | AQ21: 2025-02-21 | AR21: 31/02/2025
A22: 15 | B22: GESTIÓN JURÍDICA | C22: Gestión | D22: Posibilidad de afectacion reputacional por emitir conceptos jurídicos erróneos, demandas, sanciones y multas debido a a la falta de claridad en la solicitud o que ésta abarque varios temas misionales | E22: reputacional | F22: emitir conceptos jurídicos erróneos, demandas, sanciones y multas | G22: a la falta de claridad en la solicitud o que ésta abarque varios temas misionales | H22: Usuarios, productos y practicas , organizacionales | I22: 36 | J22: Media | K22: =IF(J22="","",IF(J22="Muy Baja",0.2,IF(J22="Baja",0.4,IF(J22="Media",0.6,IF(J22="Alta",0.8,IF(J22="Muy Alta",1,)))))) -> 0.6 | L22: El riesgo afecta la imagen de de la entidad con efecto publicitario sostenido a nivel de sector administrativo, nivel departamental o municipal | M22: =IF(NOT(ISERROR(MATCH(L22,'[5]Tabla Impacto'!#REF!,0))),'[5]Tabla Impacto'!$F$229&"Por favor no seleccionar los criterios de impacto(Afectación Económica o presupuestal y Pérdida Reputacional)",L22) -> El riesgo afecta la imagen de de la entidad con efecto publicitario sostenido a nivel de sector administrativo, nivel departamental o municipal | N22: =IF(OR(M22='[5]Tabla Impacto'!$C$11,M22='[5]Tabla Impacto'!$D$11),"Leve",IF(OR(M22='[5]Tabla Impacto'!$C$12,M22='[5]Tabla Impacto'!$D$12),"Menor",IF(OR(M22='[5]Tabla Impacto'!$C$13,M22='[5]Tabla Impacto'!$D$13),"Moderado",IF(OR(M22='[5]Tabla Impacto'!$C$14,M22='[5]Tabla Impacto'!$D$14),"Mayor",IF(OR(M22='[5]Tabla Impacto'!$C$15,M22='[5]Tabla Impacto'!$D$15),"Catastrófico",""))))) -> Mayor | O22: =IF(N22="","",IF(N22="Leve",0.2,IF(N22="Menor",0.4,IF(N22="Moderado",0.6,IF(N22="Mayor",0.8,IF(N22="Catastrófico",1,)))))) -> 0.8 | P22: =IF(OR(AND(J22="Muy Baja",N22="Leve"),AND(J22="Muy Baja",N22="Menor"),AND(J22="Baja",N22="Leve")),"Bajo",IF(OR(AND(J22="Muy baja",N22="Moderado"),AND(J22="Baja",N22="Menor"),AND(J22="Baja",N22="Moderado"),AND(J22="Media",N22="Leve"),AND(J22="Media",N22="Menor"),AND(J22="Media",N22="Moderado"),AND(J22="Alta",N22="Leve"),AND(J22="Alta",N22="Menor")),"Moderado",IF(OR(AND(J22="Muy Baja",N22="Mayor"),AND(J22="Baja",N22="Mayor"),AND(J22="Media",N22="Mayor"),AND(J22="Alta",N22="Moderado"),AND(J22="Alta",N22="Mayor"),AND(J22="Muy Alta",N22="Leve"),AND(J22="Muy Alta",N22="Menor"),AND(J22="Muy Alta",N22="Moderado"),AND(J22="Muy Alta",N22="Mayor")),"Alto",IF(OR(AND(J22="Muy Baja",N22="Catastrófico"),AND(J22="Baja",N22="Catastrófico"),AND(J22="Media",N22="Catastrófico"),AND(J22="Alta",N22="Catastrófico"),AND(J22="Muy Alta",N22="Catastrófico")),"Extremo","")))) -> Alto | Q22: 1 | R22: El profesional o contratista de la Oficina Asesora Jurídica El coordinador del área, revisa las consultas para establecer que su contenido sea claro o que no abarque varios temas misionales. Si los contenidos no son claros, se solicita al usuario precisar su consulta a través de comunicación escrita, si es claro se da curso a la respuesta. En caso que la línea o temática donde este el concepto esta en construcción, el Coordinador del área dará lineamientos para respuesta al concepto. Una vez proyectado el concepto, el coordinador aprueba la proyección del concepto o devuelve a profesional | S22: El profesional o contratista de la Oficina Asesora Jurídica El coordinador del área | T22: Revisar las consultas para establecer que su contenido sea claro o que no abarque varios temas misionales. Si los contenidos no son claros, se solicita al usuario precisar su consulta a través de comunicación escrita, si es claro se da curso a la respuesta. Dar lineamientos para respuesta al concepto para líneas temáticas en construcción Revisar y aprobar la proyección del concepto | U22: Respuesta a las consultas Alcance de las consultas | V22: Probabilidad | W22: Preventivo | X22: Manual | Y22: =IF(AND(W22="Preventivo",X22="Automático"),"50%",IF(AND(W22="Preventivo",X22="Manual"),"40%",IF(AND(W22="Detectivo",X22="Automático"),"40%",IF(AND(W22="Detectivo",X22="Manual"),"30%",IF(AND(W22="Correctivo",X22="Automático"),"35%",IF(AND(W22="Correctivo",X22="Manual"),"25%","")))))) -> 40% | Z22: Documentado | AA22: Continua | AB22: Con Registro | AC22: 0.36 | AD22: Baja | AE22: 0.36 | AF22: Mayor | AG22: 0.8 | AH22: Alto | AI22: Evitar | AN22: Claudia Milena Valera Profesional Especializado | AO22: Oficina Asesora Jurídica | AP22: Jefe Oficina Asesora Jurídica | AQ22: 2025-02-21 | AR22: 31/02/2025
A23: 16 | B23: GESTIÓN JURÍDICA | C23: Gestión | D23: =IF(C23="Fiscal",_xlfn.CONCAT("Posibilidad de efectos dañosos sobre bienes públicos "," por o para ",F23," debido a ",G23),IF(C23="Gestión",_xlfn.CONCAT("Posibilidad de afectacion ",E23," por ",F23," debido a ",G23),"")) -> Posibilidad de afectacion económico y reputacional por fallos en contra debido a actuaciones procesales presentadas fuera de los términos legales | E23: económico y reputacional | F23: fallos en contra | G23: actuaciones procesales presentadas fuera de los términos legales | H23: Ejecucion y Administracion de procesos | I23: 100 | J23: =IF(I23<=0,"",IF(I23<=2,"Muy Baja",IF(I23<=5,"Baja",IF(I23<=19,"Media",IF(I23<=50,"Alta","Muy Alta"))))) -> Muy Alta | K23: 1 | L23: El riesgo afecta la imagen de de la entidad con efecto publicitario sostenido a nivel de sector administrativo, nivel departamental o municipal | M23: =IF(NOT(ISERROR(MATCH(L23,'[6]Tabla Impacto'!$B$221:$B$223,0))),'[6]Tabla Impacto'!$F$223&"Por favor no seleccionar los criterios de impacto(Afectación Económica o presupuestal y Pérdida Reputacional)",L23) -> El riesgo afecta la imagen de de la entidad con efecto publicitario sostenido a nivel de sector administrativo, nivel departamental o municipal | N23: =IF(OR(M23='[6]Tabla Impacto'!$C$11,M23='[6]Tabla Impacto'!$D$11),"Leve",IF(OR(M23='[6]Tabla Impacto'!$C$12,M23='[6]Tabla Impacto'!$D$12),"Menor",IF(OR(M23='[6]Tabla Impacto'!$C$13,M23='[6]Tabla Impacto'!$D$13),"Moderado",IF(OR(M23='[6]Tabla Impacto'!$C$14,M23='[6]Tabla Impacto'!$D$14),"Mayor",IF(OR(M23='[6]Tabla Impacto'!$C$15,M23='[6]Tabla Impacto'!$D$15),"Catastrófico",""))))) -> Mayor | O23: 0.8 | P23: Alto | Q23: 1 | R23: El profesional o contratista de la Oficina Asesora Jurídica a cargo del proceso, realiza seguimiento y verificación del cumplimiento de términos legales, apoyándose en los informes del contratista de seguimiento de procesos y la herramienta de consulta de procesos de la rama judicial | S23: El profesional o contratista de la Oficina Asesora Jurídica a cargo del proceso | T23: Realizar seguimiento y verificación del cumplimiento de términos legales que eviten actuaciones fuera de los términos, teniendo en cuenta el aplicativo de la rama judicial que permita hacer la verificación respectiva | U23: Informes de seguimiento a procesos Verificación aplicativo rama judicial | V23: Probabilidad | W23: Preventivo | X23: Manual | Y23: =IF(AND(W23="Preventivo",X23="Automático"),"50%",IF(AND(W23="Preventivo",X23="Manual"),"40%",IF(AND(W23="Detectivo",X23="Automático"),"40%",IF(AND(W23="Detectivo",X23="Manual"),"30%",IF(AND(W23="Correctivo",X23="Automático"),"35%",IF(AND(W23="Correctivo",X23="Manual"),"25%","")))))) -> 40% | Z23: Documentado | AA23: Continua | AB23: Con Registro | AC23: 0.6 | AD23: Media | AE23: 0.6 | AF23: Mayor | AG23: 0.8 | AH23: Alto | AI23: Evitar | AN23: Claudia Milena Valera Profesional Especializado | AO23: Oficina Asesora Jurídica | AP23: Jefe Oficina Asesora Jurídica | AQ23: 2025-02-21 | AR23: 31/02/2025
A24: 17 | B24: GESTIÓN JURÍDICA | C24: Gestión | D24: Posibilidad de afectacion reputacional por expedición de actos administrativos ilegales debido a fallas en control de legalidad | E24: reputacional | F24: expedición de actos administrativos ilegales | G24: fallas en control de legalidad | H24: Ejecucion y Administracion de procesos | I24: 120 | J24: Muy Alta | K24: 1 | L24: El riesgo afecta la imagen de de la entidad con efecto publicitario sostenido a nivel de sector administrativo, nivel departamental o municipal | M24: =IF(NOT(ISERROR(MATCH(L24,'[6]Tabla Impacto'!$B$221:$B$223,0))),'[6]Tabla Impacto'!$F$223&"Por favor no seleccionar los criterios de impacto(Afectación Económica o presupuestal y Pérdida Reputacional)",L24) -> El riesgo afecta la imagen de de la entidad con efecto publicitario sostenido a nivel de sector administrativo, nivel departamental o municipal | N24: =IF(OR(M24='[6]Tabla Impacto'!$C$11,M24='[6]Tabla Impacto'!$D$11),"Leve",IF(OR(M24='[6]Tabla Impacto'!$C$12,M24='[6]Tabla Impacto'!$D$12),"Menor",IF(OR(M24='[6]Tabla Impacto'!$C$13,M24='[6]Tabla Impacto'!$D$13),"Moderado",IF(OR(M24='[6]Tabla Impacto'!$C$14,M24='[6]Tabla Impacto'!$D$14),"Mayor",IF(OR(M24='[6]Tabla Impacto'!$C$15,M24='[6]Tabla Impacto'!$D$15),"Catastrófico",""))))) -> Mayor | O24: 0.8 | P24: Alto | Q24: 1 | R24: El profesional o contratista de la Oficina Asesora Jurídica, revisa la legalidad de los actos administrativos dentro del proceso de actuación administrativa en concordancia con el procedimiento de revisión de actos administrativos que hace parte de la documentación del Sistema de Gestión de a Calidad del Minenergía | S24: El profesional o contratista de la Oficina Asesora Jurídica | T24: Revisar la legalidad de los actos administrativos dentro del proceso de actuación administrativa en concordancia con el procedimiento de revisión de actos administrativos que hace parte de la documentación del Sistema de Gestión de a Calidad del Minenergía o aquel que lo modifique o sustituya | U24: Carpeta de actos administrativos | V24: Probabilidad | W24: Preventivo | X24: Manual | Y24: 40% | Z24: Documentado | AA24: Continua | AB24: Con Registro | AC24: 0.6 | AD24: Media | AE24: 0.6 | AF24: Mayor | AG24: 0.8 | AH24: Alto | AI24: Evitar | AN24: Claudia Milena Valera Profesional Especializado | AO24: Oficina Asesora Jurídica | AP24: Jefe Oficina Asesora Jurídica | AQ24: 2025-02-21 | AR24: 31/02/2025
A25: 18 | B25: GESTIÓN DOCUMENTAL | C25: Gestión | D25: Posibilidad de afectacion reputacional por Incumplimiento a los lineamientos de manejo y organización documental debido a Que los funcionarios encargados en las distintas áreas no aplican Manual de Organización Documental Archivos de Gestion y Transferencias Documentales Primarias | E25: reputacional | F25: Incumplimiento a los lineamientos de manejo y organización documental | G25: Que los funcionarios encargados en las distintas áreas no aplican Manual de Organización Documental Archivos de Gestion y Transferencias Documentales Primarias | H25: Ejecucion y Administracion de procesos | I25: 12 | J25: Baja | K25: =IF(J25="","",IF(J25="Muy Baja",0.2,IF(J25="Baja",0.4,IF(J25="Media",0.6,IF(J25="Alta",0.8,IF(J25="Muy Alta",1,)))))) -> 0.4 | L25: El riesgo afecta la imagen de la entidad con algunos usuarios de relevancia frente al logro de los objetivos | M25: =IF(NOT(ISERROR(MATCH(L25,'[5]Tabla Impacto'!#REF!,0))),'[5]Tabla Impacto'!$F$229&"Por favor no seleccionar los criterios de impacto(Afectación Económica o presupuestal y Pérdida Reputacional)",L25) -> El riesgo afecta la imagen de la entidad con algunos usuarios de relevancia frente al logro de los objetivos | N25: =IF(OR(M25='[5]Tabla Impacto'!$C$11,M25='[5]Tabla Impacto'!$D$11),"Leve",IF(OR(M25='[5]Tabla Impacto'!$C$12,M25='[5]Tabla Impacto'!$D$12),"Menor",IF(OR(M25='[5]Tabla Impacto'!$C$13,M25='[5]Tabla Impacto'!$D$13),"Moderado",IF(OR(M25='[5]Tabla Impacto'!$C$14,M25='[5]Tabla Impacto'!$D$14),"Mayor",IF(OR(M25='[5]Tabla Impacto'!$C$15,M25='[5]Tabla Impacto'!$D$15),"Catastrófico",""))))) -> Moderado | O25: =IF(N25="","",IF(N25="Leve",0.2,IF(N25="Menor",0.4,IF(N25="Moderado",0.6,IF(N25="Mayor",0.8,IF(N25="Catastrófico",1,)))))) -> 0.6 | P25: =IF(OR(AND(J25="Muy Baja",N25="Leve"),AND(J25="Muy Baja",N25="Menor"),AND(J25="Baja",N25="Leve")),"Bajo",IF(OR(AND(J25="Muy baja",N25="Moderado"),AND(J25="Baja",N25="Menor"),AND(J25="Baja",N25="Moderado"),AND(J25="Media",N25="Leve"),AND(J25="Media",N25="Menor"),AND(J25="Media",N25="Moderado"),AND(J25="Alta",N25="Leve"),AND(J25="Alta",N25="Menor")),"Moderado",IF(OR(AND(J25="Muy Baja",N25="Mayor"),AND(J25="Baja",N25="Mayor"),AND(J25="Media",N25="Mayor"),AND(J25="Alta",N25="Moderado"),AND(J25="Alta",N25="Mayor"),AND(J25="Muy Alta",N25="Leve"),AND(J25="Muy Alta",N25="Menor"),AND(J25="Muy Alta",N25="Moderado"),AND(J25="Muy Alta",N25="Mayor")),"Alto",IF(OR(AND(J25="Muy Baja",N25="Catastrófico"),AND(J25="Baja",N25="Catastrófico"),AND(J25="Media",N25="Catastrófico"),AND(J25="Alta",N25="Catastrófico"),AND(J25="Muy Alta",N25="Catastrófico")),"Extremo","")))) -> Moderado | Q25: 1 | R25: El funcionario y/o contratistas signados del grupo de GRCGI , realizan acompañamientos a las áreas para la revisión de la organización de los archivos y la preparación de las transferencias, verificando que cumpla y documente de acuerdo con lo establecido en el Manual de Organización Documental Archivos de Gestion y Transferencias Documentales Primarias | S25: Auxiliar administrativo y/o Contratista | T25: Adelantar acompañamientos a las áreas para la revisión de laorganización de los archivos de gestión de aurdo con el Manual Realizar el diligenciamiento de la Matriz de chuqueo de cumplimiento de los lineamientos del Manual | U25: Matriz trimestral de chequeo de cumplimeinto o no de linemientos del Manual; Correos; Actas; Planes de mejoramiento | V25: =IF(OR(W25="Preventivo",W25="Detectivo"),"Probabilidad",IF(W25="Correctivo","Impacto","")) -> Probabilidad | W25: Preventivo | X25: Manual | Y25: =IF(AND(W25="Preventivo",X25="Automático"),"50%",IF(AND(W25="Preventivo",X25="Manual"),"40%",IF(AND(W25="Detectivo",X25="Automático"),"40%",IF(AND(W25="Detectivo",X25="Manual"),"30%",IF(AND(W25="Correctivo",X25="Automático"),"35%",IF(AND(W25="Correctivo",X25="Manual"),"25%","")))))) -> 40% | Z25: Documentado | AA25: Continua | AB25: Con Registro | AC25: =IFERROR(IF(V25="Probabilidad",(K25-(+K25*Y25)),IF(V25="Impacto",K25,"")),"") -> 0.24 | AD25: =IFERROR(IF(AC25="","",IF(AC25<=0.2,"Muy Baja",IF(AC25<=0.4,"Baja",IF(AC25<=0.6,"Media",IF(AC25<=0.8,"Alta","Muy Alta"))))),"") -> Baja | AE25: =+AC25 -> 0.24 | AF25: =IFERROR(IF(AG25="","",IF(AG25<=0.2,"Leve",IF(AG25<=0.4,"Menor",IF(AG25<=0.6,"Moderado",IF(AG25<=0.8,"Mayor","Catastrófico"))))),"") -> Moderado | AG25: =IFERROR(IF(V25="Impacto",(O25-(+O25*Y25)),IF(V25="Probabilidad",O25,"")),"") -> 0.6 | AH25: =IFERROR(IF(OR(AND(AD25="Muy Baja",AF25="Leve"),AND(AD25="Muy Baja",AF25="Menor"),AND(AD25="Baja",AF25="Leve")),"Bajo",IF(OR(AND(AD25="Muy baja",AF25="Moderado"),AND(AD25="Baja",AF25="Menor"),AND(AD25="Baja",AF25="Moderado"),AND(AD25="Media",AF25="Leve"),AND(AD25="Media",AF25="Menor"),AND(AD25="Media",AF25="Moderado"),AND(AD25="Alta",AF25="Leve"),AND(AD25="Alta",AF25="Menor")),"Moderado",IF(OR(AND(AD25="Muy Baja",AF25="Mayor"),AND(AD25="Baja",AF25="Mayor"),AND(AD25="Media",AF25="Mayor"),AND(AD25="Alta",AF25="Moderado"),AND(AD25="Alta",AF25="Mayor"),AND(AD25="Muy Alta",AF25="Leve"),AND(AD25="Muy Alta",AF25="Menor"),AND(AD25="Muy Alta",AF25="Moderado"),AND(AD25="Muy Alta",AF25="Mayor")),"Alto",IF(OR(AND(AD25="Muy Baja",AF25="Catastrófico"),AND(AD25="Baja",AF25="Catastrófico"),AND(AD25="Media",AF25="Catastrófico"),AND(AD25="Alta",AF25="Catastrófico"),AND(AD25="Muy Alta",AF25="Catastrófico")),"Extremo","")))),"") -> Moderado | AI25: Reducir (compartir) | AJ25: Realizar mesas de trabajo con Secretaría General con el fin de fortalecer el seguimiento y cumplimiento para que los archivos de gestión cumplan con los lineamientos de organización de acuerdo con el Manual | AK25: Servidores publicos del GRCGI y de las Areas del Ministerio | AL25: 2025-03-30 | AM25: 2025-06-30 | AN25: Coordinador del grupo de GRCGI; Responsables de Areas | AO25: Grupo de Relacionamiento con la Ciudadanía y Gestión de la Información; y las Areas del Ministerio | AP25: Jenny Constanza Nova Martinez | AQ25: 2025-02-21 | AR25: 2025-12-31
A26: 19 | B26: GESTIÓN DOCUMENTAL | C26: Gestión | D26: Posibilidad de afectacion reputacional por Inadecuado seguimiento de aplicación de procedimientos de copias de seguridad debido a Inaplicación de los controles establecidos y ausencia de seguimiento sobre las copias de seguridad de los documentos electrónicos de archivo y sus metadatos | E26: reputacional | F26: Inadecuado seguimiento de aplicación de procedimientos de copias de seguridad | G26: Inaplicación de los controles establecidos y ausencia de seguimiento sobre las copias de seguridad de los documentos electrónicos de archivo y sus metadatos | H26: Ejecucion y Administracion de procesos | I26: 12 | J26: Baja | K26: 0.4 | L26: El riesgo afecta la imagen de la entidad internamente, de conocimiento general, nivel interno, de junta dircetiva y accionistas y/o de provedores | M26: =IF(NOT(ISERROR(MATCH(L26,'[5]Tabla Impacto'!#REF!,0))),'[5]Tabla Impacto'!$F$229&"Por favor no seleccionar los criterios de impacto(Afectación Económica o presupuestal y Pérdida Reputacional)",L26) -> El riesgo afecta la imagen de la entidad internamente, de conocimiento general, nivel interno, de junta dircetiva y accionistas y/o de provedores | N26: =IF(OR(M26='[5]Tabla Impacto'!$C$11,M26='[5]Tabla Impacto'!$D$11),"Leve",IF(OR(M26='[5]Tabla Impacto'!$C$12,M26='[5]Tabla Impacto'!$D$12),"Menor",IF(OR(M26='[5]Tabla Impacto'!$C$13,M26='[5]Tabla Impacto'!$D$13),"Moderado",IF(OR(M26='[5]Tabla Impacto'!$C$14,M26='[5]Tabla Impacto'!$D$14),"Mayor",IF(OR(M26='[5]Tabla Impacto'!$C$15,M26='[5]Tabla Impacto'!$D$15),"Catastrófico",""))))) -> Menor | O26: 0.4 | P26: Moderado | Q26: 1 | R26: El funcionario y/o contratista responsable, solicita reporte de la correcta ejecución de de copias de seguridad de los documentos electrónicos de archivo y metadatos del SGDEA, a la Oficina de Tecnologías de la información | S26: Profesional especializado 19 y/o Contratista | T26: Validar la correcta ejecución del reporte de copias de seguridad de los documentos electrónicos de archivo y metadatos del SGDEA que realiza la Oficina de Tecnologías de la información | U26: Correos electrónicos, reportes técnicos | V26: Probabilidad | W26: Preventivo | X26: Manual | Y26: 40% | Z26: Documentado | AA26: Continua | AB26: Con Registro | AC26: 0.24 | AD26: Baja | AE26: 0.24 | AF26: Menor | AG26: 0.4 | AH26: Moderado | AI26: Reducir (compartir) | AJ26: Realizar mesas de trabajo con TIC con el fin de validar las acciones ante posibles incidencias y necesidad de restauración de copias de seguridad | AK26: Servidores publicos del GRCGI y del Grupo TIC | AL26: 2025-06-30 | AM26: 2025-09-30 | AN26: Coordinadores lGRCGI y TIC | AO26: Grupo de Relacionamiento con la Ciudadanía y Gestión de la Información; y Grupo de Tecnologias de la Información | AP26: Jenny Constanza Nova Martinez | AQ26: 2025-02-21 | AR26: 2025-12-31
A27: 20 | B27: GESTIÓN DEL RELACIONAMIENTO CON LOS GRUPOS DE VALOR | C27: Gestión | D27: Posibilidad de afectacion reputacional por desconocimiento del grado de satisfacción de los grupos de valor, aumento de PQRSD y reprocesos debido a inaplicación de la encuesta de medición de la Satisfacción de forma oportuna a los ciudadanos que interactuaron con el MME a través de los diferentes canales de atención | E27: reputacional | F27: desconocimiento del grado de satisfacción de los grupos de valor, aumento de PQRSD y reprocesos | G27: inaplicación de la encuesta de medición de la Satisfacción de forma oportuna a los ciudadanos que interactuaron con el MME a través de los diferentes canales de atención | H27: Usuarios, productos y practicas , organizacionales | I27: 12 | J27: Baja | K27: 0.4 | L27: El riesgo afecta la imagen de la entidad con algunos usuarios de relevancia frente al logro de los objetivos | M27: =IF(NOT(ISERROR(MATCH(L27,'[5]Tabla Impacto'!#REF!,0))),'[5]Tabla Impacto'!$F$229&"Por favor no seleccionar los criterios de impacto(Afectación Económica o presupuestal y Pérdida Reputacional)",L27) -> El riesgo afecta la imagen de la entidad con algunos usuarios de relevancia frente al logro de los objetivos | N27: =IF(OR(M27='[5]Tabla Impacto'!$C$11,M27='[5]Tabla Impacto'!$D$11),"Leve",IF(OR(M27='[5]Tabla Impacto'!$C$12,M27='[5]Tabla Impacto'!$D$12),"Menor",IF(OR(M27='[5]Tabla Impacto'!$C$13,M27='[5]Tabla Impacto'!$D$13),"Moderado",IF(OR(M27='[5]Tabla Impacto'!$C$14,M27='[5]Tabla Impacto'!$D$14),"Mayor",IF(OR(M27='[5]Tabla Impacto'!$C$15,M27='[5]Tabla Impacto'!$D$15),"Catastrófico",""))))) -> Moderado | O27: 0.6 | P27: Moderado | Q27: 1 | R27: El Funcionario del Grupo de Relacionamiento con el Ciudadano y Gestión de la Información , recopila las bases de datos de ciudadanos atendidos en el mes, remite encuesta de medición de la satisfacción a ciudadanos atendidos en el mes y genera informe semestral de medición de la satisfacción que incluye conclusiones y recomendaciones. Este informe semestral de Medición de la Satisfacción se publica en la página web y se lleva a la alta dirección | S27: Profesional Especializado Grado 17 | T27: Recopilar las bases de datos de ciudadanos atendidos en el mes Remitir encuesta de medición de la satisfacción a ciudadanos atendidos en el me Generar informe semestral de medición de la satisfacción que incluye conclusiones y recomendaciones y publicar en portal web | U27: Informe Semestral de Medición de la Satisfacción | V27: Probabilidad | W27: Preventivo | X27: Manual | Y27: 40% | Z27: Documentado | AA27: Continua | AB27: Con Registro | AC27: 0.24 | AD27: Baja | AE27: 0.24 | AF27: Moderado | AG27: 0.6 | AH27: Moderado | AI27: Evitar | AN27: Coordinador del grupo de GRCGI | AO27: Grupo de Relacionamiento con la Ciudadanía y Gestión de la Información | AP27: Jenny Constanza Nova Martinez | AQ27: 2025-02-21 | AR27: 2025-12-31
A28: 21 | B28: GESTIÓN DEL RELACIONAMIENTO CON LOS GRUPOS DE VALOR | C28: Gestión | D28: Posibilidad de afectacion reputacional por sanciones, tutelas, aumento de PQRSD y reprocesos debido a incumplimiento en los términos de ley para dar respuesta a las PQRS | E28: reputacional | F28: sanciones, tutelas, aumento de PQRSD y reprocesos | G28: incumplimiento en los términos de ley para dar respuesta a las PQRS | H28: Usuarios, productos y practicas , organizacionales | I28: 52 | J28: Media | K28: =IF(J28="","",IF(J28="Muy Baja",0.2,IF(J28="Baja",0.4,IF(J28="Media",0.6,IF(J28="Alta",0.8,IF(J28="Muy Alta",1,)))))) -> 0.6 | L28: El riesgo afecta la imagen de la entidad con algunos usuarios de relevancia frente al logro de los objetivos | M28: =IF(NOT(ISERROR(MATCH(L28,'[5]Tabla Impacto'!#REF!,0))),'[5]Tabla Impacto'!$F$229&"Por favor no seleccionar los criterios de impacto(Afectación Económica o presupuestal y Pérdida Reputacional)",L28) -> El riesgo afecta la imagen de la entidad con algunos usuarios de relevancia frente al logro de los objetivos | N28: =IF(OR(M28='[5]Tabla Impacto'!$C$11,M28='[5]Tabla Impacto'!$D$11),"Leve",IF(OR(M28='[5]Tabla Impacto'!$C$12,M28='[5]Tabla Impacto'!$D$12),"Menor",IF(OR(M28='[5]Tabla Impacto'!$C$13,M28='[5]Tabla Impacto'!$D$13),"Moderado",IF(OR(M28='[5]Tabla Impacto'!$C$14,M28='[5]Tabla Impacto'!$D$14),"Mayor",IF(OR(M28='[5]Tabla Impacto'!$C$15,M28='[5]Tabla Impacto'!$D$15),"Catastrófico",""))))) -> Moderado | O28: =IF(N28="","",IF(N28="Leve",0.2,IF(N28="Menor",0.4,IF(N28="Moderado",0.6,IF(N28="Mayor",0.8,IF(N28="Catastrófico",1,)))))) -> 0.6 | P28: =IF(OR(AND(J28="Muy Baja",N28="Leve"),AND(J28="Muy Baja",N28="Menor"),AND(J28="Baja",N28="Leve")),"Bajo",IF(OR(AND(J28="Muy baja",N28="Moderado"),AND(J28="Baja",N28="Menor"),AND(J28="Baja",N28="Moderado"),AND(J28="Media",N28="Leve"),AND(J28="Media",N28="Menor"),AND(J28="Media",N28="Moderado"),AND(J28="Alta",N28="Leve"),AND(J28="Alta",N28="Menor")),"Moderado",IF(OR(AND(J28="Muy Baja",N28="Mayor"),AND(J28="Baja",N28="Mayor"),AND(J28="Media",N28="Mayor"),AND(J28="Alta",N28="Moderado"),AND(J28="Alta",N28="Mayor"),AND(J28="Muy Alta",N28="Leve"),AND(J28="Muy Alta",N28="Menor"),AND(J28="Muy Alta",N28="Moderado"),AND(J28="Muy Alta",N28="Mayor")),"Alto",IF(OR(AND(J28="Muy Baja",N28="Catastrófico"),AND(J28="Baja",N28="Catastrófico"),AND(J28="Media",N28="Catastrófico"),AND(J28="Alta",N28="Catastrófico"),AND(J28="Muy Alta",N28="Catastrófico")),"Extremo","")))) -> Moderado | Q28: 1 | R28: El Funcionario del Grupo de Relacionamiento con el Ciudadano y Gestión de la Información realiza el diligenciamiento de la base de datos de PQRS y valida cuáles PQRSD se encuentran con vencimiento semanal para proceder a enviar alertas semanales de vencimiento de peticiones. | S28: Secretario Ejecutivo Contratista | T28: Diligenciar la base de datos de PQRS realizando seguimiento y control a la oportunidad de las PQRSD Documentar el envío de alertas semanales de vencimiento de peticiones al área técnica que tiene asignada la respuesta a la solicitud inicial. | U28: Base de datos Relación de alertas Correos electrónicos Memorandos | V28: =IF(OR(W28="Preventivo",W28="Detectivo"),"Probabilidad",IF(W28="Correctivo","Impacto","")) -> Probabilidad | W28: Preventivo | X28: Manual | Y28: =IF(AND(W28="Preventivo",X28="Automático"),"50%",IF(AND(W28="Preventivo",X28="Manual"),"40%",IF(AND(W28="Detectivo",X28="Automático"),"40%",IF(AND(W28="Detectivo",X28="Manual"),"30%",IF(AND(W28="Correctivo",X28="Automático"),"35%",IF(AND(W28="Correctivo",X28="Manual"),"25%","")))))) -> 40% | Z28: Documentado | AA28: Continua | AB28: Con Registro | AC28: =IFERROR(IF(V28="Probabilidad",(K28-(+K28*Y28)),IF(V28="Impacto",K28,"")),"") -> 0.36 | AD28: =IFERROR(IF(AC28="","",IF(AC28<=0.2,"Muy Baja",IF(AC28<=0.4,"Baja",IF(AC28<=0.6,"Media",IF(AC28<=0.8,"Alta","Muy Alta"))))),"") -> Baja | AE28: =+AC28 -> 0.36 | AF28: =IFERROR(IF(AG28="","",IF(AG28<=0.2,"Leve",IF(AG28<=0.4,"Menor",IF(AG28<=0.6,"Moderado",IF(AG28<=0.8,"Mayor","Catastrófico"))))),"") -> Moderado | AG28: =IFERROR(IF(V28="Impacto",(O28-(+O28*Y28)),IF(V28="Probabilidad",O28,"")),"") -> 0.6 | AH28: =IFERROR(IF(OR(AND(AD28="Muy Baja",AF28="Leve"),AND(AD28="Muy Baja",AF28="Menor"),AND(AD28="Baja",AF28="Leve")),"Bajo",IF(OR(AND(AD28="Muy baja",AF28="Moderado"),AND(AD28="Baja",AF28="Menor"),AND(AD28="Baja",AF28="Moderado"),AND(AD28="Media",AF28="Leve"),AND(AD28="Media",AF28="Menor"),AND(AD28="Media",AF28="Moderado"),AND(AD28="Alta",AF28="Leve"),AND(AD28="Alta",AF28="Menor")),"Moderado",IF(OR(AND(AD28="Muy Baja",AF28="Mayor"),AND(AD28="Baja",AF28="Mayor"),AND(AD28="Media",AF28="Mayor"),AND(AD28="Alta",AF28="Moderado"),AND(AD28="Alta",AF28="Mayor"),AND(AD28="Muy Alta",AF28="Leve"),AND(AD28="Muy Alta",AF28="Menor"),AND(AD28="Muy Alta",AF28="Moderado"),AND(AD28="Muy Alta",AF28="Mayor")),"Alto",IF(OR(AND(AD28="Muy Baja",AF28="Catastrófico"),AND(AD28="Baja",AF28="Catastrófico"),AND(AD28="Media",AF28="Catastrófico"),AND(AD28="Alta",AF28="Catastrófico"),AND(AD28="Muy Alta",AF28="Catastrófico")),"Extremo","")))),"") -> Moderado | AI28: Evitar | AJ28: Actualizar procedimiento de PQRSD | AK28: Secretario Ejecutivo y Contratista | AL28: 2do semestre de 2025 | AM28: 2do semestre de 2025 | AN28: Coordinador del grupo de GRCGI | AO28: Grupo de Relacionamiento con la Ciudadanía y Gestión de la Información | AP28: Jenny Constanza Nova Martinez | AQ28: 2025-02-21 | AR28: 2025-12-31
A29: 22 | B29: CONTROL DISCIPLINARIO | C29: Gestión | D29: Posibilidad de afectacion reputacional por instruir o evaluar tardíamente investigaciones disciplinarias hasta prescribir, debido a expedientes con fechas próxímas a prescribir | E29: reputacional | F29: instruir o evaluar tardíamente investigaciones disciplinarias hasta prescribir, | G29: expedientes con fechas próxímas a prescribir | H29: Ejecucion y Administracion de procesos | I29: 23 | J29: Baja | K29: 0.4 | L29: El riesgo afecta la imagen de de la entidad con efecto publicitario sostenido a nivel de sector administrativo, nivel departamental o municipal | M29: =IF(NOT(ISERROR(MATCH(L29,'[5]Tabla Impacto'!#REF!,0))),'[5]Tabla Impacto'!$F$229&"Por favor no seleccionar los criterios de impacto(Afectación Económica o presupuestal y Pérdida Reputacional)",L29) -> El riesgo afecta la imagen de de la entidad con efecto publicitario sostenido a nivel de sector administrativo, nivel departamental o municipal | N29: =IF(OR(M29='[5]Tabla Impacto'!$C$11,M29='[5]Tabla Impacto'!$D$11),"Leve",IF(OR(M29='[5]Tabla Impacto'!$C$12,M29='[5]Tabla Impacto'!$D$12),"Menor",IF(OR(M29='[5]Tabla Impacto'!$C$13,M29='[5]Tabla Impacto'!$D$13),"Moderado",IF(OR(M29='[5]Tabla Impacto'!$C$14,M29='[5]Tabla Impacto'!$D$14),"Mayor",IF(OR(M29='[5]Tabla Impacto'!$C$15,M29='[5]Tabla Impacto'!$D$15),"Catastrófico",""))))) -> Mayor | O29: 0.8 | P29: Alto | Q29: 1 | R29: El Jefe de la Oficina, monitorea con los abogados instructores el avance de los expedientes priorizando en el impulso, revisión y firma los asuntos próximos a vencer a través de, un informe mensual , previamente, en coordinación la Secretaría General se contratará un abogado para impulsar las actuaciones. | S29: Jefe de la Oficina | T29: Monitorear el avance de los expedientes priorizando en el impuso, revisión y firma los asuntos con riesgo de prescripción | U29: Informe mensual | V29: =IF(OR(W29="Preventivo",W29="Detectivo"),"Probabilidad",IF(W29="Correctivo","Impacto","")) -> Probabilidad | W29: Preventivo | X29: Manual | Y29: =IF(AND(W29="Preventivo",X29="Automático"),"50%",IF(AND(W29="Preventivo",X29="Manual"),"40%",IF(AND(W29="Detectivo",X29="Automático"),"40%",IF(AND(W29="Detectivo",X29="Manual"),"30%",IF(AND(W29="Correctivo",X29="Automático"),"35%",IF(AND(W29="Correctivo",X29="Manual"),"25%","")))))) -> 40% | Z29: Sin Documentar | AA29: Continua | AB29: Con Registro | AC29: 0.24 | AD29: Baja | AE29: 0.24 | AF29: Mayor | AG29: 0.8 | AH29: Alto | AI29: Evitar | AN29: Jefe de la Oficina y abogados del grupo | AO29: Oficina de Control Disciplinario Interno | AP29: Jefe de Oficina | AQ29: 2025-02-21 | AR29: 2025-12-31
A30: 23 | B30: CONTROL DISCIPLINARIO | C30: Gestión | D30: Posibilidad de afectacion reputacional por pérdida de información o imposibilidad de tomar decisiones ajustadas al derecho disciplinario debido a contar con un archivo que a la fecha se ajusta en baja medida a las condiciones normativas exigidas en materia documental. | E30: reputacional | F30: pérdida de información o imposibilidad de tomar decisiones ajustadas al derecho disciplinario | G30: contar con un archivo que a la fecha se ajusta en baja medida a las condiciones normativas exigidas en materia documental. | H30: Ejecucion y Administracion de procesos | I30: 66 | J30: Media | K30: =IF(J30="","",IF(J30="Muy Baja",0.2,IF(J30="Baja",0.4,IF(J30="Media",0.6,IF(J30="Alta",0.8,IF(J30="Muy Alta",1,)))))) -> 0.6 | L30: El riesgo afecta la imagen de de la entidad con efecto publicitario sostenido a nivel de sector administrativo, nivel departamental o municipal | M30: =IF(NOT(ISERROR(MATCH(L30,'[5]Tabla Impacto'!#REF!,0))),'[5]Tabla Impacto'!$F$229&"Por favor no seleccionar los criterios de impacto(Afectación Económica o presupuestal y Pérdida Reputacional)",L30) -> El riesgo afecta la imagen de de la entidad con efecto publicitario sostenido a nivel de sector administrativo, nivel departamental o municipal | N30: =IF(OR(M30='[5]Tabla Impacto'!$C$11,M30='[5]Tabla Impacto'!$D$11),"Leve",IF(OR(M30='[5]Tabla Impacto'!$C$12,M30='[5]Tabla Impacto'!$D$12),"Menor",IF(OR(M30='[5]Tabla Impacto'!$C$13,M30='[5]Tabla Impacto'!$D$13),"Moderado",IF(OR(M30='[5]Tabla Impacto'!$C$14,M30='[5]Tabla Impacto'!$D$14),"Mayor",IF(OR(M30='[5]Tabla Impacto'!$C$15,M30='[5]Tabla Impacto'!$D$15),"Catastrófico",""))))) -> Mayor | O30: =IF(N30="","",IF(N30="Leve",0.2,IF(N30="Menor",0.4,IF(N30="Moderado",0.6,IF(N30="Mayor",0.8,IF(N30="Catastrófico",1,)))))) -> 0.8 | P30: =IF(OR(AND(J30="Muy Baja",N30="Leve"),AND(J30="Muy Baja",N30="Menor"),AND(J30="Baja",N30="Leve")),"Bajo",IF(OR(AND(J30="Muy baja",N30="Moderado"),AND(J30="Baja",N30="Menor"),AND(J30="Baja",N30="Moderado"),AND(J30="Media",N30="Leve"),AND(J30="Media",N30="Menor"),AND(J30="Media",N30="Moderado"),AND(J30="Alta",N30="Leve"),AND(J30="Alta",N30="Menor")),"Moderado",IF(OR(AND(J30="Muy Baja",N30="Mayor"),AND(J30="Baja",N30="Mayor"),AND(J30="Media",N30="Mayor"),AND(J30="Alta",N30="Moderado"),AND(J30="Alta",N30="Mayor"),AND(J30="Muy Alta",N30="Leve"),AND(J30="Muy Alta",N30="Menor"),AND(J30="Muy Alta",N30="Moderado"),AND(J30="Muy Alta",N30="Mayor")),"Alto",IF(OR(AND(J30="Muy Baja",N30="Catastrófico"),AND(J30="Baja",N30="Catastrófico"),AND(J30="Media",N30="Catastrófico"),AND(J30="Alta",N30="Catastrófico"),AND(J30="Muy Alta",N30="Catastrófico")),"Extremo","")))) -> Alto | Q30: 1 | R30: El Secretario ejecutivo organizará los archivos físicos y así vez en digital en (ONE DRIVE y ARGO) de acuerdo con los lineamientos establecidos por el grupo de Relacionamiento con la Ciudadanía y Gestión de la Información y en concordancias con las tablas de retención documental. El abogado instructor una vez realice la revisión documental, reportará al jefe de oficina y personal asistencial las novedades relacionadas con la falta de inserción de documentos y/o pruebas producidos durante el mes y se realizarán los ajustes a lugar | S30: Secretario ejecutivo Abogado instructor | T30: Organizar los archivos físico y digital en ARGO de acuerdo con las tablas de retención documental, en caso de detectar expedientes incompletos se reportará al personal asistencial las novedades relacionadas con la falta de inserción de documentos y/o pruebas producidos, para las gestiones respectivas. | U30: Plantilla para migración de información de Sharepoint a ARGO | V30: Probabilidad | W30: Preventivo | X30: Manual | Y30: 40% | Z30: Sin Documentar | AA30: Continua | AB30: Con Registro | AC30: =IFERROR(IF(V30="Probabilidad",(K30-(+K30*Y30)),IF(V30="Impacto",K30,"")),"") -> 0.36 | AD30: =IFERROR(IF(AC30="","",IF(AC30<=0.2,"Muy Baja",IF(AC30<=0.4,"Baja",IF(AC30<=0.6,"Media",IF(AC30<=0.8,"Alta","Muy Alta"))))),"") -> Baja | AE30: =+AC30 -> 0.36 | AF30: =IFERROR(IF(AG30="","",IF(AG30<=0.2,"Leve",IF(AG30<=0.4,"Menor",IF(AG30<=0.6,"Moderado",IF(AG30<=0.8,"Mayor","Catastrófico"))))),"") -> Mayor | AG30: =IFERROR(IF(V30="Impacto",(O30-(+O30*Y30)),IF(V30="Probabilidad",O30,"")),"") -> 0.8 | AH30: =IFERROR(IF(OR(AND(AD30="Muy Baja",AF30="Leve"),AND(AD30="Muy Baja",AF30="Menor"),AND(AD30="Baja",AF30="Leve")),"Bajo",IF(OR(AND(AD30="Muy baja",AF30="Moderado"),AND(AD30="Baja",AF30="Menor"),AND(AD30="Baja",AF30="Moderado"),AND(AD30="Media",AF30="Leve"),AND(AD30="Media",AF30="Menor"),AND(AD30="Media",AF30="Moderado"),AND(AD30="Alta",AF30="Leve"),AND(AD30="Alta",AF30="Menor")),"Moderado",IF(OR(AND(AD30="Muy Baja",AF30="Mayor"),AND(AD30="Baja",AF30="Mayor"),AND(AD30="Media",AF30="Mayor"),AND(AD30="Alta",AF30="Moderado"),AND(AD30="Alta",AF30="Mayor"),AND(AD30="Muy Alta",AF30="Leve"),AND(AD30="Muy Alta",AF30="Menor"),AND(AD30="Muy Alta",AF30="Moderado"),AND(AD30="Muy Alta",AF30="Mayor")),"Alto",IF(OR(AND(AD30="Muy Baja",AF30="Catastrófico"),AND(AD30="Baja",AF30="Catastrófico"),AND(AD30="Media",AF30="Catastrófico"),AND(AD30="Alta",AF30="Catastrófico"),AND(AD30="Muy Alta",AF30="Catastrófico")),"Extremo","")))),"") -> Alto | AI30: Evitar | AN30: Secretarios ejecutivos | AO30: Oficina de Control Disciplinario interno | AP30: Jefe de Oficina | AQ30: 2025-02-21 | AR30: 2025-12-31
A31: 24 | B31: SOCIAMBIENTAL | C31: Gestión | D31: Posibilidad de afectacion económico y reputacional por Reducción de presupuesto a los proyectos de inversión y sanciones debido a Incumplimiento en planes, programas y proyectos de inversión y en las metas a nivel socio-ambiental de definidas en el plan de acción de la Oficina de Asuntos Ambientales y Sociales | E31: económico y reputacional | F31: Reducción de presupuesto a los proyectos de inversión y sanciones | G31: Incumplimiento en planes, programas y proyectos de inversión y en las metas a nivel socio-ambiental de definidas en el plan de acción de la Oficina de Asuntos Ambientales y Sociales | H31: Ejecucion y Administracion de procesos | I31: 12 | J31: =IF(I31<=0,"",IF(I31<=2,"Muy Baja",IF(I31<=5,"Baja",IF(I31<=19,"Media",IF(I31<=50,"Alta","Muy Alta"))))) -> Media | K31: 0.6 | L31: El riesgo afecta la imagen de la entidad con algunos usuarios de relevancia frente al logro de los objetivos | M31: =IF(NOT(ISERROR(MATCH(L31,'[7]Tabla Impacto'!$B$221:$B$223,0))),'[7]Tabla Impacto'!$F$223&"Por favor no seleccionar los criterios de impacto(Afectación Económica o presupuestal y Pérdida Reputacional)",L31) -> El riesgo afecta la imagen de la entidad con algunos usuarios de relevancia frente al logro de los objetivos | N31: =IF(OR(M31='[7]Tabla Impacto'!$C$11,M31='[7]Tabla Impacto'!$D$11),"Leve",IF(OR(M31='[7]Tabla Impacto'!$C$12,M31='[7]Tabla Impacto'!$D$12),"Menor",IF(OR(M31='[7]Tabla Impacto'!$C$13,M31='[7]Tabla Impacto'!$D$13),"Moderado",IF(OR(M31='[7]Tabla Impacto'!$C$14,M31='[7]Tabla Impacto'!$D$14),"Mayor",IF(OR(M31='[7]Tabla Impacto'!$C$15,M31='[7]Tabla Impacto'!$D$15),"Catastrófico",""))))) -> Moderado | O31: 0.6 | P31: Moderado | Q31: 1 | R31: El Contratista delegado por la jefe de la Oficina de Asuntos Ambientales y Sociales, realizar una planeación y seguimiento frente a las metas a cumplir por parte de la oficina de Asuntos Ambientales y Sociales, revisa y verifica los avances reportados por los equipos técnicos de la OAAS en cumplimiento con las metas establecidas en el Plan de Acción para la vigencia 2024, en caso de tener desviaciones en la ejecución de la metas realiza las alertas respectivas. A la par, realiza seguimiento a los avances programados para cumplimiento de acuerdos contractuales y metas de proyectos de inversión establecidas para la Oficina de Asuntos Ambientales y sociales en la vigencia 2024 que permita ver cumplimientos de manera global y por indicador establecidos dentro del plan | S31: Contratista delegado por la jefe de la Oficina de Asuntos Ambientales y Sociales | T31: Realizar seguimiento a los indicadores que integran el plan de acción a cargo de la oficina, verificando el cumplimiento que estén acorde a la programación establecida y justificando su nivel de avance. Realizar seguimiento a los entregables contractuales y productos de los proyectos de inversión a cargo de la oficina, verificando que el cumplimiento este acorde a la programación establecida y justificando su nivel de avance por medio del registro de información en las plataformas SECOP II y Neón según aplique. | U31: Instrumento de seguimiento que permita ver cumplimientos de manera global y por indicador establecidos dentro del plan | V31: Probabilidad | W31: Preventivo | X31: Manual | Y31: 40% | Z31: Sin Documentar | AA31: Continua | AB31: Con Registro | AC31: 0.36 | AD31: Baja | AE31: 0.36 | AF31: Moderado | AG31: 0.6 | AH31: Moderado | AI31: Evitar | AN31: Contratista delegado por la oficina para seguimiento | AO31: Oficina de Asuntos Ambientales y Sociales | AP31: Jefe de la Oficina | AQ31: 2025-02-21 | AR31: 2025-12-31
A32: 25 | B32: SOCIAMBIENTAL | C32: Gestión | D32: Posibilidad de afectacion económico y reputacional por Multas, sanciones, duplicidad en PQRs, debido a incumplimiento en los tiempos de respuesta de los PQRS a cargo de la OAAS | E32: económico y reputacional | F32: Multas, sanciones, duplicidad en PQRs, | G32: incumplimiento en los tiempos de respuesta de los PQRS a cargo de la OAAS | H32: Ejecucion y Administracion de procesos | I32: 50 | J32: Alta | K32: 0.8 | L32: El riesgo afecta la imagen de la entidad con algunos usuarios de relevancia frente al logro de los objetivos | M32: =IF(NOT(ISERROR(MATCH(L32,'[7]Tabla Impacto'!$B$221:$B$223,0))),'[7]Tabla Impacto'!$F$223&"Por favor no seleccionar los criterios de impacto(Afectación Económica o presupuestal y Pérdida Reputacional)",L32) -> El riesgo afecta la imagen de la entidad con algunos usuarios de relevancia frente al logro de los objetivos | N32: =IF(OR(M32='[7]Tabla Impacto'!$C$11,M32='[7]Tabla Impacto'!$D$11),"Leve",IF(OR(M32='[7]Tabla Impacto'!$C$12,M32='[7]Tabla Impacto'!$D$12),"Menor",IF(OR(M32='[7]Tabla Impacto'!$C$13,M32='[7]Tabla Impacto'!$D$13),"Moderado",IF(OR(M32='[7]Tabla Impacto'!$C$14,M32='[7]Tabla Impacto'!$D$14),"Mayor",IF(OR(M32='[7]Tabla Impacto'!$C$15,M32='[7]Tabla Impacto'!$D$15),"Catastrófico",""))))) -> Moderado | O32: 0.6 | P32: Alto | Q32: 1 | R32: El jefe de Oficina de Asuntos Ambientales y Sociales en conjunto con su equipo de trabajo, establece un plan de acción que permita el seguimiento y cumplimiento a las respuesta de los PQRS asignados a la OAAS, igualmente verifica los tiempos de respuesta para evitar incumplimientos, en caso de encontrar desviaciones realiza aleratas al equipo de trabajo indicando cuáles solicitudes a la fechano tienen respuesta . | S32: El jefe de Oficina de Asuntos Ambientales y Sociales en conjunto con su equipo de trabajo | T32: Establecer un plan de acción que permita el seguimiento y cumplimiento a las respuestas de los PQRS asignados a la OAAS Generar de manera mensual un análisis de gestión que de evidencia de los avances frente a los PQRS | U32: Reportes de seguimiento a la gestión de PQRS a manera de alertas. | V32: =IF(OR(W32="Preventivo",W32="Detectivo"),"Probabilidad",IF(W32="Correctivo","Impacto","")) -> Probabilidad | W32: Preventivo | X32: Manual | Y32: =IF(AND(W32="Preventivo",X32="Automático"),"50%",IF(AND(W32="Preventivo",X32="Manual"),"40%",IF(AND(W32="Detectivo",X32="Automático"),"40%",IF(AND(W32="Detectivo",X32="Manual"),"30%",IF(AND(W32="Correctivo",X32="Automático"),"35%",IF(AND(W32="Correctivo",X32="Manual"),"25%","")))))) -> 40% | Z32: Documentado | AA32: Continua | AB32: Con Registro | AC32: 0.48 | AD32: Media | AE32: 0.48 | AF32: Moderado | AG32: 0.6 | AH32: Moderado | AI32: Evitar | AN32: Contratista delegado por la oficina para seguimiento | AO32: Oficina de Asuntos Ambientales y Sociales | AP32: Jefe de la Oficina | AQ32: 2025-02-21 | AR32: 2025-12-31
A33: 26 | B33: MINERIA | C33: Gestión | D33: Posibilidad de afectacion reputacional por Sanciones de entes de control por retrasos en la gestión y respuesta de derechos de petición. debido a Ausencia de procedimientos claros y sistemas de seguimiento eficaces para garantizar el cumplimiento de los plazos legales. | E33: reputacional | F33: Sanciones de entes de control por retrasos en la gestión y respuesta de derechos de petición. | G33: Ausencia de procedimientos claros y sistemas de seguimiento eficaces para garantizar el cumplimiento de los plazos legales. | H33: Ejecucion y Administracion de procesos | I33: 12 | J33: Baja | K33: =IF(J33="","",IF(J33="Muy Baja",0.2,IF(J33="Baja",0.4,IF(J33="Media",0.6,IF(J33="Alta",0.8,IF(J33="Muy Alta",1,)))))) -> 0.4 | L33: El riesgo afecta la imagen de alguna área de la organización | M33: =IF(NOT(ISERROR(MATCH(L33,'[5]Tabla Impacto'!#REF!,0))),'[5]Tabla Impacto'!$F$229&"Por favor no seleccionar los criterios de impacto(Afectación Económica o presupuestal y Pérdida Reputacional)",L33) -> El riesgo afecta la imagen de alguna área de la organización | N33: =IF(OR(M33='[5]Tabla Impacto'!$C$11,M33='[5]Tabla Impacto'!$D$11),"Leve",IF(OR(M33='[5]Tabla Impacto'!$C$12,M33='[5]Tabla Impacto'!$D$12),"Menor",IF(OR(M33='[5]Tabla Impacto'!$C$13,M33='[5]Tabla Impacto'!$D$13),"Moderado",IF(OR(M33='[5]Tabla Impacto'!$C$14,M33='[5]Tabla Impacto'!$D$14),"Mayor",IF(OR(M33='[5]Tabla Impacto'!$C$15,M33='[5]Tabla Impacto'!$D$15),"Catastrófico",""))))) -> Leve | O33: =IF(N33="","",IF(N33="Leve",0.2,IF(N33="Menor",0.4,IF(N33="Moderado",0.6,IF(N33="Mayor",0.8,IF(N33="Catastrófico",1,)))))) -> 0.2 | P33: =IF(OR(AND(J33="Muy Baja",N33="Leve"),AND(J33="Muy Baja",N33="Menor"),AND(J33="Baja",N33="Leve")),"Bajo",IF(OR(AND(J33="Muy baja",N33="Moderado"),AND(J33="Baja",N33="Menor"),AND(J33="Baja",N33="Moderado"),AND(J33="Media",N33="Leve"),AND(J33="Media",N33="Menor"),AND(J33="Media",N33="Moderado"),AND(J33="Alta",N33="Leve"),AND(J33="Alta",N33="Menor")),"Moderado",IF(OR(AND(J33="Muy Baja",N33="Mayor"),AND(J33="Baja",N33="Mayor"),AND(J33="Media",N33="Mayor"),AND(J33="Alta",N33="Moderado"),AND(J33="Alta",N33="Mayor"),AND(J33="Muy Alta",N33="Leve"),AND(J33="Muy Alta",N33="Menor"),AND(J33="Muy Alta",N33="Moderado"),AND(J33="Muy Alta",N33="Mayor")),"Alto",IF(OR(AND(J33="Muy Baja",N33="Catastrófico"),AND(J33="Baja",N33="Catastrófico"),AND(J33="Media",N33="Catastrófico"),AND(J33="Alta",N33="Catastrófico"),AND(J33="Muy Alta",N33="Catastrófico")),"Extremo","")))) -> Bajo | Q33: 1 | R33: Los coordinadores de la Dirección de Minería Empresarial, realizan un seguimiento permanente a los derechos de petición con alertas de vencimiento, validando los tiempos de respuesta frente a las solicitudes; en caso de encontrar desviaciones solicitan a los encargados contestar en la brevedad posible los derecho de petición. | S33: Director de minería empresarial Coordinadores | T33: Monitoreo continuo y periódicas sobre la gestión de derechos de petición | U33: Reportes de cumplimiento de tiempos de respuesta. Validaciones internas en cumpliminetos de respuesta | V33: =IF(OR(W33="Preventivo",W33="Detectivo"),"Probabilidad",IF(W33="Correctivo","Impacto","")) -> Probabilidad | W33: Preventivo | X33: Manual | Y33: =IF(AND(W33="Preventivo",X33="Automático"),"50%",IF(AND(W33="Preventivo",X33="Manual"),"40%",IF(AND(W33="Detectivo",X33="Automático"),"40%",IF(AND(W33="Detectivo",X33="Manual"),"30%",IF(AND(W33="Correctivo",X33="Automático"),"35%",IF(AND(W33="Correctivo",X33="Manual"),"25%","")))))) -> 40% | Z33: Sin Documentar | AA33: Continua | AB33: Con Registro | AC33: =IFERROR(IF(V33="Probabilidad",(K33-(+K33*Y33)),IF(V33="Impacto",K33,"")),"") -> 0.24 | AD33: =IFERROR(IF(AC33="","",IF(AC33<=0.2,"Muy Baja",IF(AC33<=0.4,"Baja",IF(AC33<=0.6,"Media",IF(AC33<=0.8,"Alta","Muy Alta"))))),"") -> Baja | AE33: =+AC33 -> 0.24 | AF33: =IFERROR(IF(AG33="","",IF(AG33<=0.2,"Leve",IF(AG33<=0.4,"Menor",IF(AG33<=0.6,"Moderado",IF(AG33<=0.8,"Mayor","Catastrófico"))))),"") -> Leve | AG33: =IFERROR(IF(V33="Impacto",(O33-(+O33*Y33)),IF(V33="Probabilidad",O33,"")),"") -> 0.2 | AH33: =IFERROR(IF(OR(AND(AD33="Muy Baja",AF33="Leve"),AND(AD33="Muy Baja",AF33="Menor"),AND(AD33="Baja",AF33="Leve")),"Bajo",IF(OR(AND(AD33="Muy baja",AF33="Moderado"),AND(AD33="Baja",AF33="Menor"),AND(AD33="Baja",AF33="Moderado"),AND(AD33="Media",AF33="Leve"),AND(AD33="Media",AF33="Menor"),AND(AD33="Media",AF33="Moderado"),AND(AD33="Alta",AF33="Leve"),AND(AD33="Alta",AF33="Menor")),"Moderado",IF(OR(AND(AD33="Muy Baja",AF33="Mayor"),AND(AD33="Baja",AF33="Mayor"),AND(AD33="Media",AF33="Mayor"),AND(AD33="Alta",AF33="Moderado"),AND(AD33="Alta",AF33="Mayor"),AND(AD33="Muy Alta",AF33="Leve"),AND(AD33="Muy Alta",AF33="Menor"),AND(AD33="Muy Alta",AF33="Moderado"),AND(AD33="Muy Alta",AF33="Mayor")),"Alto",IF(OR(AND(AD33="Muy Baja",AF33="Catastrófico"),AND(AD33="Baja",AF33="Catastrófico"),AND(AD33="Media",AF33="Catastrófico"),AND(AD33="Alta",AF33="Catastrófico"),AND(AD33="Muy Alta",AF33="Catastrófico")),"Extremo","")))),"") -> Bajo | AI33: Evitar | AJ33: Documentar el control | AK33: Contratista responsable del Sistema de Gestión de Calidad en la DME | AL33: 2025-04-01 | AM33: 2025-07-01 | AN33: Contratista responsable del Sistema de Gestión de Calidad en la DME | AO33: Dirección de minería Empresarial | AP33: Profesional especializado Dirección de Minería Empresarial | AQ33: 2025-02-01 | AR33: 2025-12-31
A34: 27 | B34: MINERIA | C34: Gestión | D34: Posibilidad de afectacion económico y reputacional por Multas y sanciones de entes de control debido a inaplicación metodológica de la valoración de reservas mineras del país | E34: económico y reputacional | F34: Multas y sanciones de entes de control | G34: inaplicación metodológica de la valoración de reservas mineras del país | H34: Ejecucion y Administracion de procesos | I34: 2 | J34: Muy Baja | K34: 0.2 | L34: El riesgo afecta la imagen de la entidad internamente, de conocimiento general, nivel interno, de junta dircetiva y accionistas y/o de provedores | M34: =IF(NOT(ISERROR(MATCH(L34,'[5]Tabla Impacto'!#REF!,0))),'[5]Tabla Impacto'!$F$229&"Por favor no seleccionar los criterios de impacto(Afectación Económica o presupuestal y Pérdida Reputacional)",L34) -> El riesgo afecta la imagen de la entidad internamente, de conocimiento general, nivel interno, de junta dircetiva y accionistas y/o de provedores | N34: =IF(OR(M34='[5]Tabla Impacto'!$C$11,M34='[5]Tabla Impacto'!$D$11),"Leve",IF(OR(M34='[5]Tabla Impacto'!$C$12,M34='[5]Tabla Impacto'!$D$12),"Menor",IF(OR(M34='[5]Tabla Impacto'!$C$13,M34='[5]Tabla Impacto'!$D$13),"Moderado",IF(OR(M34='[5]Tabla Impacto'!$C$14,M34='[5]Tabla Impacto'!$D$14),"Mayor",IF(OR(M34='[5]Tabla Impacto'!$C$15,M34='[5]Tabla Impacto'!$D$15),"Catastrófico",""))))) -> Menor | O34: 0.4 | P34: Bajo | Q34: 1 | R34: El Director de Minería Empresarial y los coordinadores realizan una validación de la información suministrada por parte de la Agencia Nacional de Minería aplicando la metodología para la valoración de reservas mineras del país, soportada en la Resolución 90079 del 13 de febrero del 2013 y emite un informe de validación; en caso de encontrar inconsistencias en el reporte solicitará ajustes | S34: Director de minería empresarial Coordinadores | T34: Validar la información suministrada por parte de la ANM Aplicar la metodología para la valoración de reservas mineras del país, soportada en la Resolución 90079 del 13 de febrero del 2013 Cumplimiento al procedimiento de valoración de reservas | U34: Informe de valoración de reservas. | V34: =IF(OR(W34="Preventivo",W34="Detectivo"),"Probabilidad",IF(W34="Correctivo","Impacto","")) -> Probabilidad | W34: Preventivo | X34: Manual | Y34: =IF(AND(W34="Preventivo",X34="Automático"),"50%",IF(AND(W34="Preventivo",X34="Manual"),"40%",IF(AND(W34="Detectivo",X34="Automático"),"40%",IF(AND(W34="Detectivo",X34="Manual"),"30%",IF(AND(W34="Correctivo",X34="Automático"),"35%",IF(AND(W34="Correctivo",X34="Manual"),"25%","")))))) -> 40% | Z34: Documentado | AA34: Continua | AB34: Con Registro | AC34: 0.12 | AD34: Muy Baja | AE34: 0.12 | AF34: Menor | AG34: 0.4 | AH34: Bajo | AI34: Evitar | AN34: Contratista responsable del Sistema de Gestión de Calidad en la DME | AO34: Dirección de minería Empresarial | AP34: Profesional especializado Dirección de Minería Empresarial | AQ34: 2025-02-01 | AR34: 2025-12-31
A35: 28 | B35: MINERIA | C35: Gestión | D35: =IF(C35="Fiscal",_xlfn.CONCAT("Posibilidad de efectos dañosos sobre bienes públicos "," por o para ",F35," debido a ",G35),IF(C35="Gestión",_xlfn.CONCAT("Posibilidad de afectacion ",E35," por ",F35," debido a ",G35),"")) -> Posibilidad de afectacion reputacional por Baja ejecución de las metas asociadas a la Dirección de Minería Empresarial debido a Deficiencias en la gestión estratégica y ausencia de herramientas efectivas para la supervisión del cumplimiento del Plan de Acción. | E35: reputacional | F35: Baja ejecución de las metas asociadas a la Dirección de Minería Empresarial | G35: Deficiencias en la gestión estratégica y ausencia de herramientas efectivas para la supervisión del cumplimiento del Plan de Acción. | H35: Ejecucion y Administracion de procesos | I35: 4 | J35: =IF(I35<=0,"",IF(I35<=2,"Muy Baja",IF(I35<=24,"Baja",IF(I35<=500,"Media",IF(I35<=5000,"Alta","Muy Alta"))))) -> Baja | K35: 0.4 | L35: El riesgo afecta la imagen de la entidad internamente, de conocimiento general, nivel interno, de junta dircetiva y accionistas y/o de provedores | M35: =IF(NOT(ISERROR(MATCH(L35,'[5]Tabla Impacto'!#REF!,0))),'[5]Tabla Impacto'!$F$229&"Por favor no seleccionar los criterios de impacto(Afectación Económica o presupuestal y Pérdida Reputacional)",L35) -> El riesgo afecta la imagen de la entidad internamente, de conocimiento general, nivel interno, de junta dircetiva y accionistas y/o de provedores | N35: =IF(OR(M35='[5]Tabla Impacto'!$C$11,M35='[5]Tabla Impacto'!$D$11),"Leve",IF(OR(M35='[5]Tabla Impacto'!$C$12,M35='[5]Tabla Impacto'!$D$12),"Menor",IF(OR(M35='[5]Tabla Impacto'!$C$13,M35='[5]Tabla Impacto'!$D$13),"Moderado",IF(OR(M35='[5]Tabla Impacto'!$C$14,M35='[5]Tabla Impacto'!$D$14),"Mayor",IF(OR(M35='[5]Tabla Impacto'!$C$15,M35='[5]Tabla Impacto'!$D$15),"Catastrófico",""))))) -> Menor | O35: 0.4 | P35: Moderado | Q35: 1 | R35: Realizar el seguimiento periódico a la ejecución del plan de acción, emitiendo las alertas necesarias para dar cumplimiento del mismo, analizando y verificando los avances de los indicadores; en caso de encontrar incumplimientos realiza ajustes respectivos para cumplir las metas planeadas en el plan de acción | S35: Director de minería empresarial Coordinadores | T35: Revisión mensual del avance del Plan de Acción y ajuste de estrategias según los resultados obtenidos. | U35: Reportes de avance del Plan de Acción. Indicadores de cumplimiento de metas. Actas de reuniones de seguimiento. Correos alertas | V35: =IF(OR(W35="Preventivo",W35="Detectivo"),"Probabilidad",IF(W35="Correctivo","Impacto","")) -> Probabilidad | W35: Preventivo | X35: Manual | Y35: =IF(AND(W35="Preventivo",X35="Automático"),"50%",IF(AND(W35="Preventivo",X35="Manual"),"40%",IF(AND(W35="Detectivo",X35="Automático"),"40%",IF(AND(W35="Detectivo",X35="Manual"),"30%",IF(AND(W35="Correctivo",X35="Automático"),"35%",IF(AND(W35="Correctivo",X35="Manual"),"25%","")))))) -> 40% | Z35: Sin Documentar | AA35: Continua | AB35: Con Registro | AC35: 0.24 | AD35: Baja | AE35: 0.24 | AF35: Menor | AG35: 0.4 | AH35: Moderado | AI35: Evitar | AJ35: Documentar el control | AK35: Contratista responsable del Sistema de Gestión de Calidad en la DME | AL35: 2025-04-15 | AM35: 2025-07-15 | AN35: Contratista responsable del Sistema de Gestión de Calidad en la DME | AO35: Dirección de minería Empresarial | AP35: Profesional especializado Dirección de Minería Empresarial | AQ35: 2025-02-01 | AR35: 2025-12-31
A36: 29 | B36: MINERIA | C36: Gestión | D36: Posibilidad de afectacion económico y reputacional por sanciones y demandas por incumplimientos en la ejecución de los convenios y/o contratos de la Dirección de Formalización Minera debido a un bajo seguimiento en su etapa contractual y postcontractual | E36: económico y reputacional | F36: sanciones y demandas por incumplimientos en la ejecución de los convenios y/o contratos de la Dirección de Formalización Minera | G36: un bajo seguimiento en su etapa contractual y postcontractual | H36: Ejecucion y Administracion de procesos | I36: 4 | J36: Baja | K36: 0.4 | L36: El riesgo afecta la imagen de la entidad internamente, de conocimiento general, nivel interno, de junta dircetiva y accionistas y/o de provedores | M36: =IF(NOT(ISERROR(MATCH(L36,'[5]Tabla Impacto'!#REF!,0))),'[5]Tabla Impacto'!$F$229&"Por favor no seleccionar los criterios de impacto(Afectación Económica o presupuestal y Pérdida Reputacional)",L36) -> El riesgo afecta la imagen de la entidad internamente, de conocimiento general, nivel interno, de junta dircetiva y accionistas y/o de provedores | N36: =IF(OR(M36='[5]Tabla Impacto'!$C$11,M36='[5]Tabla Impacto'!$D$11),"Leve",IF(OR(M36='[5]Tabla Impacto'!$C$12,M36='[5]Tabla Impacto'!$D$12),"Menor",IF(OR(M36='[5]Tabla Impacto'!$C$13,M36='[5]Tabla Impacto'!$D$13),"Moderado",IF(OR(M36='[5]Tabla Impacto'!$C$14,M36='[5]Tabla Impacto'!$D$14),"Mayor",IF(OR(M36='[5]Tabla Impacto'!$C$15,M36='[5]Tabla Impacto'!$D$15),"Catastrófico",""))))) -> Menor | O36: 0.4 | P36: Moderado | Q36: 1 | R36: El Supervisor delegado para el convenio o contrato, realizará el seguimiento a las obligaciones y términos contractuales de acuerdo con el manual de contratación de la entidad y con los términos establecidos en el convenio o contrato, en aras de validar la gestión en la entrega y pago de los productos o servicios prestados y /o solicitar los ajustes o complementos necesarios a través de, comunicaciones oficiales, informes de actividades, informes de supervisión, entre otros, según aplique, lo cual será ubicado en una carpeta definida por cada coordinación. | S36: Director de minería empresarial Coordinadores | T36: Revisión mensual del avance del Plan de Acción y ajuste de estrategias según los resultados obtenidos. | U36: Reportes de avance del Plan de Acción. Indicadores de cumplimiento de metas. Actas de reuniones de seguimiento. Correos alertas | V36: Probabilidad | W36: Preventivo | X36: Manual | Y36: 40% | Z36: Sin Documentar | AA36: Continua | AB36: Con Registro | AC36: 0.24 | AD36: Baja | AE36: 0.24 | AF36: Menor | AG36: 0.4 | AH36: Moderado | AI36: Evitar | AJ36: Documentar el control | AK36: Contratista responsable del Sistema de Gestión de Calidad en la DME | AL36: 2025-04-15 | AM36: 2025-07-15 | AN36: Contratista responsable del Sistema de Gestión de Calidad en la DME | AO36: Dirección de minería Empresarial | AP36: Profesional especializado Dirección de Minería Empresarial | AQ36: 2025-02-01 | AR36: 2025-12-31
A37: 30 | B37: MINERIA | C37: Gestión | D37: Posibilidad de afectacion reputacional por multas y sanciones por atrasos en la respuesta a los derechos de petición de la Dirección de Formalización Minera debido a la falta de seguimiento y control en la atención oportuna y completa de los derechos de petición | E37: reputacional | F37: multas y sanciones por atrasos en la respuesta a los derechos de petición de la Dirección de Formalización Minera | G37: la falta de seguimiento y control en la atención oportuna y completa de los derechos de petición | H37: Ejecucion y Administracion de procesos | I37: 60 | J37: Media | K37: =IF(J37="","",IF(J37="Muy Baja",0.2,IF(J37="Baja",0.4,IF(J37="Media",0.6,IF(J37="Alta",0.8,IF(J37="Muy Alta",1,)))))) -> 0.6 | L37: El riesgo afecta la imagen de de la entidad con efecto publicitario sostenido a nivel de sector administrativo, nivel departamental o municipal | M37: =IF(NOT(ISERROR(MATCH(L37,'[5]Tabla Impacto'!#REF!,0))),'[5]Tabla Impacto'!$F$229&"Por favor no seleccionar los criterios de impacto(Afectación Económica o presupuestal y Pérdida Reputacional)",L37) -> El riesgo afecta la imagen de de la entidad con efecto publicitario sostenido a nivel de sector administrativo, nivel departamental o municipal | N37: =IF(OR(M37='[5]Tabla Impacto'!$C$11,M37='[5]Tabla Impacto'!$D$11),"Leve",IF(OR(M37='[5]Tabla Impacto'!$C$12,M37='[5]Tabla Impacto'!$D$12),"Menor",IF(OR(M37='[5]Tabla Impacto'!$C$13,M37='[5]Tabla Impacto'!$D$13),"Moderado",IF(OR(M37='[5]Tabla Impacto'!$C$14,M37='[5]Tabla Impacto'!$D$14),"Mayor",IF(OR(M37='[5]Tabla Impacto'!$C$15,M37='[5]Tabla Impacto'!$D$15),"Catastrófico",""))))) -> Mayor | O37: =IF(N37="","",IF(N37="Leve",0.2,IF(N37="Menor",0.4,IF(N37="Moderado",0.6,IF(N37="Mayor",0.8,IF(N37="Catastrófico",1,)))))) -> 0.8 | P37: =IF(OR(AND(J37="Muy Baja",N37="Leve"),AND(J37="Muy Baja",N37="Menor"),AND(J37="Baja",N37="Leve")),"Bajo",IF(OR(AND(J37="Muy baja",N37="Moderado"),AND(J37="Baja",N37="Menor"),AND(J37="Baja",N37="Moderado"),AND(J37="Media",N37="Leve"),AND(J37="Media",N37="Menor"),AND(J37="Media",N37="Moderado"),AND(J37="Alta",N37="Leve"),AND(J37="Alta",N37="Menor")),"Moderado",IF(OR(AND(J37="Muy Baja",N37="Mayor"),AND(J37="Baja",N37="Mayor"),AND(J37="Media",N37="Mayor"),AND(J37="Alta",N37="Moderado"),AND(J37="Alta",N37="Mayor"),AND(J37="Muy Alta",N37="Leve"),AND(J37="Muy Alta",N37="Menor"),AND(J37="Muy Alta",N37="Moderado"),AND(J37="Muy Alta",N37="Mayor")),"Alto",IF(OR(AND(J37="Muy Baja",N37="Catastrófico"),AND(J37="Baja",N37="Catastrófico"),AND(J37="Media",N37="Catastrófico"),AND(J37="Alta",N37="Catastrófico"),AND(J37="Muy Alta",N37="Catastrófico")),"Extremo","")))) -> Alto | Q37: 1 | R37: El /los profesionales de apoyo designados en la Dirección, enviarán alertas relacionadas con los derechos de petición próximos a vencer, de acuerdo con el correo que remite la oficina de relacionamiento con el ciudadano, adicionalmente, el Coordinador de cada grupo de la Dirección de Formalización Minera, realiza la revisión del aplicativo Argo para el reparto y posterior verificación de la respuesta completa y oportuna por parte del funcionario o contratista asignado | S37: Supervisor delegado para el convenio o contrato | T37: Realizar el seguimiento a las obligaciones y términos contractuales de acuerdo con el manual de contratación de la entidad y con los términos establecidos en el convenio o contrato, en aras de validar la gestión en la entrega y pago de los productos o servicios prestados y /o solicitar los ajustes o complementos necesarios | U37: * Comunicaciones oficiales * Informes de supervisión * Acta de designación de apoyo a la supervisión, entre otros, según aplique, lo cual será ubicado en una carpeta definida por cada coordinación. | V37: Probabilidad | W37: Preventivo | X37: Manual | Y37: 40% | Z37: Sin Documentar | AA37: Continua | AB37: Con Registro | AC37: =IFERROR(IF(V37="Probabilidad",(K37-(+K37*Y37)),IF(V37="Impacto",K37,"")),"") -> 0.36 | AD37: =IFERROR(IF(AC37="","",IF(AC37<=0.2,"Muy Baja",IF(AC37<=0.4,"Baja",IF(AC37<=0.6,"Media",IF(AC37<=0.8,"Alta","Muy Alta"))))),"") -> Baja | AE37: =+AC37 -> 0.36 | AF37: =IFERROR(IF(AG37="","",IF(AG37<=0.2,"Leve",IF(AG37<=0.4,"Menor",IF(AG37<=0.6,"Moderado",IF(AG37<=0.8,"Mayor","Catastrófico"))))),"") -> Mayor | AG37: =IFERROR(IF(V37="Impacto",(O37-(+O37*Y37)),IF(V37="Probabilidad",O37,"")),"") -> 0.8 | AH37: =IFERROR(IF(OR(AND(AD37="Muy Baja",AF37="Leve"),AND(AD37="Muy Baja",AF37="Menor"),AND(AD37="Baja",AF37="Leve")),"Bajo",IF(OR(AND(AD37="Muy baja",AF37="Moderado"),AND(AD37="Baja",AF37="Menor"),AND(AD37="Baja",AF37="Moderado"),AND(AD37="Media",AF37="Leve"),AND(AD37="Media",AF37="Menor"),AND(AD37="Media",AF37="Moderado"),AND(AD37="Alta",AF37="Leve"),AND(AD37="Alta",AF37="Menor")),"Moderado",IF(OR(AND(AD37="Muy Baja",AF37="Mayor"),AND(AD37="Baja",AF37="Mayor"),AND(AD37="Media",AF37="Mayor"),AND(AD37="Alta",AF37="Moderado"),AND(AD37="Alta",AF37="Mayor"),AND(AD37="Muy Alta",AF37="Leve"),AND(AD37="Muy Alta",AF37="Menor"),AND(AD37="Muy Alta",AF37="Moderado"),AND(AD37="Muy Alta",AF37="Mayor")),"Alto",IF(OR(AND(AD37="Muy Baja",AF37="Catastrófico"),AND(AD37="Baja",AF37="Catastrófico"),AND(AD37="Media",AF37="Catastrófico"),AND(AD37="Alta",AF37="Catastrófico"),AND(AD37="Muy Alta",AF37="Catastrófico")),"Extremo","")))),"") -> Alto | AI37: Evitar | AN37: Coordinadores de grupo | AO37: Dirección de Formalización (cada grupo de Coordinación) | AP37: Director/a de Formalización Minera | AQ37: 2025-02-01 | AR37: 2025-12-31
A38: 31 | B38: HIDROCARBUROS | C38: Gestión | D38: Posibilidad de afectacion económico y reputacional por pérdida de memoria institucional debido a inadecuado manejo de la información | E38: económico y reputacional | F38: pérdida de memoria institucional | G38: inadecuado manejo de la información | H38: Ejecucion y Administracion de procesos | I38: 365 | J38: =IF(I38<=0,"",IF(I38<=2,"Muy Baja",IF(I38<=5,"Baja",IF(I38<=19,"Media",IF(I38<=50,"Alta","Muy Alta"))))) -> Muy Alta | K38: 1 | L38: El riesgo afecta la imagen de la entidad con algunos usuarios de relevancia frente al logro de los objetivos | M38: =IF(NOT(ISERROR(MATCH(L38,'[7]Tabla Impacto'!$B$221:$B$223,0))),'[7]Tabla Impacto'!$F$223&"Por favor no seleccionar los criterios de impacto(Afectación Económica o presupuestal y Pérdida Reputacional)",L38) -> El riesgo afecta la imagen de la entidad con algunos usuarios de relevancia frente al logro de los objetivos | N38: =IF(OR(M38='[7]Tabla Impacto'!$C$11,M38='[7]Tabla Impacto'!$D$11),"Leve",IF(OR(M38='[7]Tabla Impacto'!$C$12,M38='[7]Tabla Impacto'!$D$12),"Menor",IF(OR(M38='[7]Tabla Impacto'!$C$13,M38='[7]Tabla Impacto'!$D$13),"Moderado",IF(OR(M38='[7]Tabla Impacto'!$C$14,M38='[7]Tabla Impacto'!$D$14),"Mayor",IF(OR(M38='[7]Tabla Impacto'!$C$15,M38='[7]Tabla Impacto'!$D$15),"Catastrófico",""))))) -> Moderado | O38: 0.6 | P38: Alto | Q38: 1 | R38: Los colaboradores de la DH, clasifican y organizan la información de acuerdo con las TRD vigentes y los lineamientos del proceso de Gestión Documental, igualmente, en caso que llos responsables de emitir lineamientos respecto de la gestión documental asociada al proceso luego de verificar la información, soliciten al proceso ajustes, se procederá a realizarlos. | S38: Colaboradores de la DH | T38: Clasificar y organizar la información de acuerdo con las TRD vigentes y los lineamientos del proceso de Gestión Documental | U38: Formulario Único de Inventario Documental - FUID diligenciado | V38: =IF(OR(W38="Preventivo",W38="Detectivo"),"Probabilidad",IF(W38="Correctivo","Impacto","")) -> Probabilidad | W38: Preventivo | X38: Manual | Y38: =IF(AND(W38="Preventivo",X38="Automático"),"50%",IF(AND(W38="Preventivo",X38="Manual"),"40%",IF(AND(W38="Detectivo",X38="Automático"),"40%",IF(AND(W38="Detectivo",X38="Manual"),"30%",IF(AND(W38="Correctivo",X38="Automático"),"35%",IF(AND(W38="Correctivo",X38="Manual"),"25%","")))))) -> 40% | Z38: Documentado | AA38: Continua | AB38: Con Registro | AC38: =IFERROR(IF(V38="Probabilidad",(K38-(+K38*Y38)),IF(V38="Impacto",K38,"")),"") -> 0.6 | AD38: =IFERROR(IF(AC38="","",IF(AC38<=0.2,"Muy Baja",IF(AC38<=0.4,"Baja",IF(AC38<=0.6,"Media",IF(AC38<=0.8,"Alta","Muy Alta"))))),"") -> Media | AE38: =+AC38 -> 0.6 | AF38: =IFERROR(IF(AG38="","",IF(AG38<=0.2,"Leve",IF(AG38<=0.4,"Menor",IF(AG38<=0.6,"Moderado",IF(AG38<=0.8,"Mayor","Catastrófico"))))),"") -> Moderado | AG38: =IFERROR(IF(V38="Impacto",(O38-(+O38*Y38)),IF(V38="Probabilidad",O38,"")),"") -> 0.6 | AH38: =IFERROR(IF(OR(AND(AD38="Muy Baja",AF38="Leve"),AND(AD38="Muy Baja",AF38="Menor"),AND(AD38="Baja",AF38="Leve")),"Bajo",IF(OR(AND(AD38="Muy baja",AF38="Moderado"),AND(AD38="Baja",AF38="Menor"),AND(AD38="Baja",AF38="Moderado"),AND(AD38="Media",AF38="Leve"),AND(AD38="Media",AF38="Menor"),AND(AD38="Media",AF38="Moderado"),AND(AD38="Alta",AF38="Leve"),AND(AD38="Alta",AF38="Menor")),"Moderado",IF(OR(AND(AD38="Muy Baja",AF38="Mayor"),AND(AD38="Baja",AF38="Mayor"),AND(AD38="Media",AF38="Mayor"),AND(AD38="Alta",AF38="Moderado"),AND(AD38="Alta",AF38="Mayor"),AND(AD38="Muy Alta",AF38="Leve"),AND(AD38="Muy Alta",AF38="Menor"),AND(AD38="Muy Alta",AF38="Moderado"),AND(AD38="Muy Alta",AF38="Mayor")),"Alto",IF(OR(AND(AD38="Muy Baja",AF38="Catastrófico"),AND(AD38="Baja",AF38="Catastrófico"),AND(AD38="Media",AF38="Catastrófico"),AND(AD38="Alta",AF38="Catastrófico"),AND(AD38="Muy Alta",AF38="Catastrófico")),"Extremo","")))),"") -> Moderado | AI38: Evitar | AN38: Profesionales | AO38: Dirección de Hidrocarburos | AP38: Director Técnico - Coordinador de Grupo | AQ38: 2025-02-01 | AR38: 2025-12-31
A39: 34 | B39: HIDROCARBUROS | C39: Gestión | D39: Posibilidad de afectacion económico y reputacional por procesos sancionatorios debido a debilidades en el cumplimiento del manual de supervisión de contratos y/o convenios | E39: económico y reputacional | F39: procesos sancionatorios | G39: debilidades en el cumplimiento del manual de supervisión de contratos y/o convenios | H39: Ejecucion y Administracion de procesos | I39: 156 | J39: Muy Alta | K39: 1 | L39: El riesgo afecta la imagen de la entidad con algunos usuarios de relevancia frente al logro de los objetivos | M39: =IF(NOT(ISERROR(MATCH(L39,'[7]Tabla Impacto'!$B$221:$B$223,0))),'[7]Tabla Impacto'!$F$223&"Por favor no seleccionar los criterios de impacto(Afectación Económica o presupuestal y Pérdida Reputacional)",L39) -> El riesgo afecta la imagen de la entidad con algunos usuarios de relevancia frente al logro de los objetivos | N39: =IF(OR(M39='[7]Tabla Impacto'!$C$11,M39='[7]Tabla Impacto'!$D$11),"Leve",IF(OR(M39='[7]Tabla Impacto'!$C$12,M39='[7]Tabla Impacto'!$D$12),"Menor",IF(OR(M39='[7]Tabla Impacto'!$C$13,M39='[7]Tabla Impacto'!$D$13),"Moderado",IF(OR(M39='[7]Tabla Impacto'!$C$14,M39='[7]Tabla Impacto'!$D$14),"Mayor",IF(OR(M39='[7]Tabla Impacto'!$C$15,M39='[7]Tabla Impacto'!$D$15),"Catastrófico",""))))) -> Moderado | O39: 0.6 | P39: Alto | Q39: 1 | R39: El supervisor designado para tal fin, verifica el progreso de cumplimiento y ejecución contractual de forma mensual sin omitir los lineamientos establecidos en el manual, procedimientos para el cumplimiento de sus funciones, y en caso de evidenciar la omision de publicidad en la pataforma SECOP y/o encontrar inconsistencias en la información publicada se solicitara al contratista la validación y verificación de la información reportada, asi como su respectiva publicación dentro de las fechas establecidas. | S39: Supervisores y Contratistas | T39: Verificar, validar y viabilizar la información publicada en SECOP por parte del contratista (Formatos de Informes, Soportes y Planilla) dando cumplimiento a los requisitos normativos establecidos en el manual de contratación, de igual manera el supervisor validará el avance del objeto contractual y en caso de identificar inconsistencias en la información, solicitará al contatista realizar los ajustes respectivos. | U39: FORMATO INFORME PERIÓDICO DE SUPERVISIÓN Y RECIBO A SATISFACCIÓN PRESTACIÓN DE SERVICIOS PROFESIONALES Y DE APOYO A LA GESTIÓN aprobado, firnado y radicado por el supervisor. | V39: =IF(OR(W39="Preventivo",W39="Detectivo"),"Probabilidad",IF(W39="Correctivo","Impacto","")) -> Probabilidad | W39: Preventivo | X39: Manual | Y39: =IF(AND(W39="Preventivo",X39="Automático"),"50%",IF(AND(W39="Preventivo",X39="Manual"),"40%",IF(AND(W39="Detectivo",X39="Automático"),"40%",IF(AND(W39="Detectivo",X39="Manual"),"30%",IF(AND(W39="Correctivo",X39="Automático"),"35%",IF(AND(W39="Correctivo",X39="Manual"),"25%","")))))) -> 40% | Z39: Documentado | AA39: Continua | AB39: Con Registro | AC39: 0.6 | AD39: Media | AE39: 0.6 | AF39: Moderado | AG39: 0.6 | AH39: Moderado | AI39: Evitar | AN39: Supervisores y Contratistas | AO39: Dirección de Hidrocarburos | AP39: Supervisores y Contratistas | AQ39: 2025-02-01 | AR39: 2025-12-31
A40: 35 | B40: HIDROCARBUROS | C40: Gestión | D40: Posibilidad de afectacion económico y reputacional por inadecuada liquidación de los recursos señalados en el artículo 19 de la Ley 10 de 1961 debido a información poco confiable reportada por otras entidades | E40: económico y reputacional | F40: inadecuada liquidación de los recursos señalados en el artículo 19 de la Ley 10 de 1961 | G40: información poco confiable reportada por otras entidades | H40: Ejecucion y Administracion de procesos | I40: 4 | J40: Baja | K40: 0.4 | L40: El riesgo afecta la imagen de la entidad con algunos usuarios de relevancia frente al logro de los objetivos | M40: =IF(NOT(ISERROR(MATCH(L40,'[7]Tabla Impacto'!$B$221:$B$223,0))),'[7]Tabla Impacto'!$F$223&"Por favor no seleccionar los criterios de impacto(Afectación Económica o presupuestal y Pérdida Reputacional)",L40) -> El riesgo afecta la imagen de la entidad con algunos usuarios de relevancia frente al logro de los objetivos | N40: =IF(OR(M40='[7]Tabla Impacto'!$C$11,M40='[7]Tabla Impacto'!$D$11),"Leve",IF(OR(M40='[7]Tabla Impacto'!$C$12,M40='[7]Tabla Impacto'!$D$12),"Menor",IF(OR(M40='[7]Tabla Impacto'!$C$13,M40='[7]Tabla Impacto'!$D$13),"Moderado",IF(OR(M40='[7]Tabla Impacto'!$C$14,M40='[7]Tabla Impacto'!$D$14),"Mayor",IF(OR(M40='[7]Tabla Impacto'!$C$15,M40='[7]Tabla Impacto'!$D$15),"Catastrófico",""))))) -> Moderado | O40: 0.6 | P40: Moderado | Q40: 1 | R40: El profesionales validan la información en el sistema de la ANH y genera la liquidación según el procedimiento vigente (EP-P-61), en caso de encontrar desviación al control solicita a la ANH la actualización de la información en el sistema, es información es validada por el coordinador y el director. | S40: Profesionales, coordinador y director | T40: Validar la información en el sistema de la ANH y generar la liquidación según el procedimiento vigente (EP-P-61), en caso de encontrar desviación al control solicitar a la ANH la actualización de la información en el sistema | U40: Oficios con la liquidación de los valores o confirmación de valores liquidados | V40: Probabilidad | W40: Preventivo | X40: Manual | Y40: 40% | Z40: Documentado | AA40: Continua | AB40: Con Registro | AC40: 0.24 | AD40: Baja | AE40: 0.24 | AF40: Moderado | AG40: 0.6 | AH40: Moderado | AI40: Evitar | AN40: Coordinador Grupo Upstream | AO40: Grupo Upstream | AP40: Director de Hidrocarburos | AQ40: 2025-02-01 | AR40: 2025-12-31
A41: 36 | B41: HIDROCARBUROS | C41: Gestión | D41: Posibilidad de afectacion reputacional por el sistema capture variables que no correspondan con la información definida dentro de la metodología, para la difusion de los boletines estadisticos debido a ausencia de parametrización de las reglas establecidas en el sistema (SQL) | E41: reputacional | F41: el sistema capture variables que no correspondan con la información definida dentro de la metodología, para la difusion de los boletines estadisticos | G41: ausencia de parametrización de las reglas establecidas en el sistema (SQL) | H41: Ejecucion y Administracion de procesos | I41: 4 | J41: Baja | K41: 0.4 | L41: El riesgo afecta la imagen de la entidad con algunos usuarios de relevancia frente al logro de los objetivos | M41: =IF(NOT(ISERROR(MATCH(L41,'[7]Tabla Impacto'!$B$221:$B$223,0))),'[7]Tabla Impacto'!$F$223&"Por favor no seleccionar los criterios de impacto(Afectación Económica o presupuestal y Pérdida Reputacional)",L41) -> El riesgo afecta la imagen de la entidad con algunos usuarios de relevancia frente al logro de los objetivos | N41: =IF(OR(M41='[7]Tabla Impacto'!$C$11,M41='[7]Tabla Impacto'!$D$11),"Leve",IF(OR(M41='[7]Tabla Impacto'!$C$12,M41='[7]Tabla Impacto'!$D$12),"Menor",IF(OR(M41='[7]Tabla Impacto'!$C$13,M41='[7]Tabla Impacto'!$D$13),"Moderado",IF(OR(M41='[7]Tabla Impacto'!$C$14,M41='[7]Tabla Impacto'!$D$14),"Mayor",IF(OR(M41='[7]Tabla Impacto'!$C$15,M41='[7]Tabla Impacto'!$D$15),"Catastrófico",""))))) -> Moderado | O41: 0.6 | P41: Moderado | Q41: 1 | R41: El Profesional liquidos/Profesional Downstream/Profesional BI - SICOM, valida el registro de errores y realiza los ajustes y pruebas a las reglas de validacion establecidas en la base de datos durante la etapa de analisisa mediante un reporte de los casos en el sistema aranda de manera mensual donde se adjunte el Log de errors de la Base de Datos SQL, cuando existe una desviación en las variables realizan ajustes de variables según la metodología establecida. Adicionalmente, verifica el periodo de publicación dentro de los tiempos de calendario de difusión establecidos, antes de su publicacion.a mediante el EP-F-11 Calendario de difusión del proceso estadístico de las transacciones de volúmenes líquidos derivados del petróleo, en caso de presentar novedades en relación con accesibilidad, remite Correo electronico notificando novedades para ajustes; si no hay novedades en la verificación del periodo a publicar realiza la aprobación del boletin | S41: El Profesional liquidos/Profesional Downstream/Profesional BI - SICOM, | T41: Validar el registro de errores y realizar los ajustes y pruebas a las reglas de validacion establecidas en la base de datos durante la etapa de analisisa , cuando existe una desviación en las variables realizan ajustes de variables según la metodología establecida. Verificar el periodo de publicación dentro de los tiempos de calendario de difusión establecidos, antes de su publicacion, en caso de presentar novedades en relación con accesibilidad, remite correo electronico notificando novedades para ajustes; si no hay novedades en la verificación del periodo a publicar realiza la aprobación del boletin | U41: Reporte de los casos en el sistema aranda de manera mensual donde se adjunte el Log de errors de la Base de Datos SQL EP-F-11 Calendario de difusión del proceso estadístico de las transacciones de volúmenes líquidos derivados del petróleo Boletín | V41: Probabilidad | W41: Preventivo | X41: Manual | Y41: 40% | Z41: Documentado | AA41: Continua | AB41: Con Registro | AC41: 0.24 | AD41: Baja | AE41: 0.24 | AF41: Moderado | AG41: 0.6 | AH41: Moderado | AI41: Evitar | AN41: Dayer Gozalez / Rafael Tabarez Profesional Downstream - SICOM / Profesional Grupo liquidos - SICOM | AO41: Direccion de hidrocarburos | AP41: Director de Hidrocarburos | AQ41: 2025-02-01 | AR41: 2025-12-31
A42: 37 | B42: HIDROCARBUROS | C42: Gestión | D42: Posibilidad de afectacion reputacional por la información producida no contribuye al desarrollo de políticas públicas que respondan a las necesidades institucionales, de los clientes y partes interesadas debido a ausencia de identificación y priorización de necesidades de información estadística relevante | E42: reputacional | F42: la información producida no contribuye al desarrollo de políticas públicas que respondan a las necesidades institucionales, de los clientes y partes interesadas | G42: ausencia de identificación y priorización de necesidades de información estadística relevante | H42: Ejecucion y Administracion de procesos | I42: 12 | J42: Media | K42: 0.6 | L42: El riesgo afecta la imagen de la entidad con algunos usuarios de relevancia frente al logro de los objetivos | M42: =IF(NOT(ISERROR(MATCH(L42,'[7]Tabla Impacto'!$B$221:$B$223,0))),'[7]Tabla Impacto'!$F$223&"Por favor no seleccionar los criterios de impacto(Afectación Económica o presupuestal y Pérdida Reputacional)",L42) -> El riesgo afecta la imagen de la entidad con algunos usuarios de relevancia frente al logro de los objetivos | N42: =IF(OR(M42='[7]Tabla Impacto'!$C$11,M42='[7]Tabla Impacto'!$D$11),"Leve",IF(OR(M42='[7]Tabla Impacto'!$C$12,M42='[7]Tabla Impacto'!$D$12),"Menor",IF(OR(M42='[7]Tabla Impacto'!$C$13,M42='[7]Tabla Impacto'!$D$13),"Moderado",IF(OR(M42='[7]Tabla Impacto'!$C$14,M42='[7]Tabla Impacto'!$D$14),"Mayor",IF(OR(M42='[7]Tabla Impacto'!$C$15,M42='[7]Tabla Impacto'!$D$15),"Catastrófico",""))))) -> Moderado | O42: 0.6 | P42: Moderado | Q42: 1 | R42: El Lider Downstream/ Servicio al Ciudadano/Equipo SICOM, identifica mensualmente las necesidades de informacion asociadas a la operación estadistica a través de los diferentes canales; prioriza y gestiona para su analisis y respuesta (registros de trazabilidad) | S42: El Lider Downstream/ Servicio al Ciudadano/Equipo SICOM | T42: Identifica mensualmente las necesidades de informacion asociadas a la operación estadistica a través de los diferentes canales; prioriza y gestiona para su analisis y respuesta (registros de trazabilidad) | U42: Registro de gestión de PQR´S (MME) Registro casos (portal autogestión aranda- SICOM) | V42: =IF(OR(W42="Preventivo",W42="Detectivo"),"Probabilidad",IF(W42="Correctivo","Impacto","")) -> Probabilidad | W42: Preventivo | X42: Manual | Y42: =IF(AND(W42="Preventivo",X42="Automático"),"50%",IF(AND(W42="Preventivo",X42="Manual"),"40%",IF(AND(W42="Detectivo",X42="Automático"),"40%",IF(AND(W42="Detectivo",X42="Manual"),"30%",IF(AND(W42="Correctivo",X42="Automático"),"35%",IF(AND(W42="Correctivo",X42="Manual"),"25%","")))))) -> 40% | Z42: Sin Documentar | AA42: Continua | AB42: Con Registro | AC42: 0.36 | AD42: Baja | AE42: 0.36 | AF42: Moderado | AG42: 0.6 | AH42: Moderado | AI42: Evitar | AN42: Dayer Gozalez / Rafael Tabarez Profesional Downstream - SICOM / Profesional Grupo liquidos - SICOM | AO42: Direccion de hidrocarburos | AP42: Director de Hidrocarburos | AQ42: 2025-02-01 | AR42: 2025-12-31
A43: 38 | B43: HIDROCARBUROS | C43: Gestión | D43: Posibilidad de afectacion reputacional por la información producida no contribuye al desarrollo de políticas públicas que respondan a las necesidades institucionales, de los clientes y partes interesadas debido a la Construcción de procedimientos, instrumentos, mecanismos y herramientas que no corresponden a los objetivos de la operación estadística | E43: reputacional | F43: la información producida no contribuye al desarrollo de políticas públicas que respondan a las necesidades institucionales, de los clientes y partes interesadas | G43: la Construcción de procedimientos, instrumentos, mecanismos y herramientas que no corresponden a los objetivos de la operación estadística | H43: Ejecucion y Administracion de procesos | I43: 12 | J43: Media | K43: 0.6 | L43: El riesgo afecta la imagen de la entidad con algunos usuarios de relevancia frente al logro de los objetivos | M43: =IF(NOT(ISERROR(MATCH(L43,'[7]Tabla Impacto'!$B$221:$B$223,0))),'[7]Tabla Impacto'!$F$223&"Por favor no seleccionar los criterios de impacto(Afectación Económica o presupuestal y Pérdida Reputacional)",L43) -> El riesgo afecta la imagen de la entidad con algunos usuarios de relevancia frente al logro de los objetivos | N43: =IF(OR(M43='[7]Tabla Impacto'!$C$11,M43='[7]Tabla Impacto'!$D$11),"Leve",IF(OR(M43='[7]Tabla Impacto'!$C$12,M43='[7]Tabla Impacto'!$D$12),"Menor",IF(OR(M43='[7]Tabla Impacto'!$C$13,M43='[7]Tabla Impacto'!$D$13),"Moderado",IF(OR(M43='[7]Tabla Impacto'!$C$14,M43='[7]Tabla Impacto'!$D$14),"Mayor",IF(OR(M43='[7]Tabla Impacto'!$C$15,M43='[7]Tabla Impacto'!$D$15),"Catastrófico",""))))) -> Moderado | O43: 0.6 | P43: Moderado | Q43: 1 | R43: El Lider Downstream, realiza un monitoreo a los instrumentos, mecanismos y herramientas del proceso estadistico que permita identificar el incumplimiento frente a las metodologias definidas en la NTC PE 1000:2020 y en caso de existir desviaciones, corregir y actualizar los hallazgos | S43: Lider Downstream, | T43: Realizar monitoreo a los instrumentos, mecanismos y herramientas del proceso estadistico que permita identificar el incumplimiento frente a las metodologias definidas en la NTC PE 1000:2020 y en caso de existir desviaciones, corregir y actualizar los hallazgos mediante un plan de mejoramiento | U43: Evaluación de la operación estadistica anual Auditorias internas anuales plan de mejoramiento | V43: =IF(OR(W43="Preventivo",W43="Detectivo"),"Probabilidad",IF(W43="Correctivo","Impacto","")) -> Probabilidad | W43: Preventivo | X43: Manual | Y43: =IF(AND(W43="Preventivo",X43="Automático"),"50%",IF(AND(W43="Preventivo",X43="Manual"),"40%",IF(AND(W43="Detectivo",X43="Automático"),"40%",IF(AND(W43="Detectivo",X43="Manual"),"30%",IF(AND(W43="Correctivo",X43="Automático"),"35%",IF(AND(W43="Correctivo",X43="Manual"),"25%","")))))) -> 40% | Z43: Documentado | AA43: Continua | AB43: Con Registro | AC43: 0.36 | AD43: Baja | AE43: 0.36 | AF43: Moderado | AG43: 0.6 | AH43: Moderado | AI43: Evitar | AN43: Dayer Gozalez / Rafael Tabarez Profesional Downstream - SICOM / Profesional Grupo liquidos - SICOM | AO43: Direccion de hidrocarburos | AP43: Director de Hidrocarburos | AQ43: 2025-02-01 | AR43: 2025-12-31
A44: 39 | B44: HIDROCARBUROS | C44: Gestión | D44: Posibilidad de afectacion reputacional por Publicación de información errónea o limitada para los grupos de interés del ministerio debido a no identificar los grupos de interes, sus necesidades de informacion y herramientas de publicacion de información | E44: reputacional | F44: Publicación de información errónea o limitada para los grupos de interés del ministerio | G44: no identificar los grupos de interes, sus necesidades de informacion y herramientas de publicacion de información | H44: Ejecucion y Administracion de procesos | I44: 12 | J44: Media | K44: 0.6 | L44: El riesgo afecta la imagen de la entidad con algunos usuarios de relevancia frente al logro de los objetivos | M44: =IF(NOT(ISERROR(MATCH(L44,'[7]Tabla Impacto'!$B$221:$B$223,0))),'[7]Tabla Impacto'!$F$223&"Por favor no seleccionar los criterios de impacto(Afectación Económica o presupuestal y Pérdida Reputacional)",L44) -> El riesgo afecta la imagen de la entidad con algunos usuarios de relevancia frente al logro de los objetivos | N44: =IF(OR(M44='[7]Tabla Impacto'!$C$11,M44='[7]Tabla Impacto'!$D$11),"Leve",IF(OR(M44='[7]Tabla Impacto'!$C$12,M44='[7]Tabla Impacto'!$D$12),"Menor",IF(OR(M44='[7]Tabla Impacto'!$C$13,M44='[7]Tabla Impacto'!$D$13),"Moderado",IF(OR(M44='[7]Tabla Impacto'!$C$14,M44='[7]Tabla Impacto'!$D$14),"Mayor",IF(OR(M44='[7]Tabla Impacto'!$C$15,M44='[7]Tabla Impacto'!$D$15),"Catastrófico",""))))) -> Moderado | O44: 0.6 | P44: Moderado | Q44: 1 | R44: El Líder Grupo Gas Operador SICOM identifica las necesidades de informacion, para su análisis y respuesta; revisa que los productos estadísticos sean accesibles comprensibles para los grupos de interés en los canales de comunicación establecidos; en caso de encontrar desviaciones realizar mejoras en la informacion publicada o mantenimiento de los servicios | S44: Líder Grupo Gas / Operador SICOM | T44: Identificar las necesidades de informacion, para su análisis y respuesta (registros de trazabilidad) y revisa que los productos estadísticos sean accesibles y de comprensión para los grupos de interés, en los canales de comunicación establecidos | U44: Documentos de analisis de necesidades de registro de PQRS de la informacion estadistica a traves de ARGO. Correo de aprobacion sobre la accesibilidad para la publicación de la información | V44: =IF(OR(W44="Preventivo",W44="Detectivo"),"Probabilidad",IF(W44="Correctivo","Impacto","")) -> Probabilidad | W44: Preventivo | X44: Manual | Y44: =IF(AND(W44="Preventivo",X44="Automático"),"50%",IF(AND(W44="Preventivo",X44="Manual"),"40%",IF(AND(W44="Detectivo",X44="Automático"),"40%",IF(AND(W44="Detectivo",X44="Manual"),"30%",IF(AND(W44="Correctivo",X44="Automático"),"35%",IF(AND(W44="Correctivo",X44="Manual"),"25%","")))))) -> 40% | Z44: Documentado | AA44: Continua | AB44: Con Registro | AC44: 0.36 | AD44: Baja | AE44: 0.36 | AF44: Moderado | AG44: 0.6 | AH44: Moderado | AI44: Evitar | AN44: Dayer Gozalez / Rafael Tabarez Profesional Downstream - SICOM / Profesional Grupo GAS - SICOM | AO44: Direccion de hidrocarburos | AP44: Director de Hidrocarburos | AQ44: 2025-02-01 | AR44: 2025-12-31
A45: 40 | B45: HIDROCARBUROS | C45: Gestión | D45: Posibilidad de afectacion reputacional por Incumplimiento en una o varias fases del proceso estadistico seguno la NTC PE 1000 - 2020 que pueden afectar la producción estadística debido a no comunicar los cambios que se puedan presentar a nivel institucional (estratégicos, lineamientos operativos, personal) y/o falta de claridad de los roles, definicion de responsabilidades y falta de conocimiento para el desarrollo de las actividades de la operación estadistica | E45: reputacional | F45: Incumplimiento en una o varias fases del proceso estadistico seguno la NTC PE 1000 - 2020 que pueden afectar la producción estadística | G45: no comunicar los cambios que se puedan presentar a nivel institucional (estratégicos, lineamientos operativos, personal) y/o falta de claridad de los roles, definicion de responsabilidades y falta de conocimiento para el desarrollo de las actividades de la operación estadistica | H45: Ejecucion y Administracion de procesos | I45: 2 | J45: Muy Baja | K45: 0.2 | L45: El riesgo afecta la imagen de la entidad con algunos usuarios de relevancia frente al logro de los objetivos | M45: =IF(NOT(ISERROR(MATCH(L45,'[7]Tabla Impacto'!$B$221:$B$223,0))),'[7]Tabla Impacto'!$F$223&"Por favor no seleccionar los criterios de impacto(Afectación Económica o presupuestal y Pérdida Reputacional)",L45) -> El riesgo afecta la imagen de la entidad con algunos usuarios de relevancia frente al logro de los objetivos | N45: =IF(OR(M45='[7]Tabla Impacto'!$C$11,M45='[7]Tabla Impacto'!$D$11),"Leve",IF(OR(M45='[7]Tabla Impacto'!$C$12,M45='[7]Tabla Impacto'!$D$12),"Menor",IF(OR(M45='[7]Tabla Impacto'!$C$13,M45='[7]Tabla Impacto'!$D$13),"Moderado",IF(OR(M45='[7]Tabla Impacto'!$C$14,M45='[7]Tabla Impacto'!$D$14),"Mayor",IF(OR(M45='[7]Tabla Impacto'!$C$15,M45='[7]Tabla Impacto'!$D$15),"Catastrófico",""))))) -> Moderado | O45: 0.6 | P45: Moderado | Q45: 1 | R45: El Lider Grupo Gas/ Lider / operador SICOM, Realizará periodicamente la evaluacion del proceso estadistico en cada una de las fases, cuando exista una desviacion del control se realiza el cambio correspondiente describiendo en la observacion el tipo de cambio realizado. Igualmente, Informará y participará (en los casos que aplique) al operador y enlace del MME, de las actividades que se realizan al interior de la entidad y que impactan de manera directa la implementación y seguimiento de la OE. Adicionalmente, Definirá los roles y responsabilidades de las personas que desarrollen las actividades dentro del proceso estadistico segun la metodologia definida. y Finalmente, Contará con el personal involucrado en la implementacion (MME) para dar continidad a la actividades planificadas y fortalecer los conocimientos del personal (operador - MME) en temas relacionados con el proceso estadístico. | S45: Lider Grupo Gas/ Lider / operador SICOM | T45: Realizar periodicamente la evaluacion del proceso estadistico en cada una de las fases. cuando exista una desviacion del control se realiza el cambio correspondiente describiendo en la observacion el tipo de cambio realizado. Informar y participar (en los casos que aplique) al operador y enlace del MME, de las actividades que se realizan al interior de la entidad y que impactan de manera directa la implementación y seguimiento de la OE. Definir los roles y responsabilidades de las personas que desarrollen las actividades dentro del proceso estadistico segun la metodologia definida. Contar con el personal involucrado en la implementacion (MME) para dar continidad a la actividades planificadas y fortalecer los conocimientos del personal (operador - MME) en temas relacionados con el proceso estadístico. | U45: Registro evaluación del proceso estadístico Actas de reuniones (cuando aplique) Formación y entrenamiento ( cuando aplique). Matriz de control de personal | V45: Probabilidad | W45: Preventivo | X45: Manual | Y45: 40% | Z45: Documentado | AA45: Continua | AB45: Con Registro | AC45: 0.12 | AD45: Muy Baja | AE45: 0.12 | AF45: Moderado | AG45: 0.6 | AH45: Moderado | AI45: Evitar | AN45: Dayer Gozalez / Rafael Tabarez Profesional Downstream - SICOM / Profesional Grupo GAS - SICOM | AO45: Direccion de hidrocarburos | AP45: Director de Hidrocarburos | AQ45: 2025-02-01 | AR45: 2025-12-31
A46: 41 | B46: HIDROCARBUROS | C46: Gestión | D46: Posibilidad de afectacion reputacional por incertidumbre en los resultados del proceso estadistico en relacion la consistencia de los resultados debido a no aplicar la metodología de analisis que permita validar la información publicada, que reflejen la realidad del fenómeno de estudio | E46: reputacional | F46: incertidumbre en los resultados del proceso estadistico en relacion la consistencia de los resultados | G46: no aplicar la metodología de analisis que permita validar la información publicada, que reflejen la realidad del fenómeno de estudio | H46: Ejecucion y Administracion de procesos | I46: 3 | J46: Baja | K46: 0.4 | L46: El riesgo afecta la imagen de la entidad con algunos usuarios de relevancia frente al logro de los objetivos | M46: =IF(NOT(ISERROR(MATCH(L46,'[7]Tabla Impacto'!$B$221:$B$223,0))),'[7]Tabla Impacto'!$F$223&"Por favor no seleccionar los criterios de impacto(Afectación Económica o presupuestal y Pérdida Reputacional)",L46) -> El riesgo afecta la imagen de la entidad con algunos usuarios de relevancia frente al logro de los objetivos | N46: =IF(OR(M46='[7]Tabla Impacto'!$C$11,M46='[7]Tabla Impacto'!$D$11),"Leve",IF(OR(M46='[7]Tabla Impacto'!$C$12,M46='[7]Tabla Impacto'!$D$12),"Menor",IF(OR(M46='[7]Tabla Impacto'!$C$13,M46='[7]Tabla Impacto'!$D$13),"Moderado",IF(OR(M46='[7]Tabla Impacto'!$C$14,M46='[7]Tabla Impacto'!$D$14),"Mayor",IF(OR(M46='[7]Tabla Impacto'!$C$15,M46='[7]Tabla Impacto'!$D$15),"Catastrófico",""))))) -> Moderado | O46: 0.6 | P46: Moderado | Q46: 1 | R46: El Lider Grupo Gas operador SICOM validará mediante socializaciones los resultados del analisis de la produccion estadistica, analizando que la informacion sea comprensiva, tenga credibilidad de resultados y confianza para toma de decisiones. En caso que se encuentre desviaciones del control se reajustará la metodologia aplicada | S46: Lider Grupo Gas operador SICOM | T46: socializar los resultados del analisis de la produccion estadistica, analizando que la informacion sea comprensiva, tenga credibilidad de resultados y confianza para toma de decisiones. | U46: Reportes de las novedades presentadas (caso aranda) Registos de socializacion de los resultados (garabaciones, reuniones, etc) | V46: Probabilidad | W46: Preventivo | X46: Manual | Y46: 40% | Z46: Documentado | AA46: Continua | AB46: Con Registro | AC46: 0.24 | AD46: Baja | AE46: 0.24 | AF46: Moderado | AG46: 0.6 | AH46: Moderado | AI46: Evitar | AN46: Dayer Gozalez / Rafael Tabarez Profesional Downstream - SICOM / Profesional Grupo GAS - SICOM | AO46: Direccion de hidrocarburos | AP46: Director de Hidrocarburos | AQ46: 2025-02-01 | AR46: 2025-12-31
A47: 42 | B47: HIDROCARBUROS | C47: Gestión | D47: Posibilidad de afectacion reputacional por Ausencia de informacion estadistica de gas combustible vehicular relevante para la toma de decisiones debido a no publicar oportunamente los productos de informacion estadística, según el cronograma de difusión | E47: reputacional | F47: Ausencia de informacion estadistica de gas combustible vehicular relevante para la toma de decisiones | G47: no publicar oportunamente los productos de informacion estadística, según el cronograma de difusión | H47: Ejecucion y Administracion de procesos | I47: 6 | J47: Media | K47: 0.6 | L47: El riesgo afecta la imagen de alguna área de la organización | M47: =IF(NOT(ISERROR(MATCH(L47,'[7]Tabla Impacto'!$B$221:$B$223,0))),'[7]Tabla Impacto'!$F$223&"Por favor no seleccionar los criterios de impacto(Afectación Económica o presupuestal y Pérdida Reputacional)",L47) -> El riesgo afecta la imagen de alguna área de la organización | N47: =IF(OR(M47='[7]Tabla Impacto'!$C$11,M47='[7]Tabla Impacto'!$D$11),"Leve",IF(OR(M47='[7]Tabla Impacto'!$C$12,M47='[7]Tabla Impacto'!$D$12),"Menor",IF(OR(M47='[7]Tabla Impacto'!$C$13,M47='[7]Tabla Impacto'!$D$13),"Moderado",IF(OR(M47='[7]Tabla Impacto'!$C$14,M47='[7]Tabla Impacto'!$D$14),"Mayor",IF(OR(M47='[7]Tabla Impacto'!$C$15,M47='[7]Tabla Impacto'!$D$15),"Catastrófico",""))))) -> Leve | O47: 0.2 | P47: Moderado | Q47: 1 | R47: El Lider Grupo Gas, Realizará seguimiento periodico al calendario establecido para la publicación de los productos estadísticos y a su vez, realizará monitoreo y actualizaciones en la infraestructura tecnologica y otros instrumentos de comunicación para el acceso a la información. | S47: Lider Grupo Gas | T47: Realizar seguimiento periodico al calendario establecido para la publicación de los productos estadísticos; realizar monitoreo y actualizaciones en la infraestructura tecnologica y otros instrumentos de comunicación para el acceso a la información. | U47: Correos de aprobación de la publicación de la información estadística. Reporte de monitoreo y actualizacion en la infraestructura del boletin estadistico | V47: Probabilidad | W47: Preventivo | X47: Manual | Y47: 40% | Z47: Documentado | AA47: Continua | AB47: Con Registro | AC47: 0.36 | AD47: Baja | AE47: 0.36 | AF47: Leve | AG47: 0.2 | AH47: Bajo | AI47: Evitar | AN47: Dayer Gozalez / Rafael Tabarez Profesional Downstream - SICOM / Profesional Grupo GAS - SICOM | AO47: Direccion de hidrocarburos | AP47: Director de Hidrocarburos | AQ47: 2025-02-01 | AR47: 2025-12-31
A48: 43 | B48: HIDROCARBUROS | C48: Fiscal | D48: =IF(C48="Fiscal",_xlfn.CONCAT("Posibilidad de efectos dañosos sobre bienes públicos "," por o para ",F48," debido a ",G48),IF(C48="Gestión",_xlfn.CONCAT("Posibilidad de afectacion ",E48," por ",F48," debido a ",G48),"")) -> Posibilidad de efectos dañosos sobre bienes públicos por o para pago de subsidios u otros beneficios a una empresa prestadora de servicios públicos (Gas Cilindros y RED) que no tienen derecho a los mismos a la luz de requisitos de ley debido a a causa de la omisión en la aplicación del procedimiento y normatividad para la asignación de recursos | E48: reputacional | F48: pago de subsidios u otros beneficios a una empresa prestadora de servicios públicos (Gas Cilindros y RED) que no tienen derecho a los mismos a la luz de requisitos de ley | G48: a causa de la omisión en la aplicación del procedimiento y normatividad para la asignación de recursos | H48: Ejecucion y Administracion de procesos | I48: 12 | J48: =IF(I48<=0,"",IF(I48<=2,"Muy Baja",IF(I48<=5,"Baja",IF(I48<=19,"Media",IF(I48<=50,"Alta","Muy Alta"))))) -> Media | K48: =IF(J48="","",IF(J48="Muy Baja",0.2,IF(J48="Baja",0.4,IF(J48="Media",0.6,IF(J48="Alta",0.8,IF(J48="Muy Alta",1,)))))) -> 0.6 | L48: El riesgo afecta la imagen de la entidad a nivel nacional, con efecto publicitarios sostenible a nivel país | M48: =IF(NOT(ISERROR(MATCH(L48,'[7]Tabla Impacto'!$B$221:$B$223,0))),'[7]Tabla Impacto'!$F$223&"Por favor no seleccionar los criterios de impacto(Afectación Económica o presupuestal y Pérdida Reputacional)",L48) -> El riesgo afecta la imagen de la entidad a nivel nacional, con efecto publicitarios sostenible a nivel país | N48: =IF(OR(M48='[7]Tabla Impacto'!$C$11,M48='[7]Tabla Impacto'!$D$11),"Leve",IF(OR(M48='[7]Tabla Impacto'!$C$12,M48='[7]Tabla Impacto'!$D$12),"Menor",IF(OR(M48='[7]Tabla Impacto'!$C$13,M48='[7]Tabla Impacto'!$D$13),"Moderado",IF(OR(M48='[7]Tabla Impacto'!$C$14,M48='[7]Tabla Impacto'!$D$14),"Mayor",IF(OR(M48='[7]Tabla Impacto'!$C$15,M48='[7]Tabla Impacto'!$D$15),"Catastrófico",""))))) -> Catastrófico | O48: 1 | P48: Extremo | Q48: 1 | R48: El profesional especializado del grupo gas combustible verifica que la Superintendencia de Servicios Público Domiciliarios (SSPD) envíe el estado de cargue de informaicón en el SUI por parte de las empresas del sector de gas combustible, con el fin de realizar la distribución y asignación de los subsidios, para luego remitir a la Subdirección Administrativa y Financiera para que proceda con el pago respectivo, en caso que no haya validación de cargue de información por parte de la SSPD no se procederá con el pago y se informará a la empresa prestadora. | S48: Profesional especializado grupo gas combustible | T48: Verificar que la Superintendencia de Servicios Público Domiciliarios (SSPD) envíe el estado de cargue de informaicón en el SUI por parte de las empresas del sector de gas combustible, con el fin de realizar la distribución y asignación de los subsidios, para luego remitir a la Subdirección Administrativa y Financiera para que proceda con el pago respectivo, en caso que no haya validación de cargue de información por parte de la SSPD no se procederá con el pago y se informará a la empresa prestadora. | U48: Comunicación de la SSPD, resolución de pago y comunicación a la empresa prestadora | V48: =IF(OR(W48="Preventivo",W48="Detectivo"),"Probabilidad",IF(W48="Correctivo","Impacto","")) -> Probabilidad | W48: Preventivo | X48: Manual | Y48: =IF(AND(W48="Preventivo",X48="Automático"),"50%",IF(AND(W48="Preventivo",X48="Manual"),"40%",IF(AND(W48="Detectivo",X48="Automático"),"40%",IF(AND(W48="Detectivo",X48="Manual"),"30%",IF(AND(W48="Correctivo",X48="Automático"),"35%",IF(AND(W48="Correctivo",X48="Manual"),"25%","")))))) -> 40% | Z48: Documentado | AA48: Continua | AB48: Con Registro | AC48: 0.36 | AD48: Baja | AE48: 0.36 | AF48: Catastrófico | AG48: 1 | AH48: Extremo | AI48: Evitar | AN48: Profesional especializado grupo gas combustible | AO48: Direccion de hidrocarburos | AP48: Director de Hidrocarburos | AQ48: 2025-02-01 | AR48: 2025-12-31
Q49: 2 | R49: El profesional especializado del grupo gas combustible realiza la debida verificación de datos en cada uno de los aplicativos (SUI-SSPD y aplicativo de subsidios del MME ) para validar que el valor real a pagar sea el mismo en los dos aplicativos, en caso que los valores no sean iguales en ambos aplicativos no se procede al pago. | S49: Profesional especializado grupo gas combustible | T49: verificación de datos en cada uno de los aplicativos (SUI-SSPD y aplicativo de subsidios del MME ) para validar que el valor real a pagar sea el mismo en los dos aplicativos, en caso que los valores no sean iguales en ambos aplicativos no se procede al pago. | U49: Resolución de pago generada correspondiente a los valores pagados durante el mes. Excel verificación de SUI mes validado | V49: Probabilidad | W49: Preventivo | X49: Manual | Y49: 40% | Z49: Documentado | AA49: Continua | AB49: Con Registro | AC49: =IFERROR(IF(V49="Probabilidad",(K49-(+K49*Y49)),IF(V49="Impacto",K49,"")),"") -> 0 | AD49: =IFERROR(IF(AC49="","",IF(AC49<=0.2,"Muy Baja",IF(AC49<=0.4,"Baja",IF(AC49<=0.6,"Media",IF(AC49<=0.8,"Alta","Muy Alta"))))),"") -> Muy Baja | AE49: =+AC49 -> 0 | AF49: =IFERROR(IF(AG49="","",IF(AG49<=0.2,"Leve",IF(AG49<=0.4,"Menor",IF(AG49<=0.6,"Moderado",IF(AG49<=0.8,"Mayor","Catastrófico"))))),"") -> Leve | AG49: =IFERROR(IF(V49="Impacto",(O49-(+O49*Y49)),IF(V49="Probabilidad",O49,"")),"") -> 0 | AH49: =IFERROR(IF(OR(AND(AD49="Muy Baja",AF49="Leve"),AND(AD49="Muy Baja",AF49="Menor"),AND(AD49="Baja",AF49="Leve")),"Bajo",IF(OR(AND(AD49="Muy baja",AF49="Moderado"),AND(AD49="Baja",AF49="Menor"),AND(AD49="Baja",AF49="Moderado"),AND(AD49="Media",AF49="Leve"),AND(AD49="Media",AF49="Menor"),AND(AD49="Media",AF49="Moderado"),AND(AD49="Alta",AF49="Leve"),AND(AD49="Alta",AF49="Menor")),"Moderado",IF(OR(AND(AD49="Muy Baja",AF49="Mayor"),AND(AD49="Baja",AF49="Mayor"),AND(AD49="Media",AF49="Mayor"),AND(AD49="Alta",AF49="Moderado"),AND(AD49="Alta",AF49="Mayor"),AND(AD49="Muy Alta",AF49="Leve"),AND(AD49="Muy Alta",AF49="Menor"),AND(AD49="Muy Alta",AF49="Moderado"),AND(AD49="Muy Alta",AF49="Mayor")),"Alto",IF(OR(AND(AD49="Muy Baja",AF49="Catastrófico"),AND(AD49="Baja",AF49="Catastrófico"),AND(AD49="Media",AF49="Catastrófico"),AND(AD49="Alta",AF49="Catastrófico"),AND(AD49="Muy Alta",AF49="Catastrófico")),"Extremo","")))),"") -> Bajo | AI49: Evitar | AN49: Profesional especializado grupo gas combustible | AO49: Direccion de hidrocarburos | AP49: Director de Hidrocarburos | AQ49: 2025-02-01 | AR49: 2025-12-31
A50: 44 | B50: HIDROCARBUROS | C50: Gestión | D50: =IF(C50="Fiscal",_xlfn.CONCAT("Posibilidad de efectos dañosos sobre bienes públicos "," por o para ",F50," debido a ",G50),IF(C50="Gestión",_xlfn.CONCAT("Posibilidad de afectacion ",E50," por ",F50," debido a ",G50),"")) -> Posibilidad de afectacion reputacional por no generar oportunamente las alertas sobre el avance del recaudo del SGR y el comportamiento de las variables utilizadas para las proyecciones del presupuesto bienal del SGR por no realizar el seguimiento al recaudo del SGR y a la determinación mensual de Asignaciones Directas debido a que no se realiza la consolidación mensual de la información reportada por la Agencia Nacional de Minería y la Agencia Nacional de Hidrocarburos mensualmente relacionada con el recaudo por sector de explotación y con la determinación las Asignaciones Directas por beneficiario. | E50: reputacional | F50: no generar oportunamente las alertas sobre el avance del recaudo del SGR y el comportamiento de las variables utilizadas para las proyecciones del presupuesto bienal del SGR por no realizar el seguimiento al recaudo del SGR y a la determinación mensual de Asignaciones Directas | G50: que no se realiza la consolidación mensual de la información reportada por la Agencia Nacional de Minería y la Agencia Nacional de Hidrocarburos mensualmente relacionada con el recaudo por sector de explotación y con la determinación las Asignaciones Directas por beneficiario. | H50: Ejecucion y Administracion de procesos | I50: 12 | J50: =IF(I50<=0,"",IF(I50<=2,"Muy Baja",IF(I50<=24,"Baja",IF(I50<=500,"Media",IF(I50<=5000,"Alta","Muy Alta"))))) -> Baja | K50: 0.4 | L50: El riesgo afecta la imagen de la entidad a nivel nacional, con efecto publicitarios sostenible a nivel país | M50: =IF(NOT(ISERROR(MATCH(L50,'[5]Tabla Impacto'!#REF!,0))),'[5]Tabla Impacto'!$F$229&"Por favor no seleccionar los criterios de impacto(Afectación Económica o presupuestal y Pérdida Reputacional)",L50) -> El riesgo afecta la imagen de la entidad a nivel nacional, con efecto publicitarios sostenible a nivel país | N50: =IF(OR(M50='[5]Tabla Impacto'!$C$11,M50='[5]Tabla Impacto'!$D$11),"Leve",IF(OR(M50='[5]Tabla Impacto'!$C$12,M50='[5]Tabla Impacto'!$D$12),"Menor",IF(OR(M50='[5]Tabla Impacto'!$C$13,M50='[5]Tabla Impacto'!$D$13),"Moderado",IF(OR(M50='[5]Tabla Impacto'!$C$14,M50='[5]Tabla Impacto'!$D$14),"Mayor",IF(OR(M50='[5]Tabla Impacto'!$C$15,M50='[5]Tabla Impacto'!$D$15),"Catastrófico",""))))) -> Catastrófico | O50: =IF(N50="","",IF(N50="Leve",0.2,IF(N50="Menor",0.4,IF(N50="Moderado",0.6,IF(N50="Mayor",0.8,IF(N50="Catastrófico",1,)))))) -> 1 | P50: =IF(OR(AND(J50="Muy Baja",N50="Leve"),AND(J50="Muy Baja",N50="Menor"),AND(J50="Baja",N50="Leve")),"Bajo",IF(OR(AND(J50="Muy baja",N50="Moderado"),AND(J50="Baja",N50="Menor"),AND(J50="Baja",N50="Moderado"),AND(J50="Media",N50="Leve"),AND(J50="Media",N50="Menor"),AND(J50="Media",N50="Moderado"),AND(J50="Alta",N50="Leve"),AND(J50="Alta",N50="Menor")),"Moderado",IF(OR(AND(J50="Muy Baja",N50="Mayor"),AND(J50="Baja",N50="Mayor"),AND(J50="Media",N50="Mayor"),AND(J50="Alta",N50="Moderado"),AND(J50="Alta",N50="Mayor"),AND(J50="Muy Alta",N50="Leve"),AND(J50="Muy Alta",N50="Menor"),AND(J50="Muy Alta",N50="Moderado"),AND(J50="Muy Alta",N50="Mayor")),"Alto",IF(OR(AND(J50="Muy Baja",N50="Catastrófico"),AND(J50="Baja",N50="Catastrófico"),AND(J50="Media",N50="Catastrófico"),AND(J50="Alta",N50="Catastrófico"),AND(J50="Muy Alta",N50="Catastrófico")),"Extremo","")))) -> Extremo | Q50: 1 | R50: El Grupo de Regalías, hará seguimiento mensual al recaudo de regalías mediante, el registro en una matriz de seguimiento al recaudo de regalías que informen la Agencia Nacional de Minería y la Agencia Nacional de Hidrocarburos y en caso de ser necesario, alertará cambios en el recaudo frente a la apropiación de Asignaciones Directas de conformidad con lo dispuesto en el artículo 153 de la Ley 2056 de 2020. | S50: Grupo de Regalías | T50: hará seguimiento al recaudo de regalías | U50: el registro en una matriz de seguimiento al recaudo de regalías que informen la Agencia Nacional de Minería y la Agencia Nacional de Hidrocarburos y en caso de ser necesario, alertará cambios en el recaudo frente a la apropiación de Asignaciones Directas de conformidad con lo dispuesto en el artículo 153 de la Ley 2056 de 2020. | V50: =IF(OR(W50="Preventivo",W50="Detectivo"),"Probabilidad",IF(W50="Correctivo","Impacto","")) -> Probabilidad | W50: Preventivo | X50: Manual | Y50: =IF(AND(W50="Preventivo",X50="Automático"),"50%",IF(AND(W50="Preventivo",X50="Manual"),"40%",IF(AND(W50="Detectivo",X50="Automático"),"40%",IF(AND(W50="Detectivo",X50="Manual"),"30%",IF(AND(W50="Correctivo",X50="Automático"),"35%",IF(AND(W50="Correctivo",X50="Manual"),"25%","")))))) -> 40% | Z50: Sin Documentar | AA50: Continua | AB50: Con Registro | AC50: 0.24 | AD50: Baja | AE50: 0.24 | AF50: Catastrófico | AG50: 1 | AH50: Extremo | AI50: Evitar | AJ50: Documentar el control | AK50: Asesora | AL50: 2025-01-01 | AM50: Trimestral | AN50: Coordinador | AO50: Gupo de Regalías | AP50: Jefe de Grupo | AQ50: 2025-01-01 | AR50: 2025-12-31
A51: 45 | B51: ASUNTOS NUCLEARES | C51: Gestión | D51: Posibilidad de afectacion económico y reputacional por incidentes o accidentes radiologicos o nucleares que afecten a los usuarios debido a realización de actividades no autorizadas y desactualización de la regulación para el uso seguro de materiales nucleares y radiactivos | E51: económico y reputacional | F51: incidentes o accidentes radiologicos o nucleares que afecten a los usuarios | G51: realización de actividades no autorizadas y desactualización de la regulación para el uso seguro de materiales nucleares y radiactivos | H51: Usuarios, productos y practicas , organizacionales | I51: 7 | J51: =IF(I51<=0,"",IF(I51<=2,"Muy Baja",IF(I51<=24,"Baja",IF(I51<=500,"Media",IF(I51<=5000,"Alta","Muy Alta"))))) -> Baja | K51: =IF(J51="","",IF(J51="Muy Baja",0.2,IF(J51="Baja",0.4,IF(J51="Media",0.6,IF(J51="Alta",0.8,IF(J51="Muy Alta",1,)))))) -> 0.4 | L51: El riesgo afecta la imagen de la entidad a nivel nacional, con efecto publicitarios sostenible a nivel país | M51: =IF(NOT(ISERROR(MATCH(L51,'[5]Tabla Impacto'!#REF!,0))),'[5]Tabla Impacto'!$F$229&"Por favor no seleccionar los criterios de impacto(Afectación Económica o presupuestal y Pérdida Reputacional)",L51) -> El riesgo afecta la imagen de la entidad a nivel nacional, con efecto publicitarios sostenible a nivel país | N51: =IF(OR(M51='[5]Tabla Impacto'!$C$11,M51='[5]Tabla Impacto'!$D$11),"Leve",IF(OR(M51='[5]Tabla Impacto'!$C$12,M51='[5]Tabla Impacto'!$D$12),"Menor",IF(OR(M51='[5]Tabla Impacto'!$C$13,M51='[5]Tabla Impacto'!$D$13),"Moderado",IF(OR(M51='[5]Tabla Impacto'!$C$14,M51='[5]Tabla Impacto'!$D$14),"Mayor",IF(OR(M51='[5]Tabla Impacto'!$C$15,M51='[5]Tabla Impacto'!$D$15),"Catastrófico",""))))) -> Catastrófico | O51: =IF(N51="","",IF(N51="Leve",0.2,IF(N51="Menor",0.4,IF(N51="Moderado",0.6,IF(N51="Mayor",0.8,IF(N51="Catastrófico",1,)))))) -> 1 | P51: =IF(OR(AND(J51="Muy Baja",N51="Leve"),AND(J51="Muy Baja",N51="Menor"),AND(J51="Baja",N51="Leve")),"Bajo",IF(OR(AND(J51="Muy baja",N51="Moderado"),AND(J51="Baja",N51="Menor"),AND(J51="Baja",N51="Moderado"),AND(J51="Media",N51="Leve"),AND(J51="Media",N51="Menor"),AND(J51="Media",N51="Moderado"),AND(J51="Alta",N51="Leve"),AND(J51="Alta",N51="Menor")),"Moderado",IF(OR(AND(J51="Muy Baja",N51="Mayor"),AND(J51="Baja",N51="Mayor"),AND(J51="Media",N51="Mayor"),AND(J51="Alta",N51="Moderado"),AND(J51="Alta",N51="Mayor"),AND(J51="Muy Alta",N51="Leve"),AND(J51="Muy Alta",N51="Menor"),AND(J51="Muy Alta",N51="Moderado"),AND(J51="Muy Alta",N51="Mayor")),"Alto",IF(OR(AND(J51="Muy Baja",N51="Catastrófico"),AND(J51="Baja",N51="Catastrófico"),AND(J51="Media",N51="Catastrófico"),AND(J51="Alta",N51="Catastrófico"),AND(J51="Muy Alta",N51="Catastrófico")),"Extremo","")))) -> Extremo | Q51: 1 | R51: El Coordinador del Grupo de Asuntos Nucleares supervisará y apoyará el cumplimiento de las actividades y requisitos para la elaboración de proyectos normativos relacionados con el uso seguro de materiales nucleares y radiactivos. Asimismo, evaluará las solicitudes de autorización, verificando que cumplan con la normativa vigente, y coordinará la programación de inspecciones para prevenir posibles incumplimientos. | S51: Coordinador del Grupo de Asuntos Nucleares | T51: Planificar y supervisar las actividades necesarias para la elaboración de proyectos normativos que garanticen el uso seguro de materiales nucleares y radiactivos Evaluar las solicitudes de autorización, verificando el cumplimiento de los requisitos normativos para garantizar el uso seguro de materiales nucleares o radiactivos. Supervisar la programación de inspecciones para prevenir posibles incumplimientos normativos. | U51: Matriz de seguimiento proyectos normativos Borrador del proyecto normativo. Documento técnico del dictamen sobre la aprobación o rechazo de la solicitud. Cronograma anual y seguimiento de las inspecciones técnicas de vigilancia y control de instalaciones nucleares y radiactivas a cargo del Ministerio de Minas y Energía. | V51: =IF(OR(W51="Preventivo",W51="Detectivo"),"Probabilidad",IF(W51="Correctivo","Impacto","")) -> Probabilidad | W51: Preventivo | X51: Manual | Y51: =IF(AND(W51="Preventivo",X51="Automático"),"50%",IF(AND(W51="Preventivo",X51="Manual"),"40%",IF(AND(W51="Detectivo",X51="Automático"),"40%",IF(AND(W51="Detectivo",X51="Manual"),"30%",IF(AND(W51="Correctivo",X51="Automático"),"35%",IF(AND(W51="Correctivo",X51="Manual"),"25%","")))))) -> 40% | Z51: Sin Documentar | AA51: Continua | AB51: Con Registro | AC51: =IFERROR(IF(V51="Probabilidad",(K51-(+K51*Y51)),IF(V51="Impacto",K51,"")),"") -> 0.24 | AD51: =IFERROR(IF(AC51="","",IF(AC51<=0.2,"Muy Baja",IF(AC51<=0.4,"Baja",IF(AC51<=0.6,"Media",IF(AC51<=0.8,"Alta","Muy Alta"))))),"") -> Baja | AE51: =+AC51 -> 0.24 | AF51: =IFERROR(IF(AG51="","",IF(AG51<=0.2,"Leve",IF(AG51<=0.4,"Menor",IF(AG51<=0.6,"Moderado",IF(AG51<=0.8,"Mayor","Catastrófico"))))),"") -> Catastrófico | AG51: =IFERROR(IF(V51="Impacto",(O51-(+O51*Y51)),IF(V51="Probabilidad",O51,"")),"") -> 1 | AH51: =IFERROR(IF(OR(AND(AD51="Muy Baja",AF51="Leve"),AND(AD51="Muy Baja",AF51="Menor"),AND(AD51="Baja",AF51="Leve")),"Bajo",IF(OR(AND(AD51="Muy baja",AF51="Moderado"),AND(AD51="Baja",AF51="Menor"),AND(AD51="Baja",AF51="Moderado"),AND(AD51="Media",AF51="Leve"),AND(AD51="Media",AF51="Menor"),AND(AD51="Media",AF51="Moderado"),AND(AD51="Alta",AF51="Leve"),AND(AD51="Alta",AF51="Menor")),"Moderado",IF(OR(AND(AD51="Muy Baja",AF51="Mayor"),AND(AD51="Baja",AF51="Mayor"),AND(AD51="Media",AF51="Mayor"),AND(AD51="Alta",AF51="Moderado"),AND(AD51="Alta",AF51="Mayor"),AND(AD51="Muy Alta",AF51="Leve"),AND(AD51="Muy Alta",AF51="Menor"),AND(AD51="Muy Alta",AF51="Moderado"),AND(AD51="Muy Alta",AF51="Mayor")),"Alto",IF(OR(AND(AD51="Muy Baja",AF51="Catastrófico"),AND(AD51="Baja",AF51="Catastrófico"),AND(AD51="Media",AF51="Catastrófico"),AND(AD51="Alta",AF51="Catastrófico"),AND(AD51="Muy Alta",AF51="Catastrófico")),"Extremo","")))),"") -> Extremo | AI51: Evitar | AJ51: Realizar la docuemntación de los controles | AK51: Juan Pablo Parra | AL51: 2025-03-14 | AM51: 2025-06-30 | AN51: Profesional Especializado del Grupo de Asuntos Nucleares | AO51: Oficina de Asuntos Regulatorios y Empresariales- Grupo de Asuntos Nucleares | AP51: Jefe Oficina de Asuntos Regulatorios y Empresariales | AQ51: 2025-02-03 | AR51: 2025-12-31
A52: 46 | B52: ENERGÍA | C52: Gestión | D52: =IF(C52="Fiscal",_xlfn.CONCAT("Posibilidad de efectos dañosos sobre bienes públicos "," por o para ",F52," debido a ",G52),IF(C52="Gestión",_xlfn.CONCAT("Posibilidad de afectacion ",E52," por ",F52," debido a ",G52),"")) -> Posibilidad de afectacion económico y reputacional por sanciones de entes de control por otorgamiento indebido de subsidios debido a incumplimiento de los requisitos minimos exigidos en la normatividad legal vigente. | E52: económico y reputacional | F52: sanciones de entes de control por otorgamiento indebido de subsidios | G52: incumplimiento de los requisitos minimos exigidos en la normatividad legal vigente. | H52: Ejecucion y Administracion de procesos | I52: 11 | J52: Baja | K52: 0.4 | L52: El riesgo afecta la imagen de alguna área de la organización | M52: =IF(NOT(ISERROR(MATCH(L52,'[5]Tabla Impacto'!#REF!,0))),'[5]Tabla Impacto'!$F$229&"Por favor no seleccionar los criterios de impacto(Afectación Económica o presupuestal y Pérdida Reputacional)",L52) -> El riesgo afecta la imagen de alguna área de la organización | N52: =IF(OR(M52='[5]Tabla Impacto'!$C$11,M52='[5]Tabla Impacto'!$D$11),"Leve",IF(OR(M52='[5]Tabla Impacto'!$C$12,M52='[5]Tabla Impacto'!$D$12),"Menor",IF(OR(M52='[5]Tabla Impacto'!$C$13,M52='[5]Tabla Impacto'!$D$13),"Moderado",IF(OR(M52='[5]Tabla Impacto'!$C$14,M52='[5]Tabla Impacto'!$D$14),"Mayor",IF(OR(M52='[5]Tabla Impacto'!$C$15,M52='[5]Tabla Impacto'!$D$15),"Catastrófico",""))))) -> Leve | O52: 0.2 | P52: Bajo | Q52: 1 | R52: El profesional del Grupo de Subsidios, realizará seguimiento a la recepción de la información de consumos de energía de usuarios de áreas especiales la cual se recepciona por medio de correo electrónico en las fechas establecidas en el cronograma, la evidencia es los correos electrónicos | S52: Coordinador Grupo de Subsidios o su delegado | T52: Realizar seguimiento y monitoreo mensual a la información detallada requerida para la distribución de los recursos FOES | U52: Memorandos internos con la validación de la información y asignación de subsidios | V52: =IF(OR(W52="Preventivo",W52="Detectivo"),"Probabilidad",IF(W52="Correctivo","Impacto","")) -> Probabilidad | W52: Detectivo | X52: Manual | Y52: =IF(AND(W52="Preventivo",X52="Automático"),"50%",IF(AND(W52="Preventivo",X52="Manual"),"40%",IF(AND(W52="Detectivo",X52="Automático"),"40%",IF(AND(W52="Detectivo",X52="Manual"),"30%",IF(AND(W52="Correctivo",X52="Automático"),"35%",IF(AND(W52="Correctivo",X52="Manual"),"25%","")))))) -> 30% | Z52: Documentado | AA52: Continua | AB52: Con Registro | AC52: 0.28 | AD52: Baja | AE52: 0.28 | AF52: Leve | AG52: 0.2 | AH52: Bajo | AI52: Evitar
A53: 47 | B53: ENERGÍA | C53: Fiscal | D53: =IF(C53="Fiscal",_xlfn.CONCAT("Posibilidad de efectos dañosos sobre bienes públicos "," por o para ",F53," debido a ",G53),IF(C53="Gestión",_xlfn.CONCAT("Posibilidad de afectacion ",E53," por ",F53," debido a ",G53),"")) -> Posibilidad de efectos dañosos sobre bienes públicos por o para conceptos de superávit no girados al Ministerio por parte de las ESP debido a demoras en los procesos de validación y suministro de información para el inicio de la gestión de cobro de los excedentes de las contribuciones a las empresas prestadoras del servicio público domiciliario de energía eléctrica deudoras del FSRRI | E53: económico y reputacional | F53: conceptos de superávit no girados al Ministerio por parte de las ESP | G53: demoras en los procesos de validación y suministro de información para el inicio de la gestión de cobro de los excedentes de las contribuciones a las empresas prestadoras del servicio público domiciliario de energía eléctrica deudoras del FSRRI | H53: Ejecucion y Administracion de procesos | I53: 12 | J53: =IF(I53<=0,"",IF(I53<=2,"Muy Baja",IF(I53<=24,"Baja",IF(I53<=500,"Media",IF(I53<=5000,"Alta","Muy Alta"))))) -> Baja | K53: 0.4 | L53: Mayor a 500 SMLMV | M53: =IF(NOT(ISERROR(MATCH(L53,'[5]Tabla Impacto'!#REF!,0))),'[5]Tabla Impacto'!$F$229&"Por favor no seleccionar los criterios de impacto(Afectación Económica o presupuestal y Pérdida Reputacional)",L53) -> Mayor a 500 SMLMV | N53: =IF(OR(M53='[5]Tabla Impacto'!$C$11,M53='[5]Tabla Impacto'!$D$11),"Leve",IF(OR(M53='[5]Tabla Impacto'!$C$12,M53='[5]Tabla Impacto'!$D$12),"Menor",IF(OR(M53='[5]Tabla Impacto'!$C$13,M53='[5]Tabla Impacto'!$D$13),"Moderado",IF(OR(M53='[5]Tabla Impacto'!$C$14,M53='[5]Tabla Impacto'!$D$14),"Mayor",IF(OR(M53='[5]Tabla Impacto'!$C$15,M53='[5]Tabla Impacto'!$D$15),"Catastrófico",""))))) -> Catastrófico | O53: 1 | P53: Extremo | Q53: 1 | R53: Validación de las cuentas de subsidios y contribuciones del FSSRI en el SIN, con el fin de establecer el estado de cuenta de las EPS, en caso de encontrar superavit solicitar a la empresa la devolución de los recursos o inicio de proceso de cobro coactivo a la SAF, a demás de Realizar visitas de seguimiento y monitoreo a las EPS - en concordancia con el MANUAL DE VISITAS DE SEGUIMIENTO Y MONITOREO PRESTADORES DEL SERVICIO PÚBLICO DOMICILIARIO DE ENERGÍA ELÉCTRICA EN SIN Y ZNI QUE RECIBEN SUBSIDIOS DEL FSSRI Y FOE, con el objetivo de contrastar, comparar y/o verificar que la información reportada al Ministerio de Minas y Energía y al Sistema Único de Información- SUI, relacionada con subsidios y contribuciones del FSSRI y del FOES esté acorde con la información registrada en el sistema comercial, de facturación, y/o contable del Prestador de Servicio Público Domiciliario de energía eléctrica, para determinar la correcta aplicación de los subsidios del respectivo fondo, en caso de encontrar variaciones en el control se informará a la superintendencia de servicios públicos las observaciones encontradas | S53: Coordinador Grupo de Subsidios o su delegado | T53: Validación de las cuentas de subsidios y contribuciones del FSSRI en el SIN, con el fin de establecer el estado de cuenta de las EPS, en caso de encontrar superavit solicitar a la empresa la devolución de los recursos o inicio de proceso de cobro coactivo a la SAF, a demás de Realizar visitas de seguimiento y monitoreo a las EPS con el objetivo de contrastar, comparar y/o verificar que la información reportada al Ministerio de Minas y Energía y al Sistema Único de Información- SUI, relacionada con subsidios y contribuciones del FSSRI y del FOES esté acorde con la información registrada en el sistema comercial, de facturación, y/o contable del Prestador de Servicio Público Domiciliario de energía eléctrica | U53: Oficio de validación trimestral Informe final de visita | V53: Impacto | W53: Correctivo | X53: Manual | Y53: 25% | Z53: Documentado | AA53: Continua | AB53: Con Registro | AC53: 0.4 | AD53: Baja | AE53: 0.4 | AF53: Mayor | AG53: 0.75 | AH53: Alto | AI53: Evitar | AN53: Contratista designado para reporte de riesgos | AO53: Dirección de Energía | AP53: Jefe de Oficina | AQ53: 2025-02-03 | AR53: 2025-12-31
A54: 48 | B54: ENERGÍA | C54: Gestión | D54: Posibilidad de afectacion económico y reputacional por requerimento, multa o sanción de organismos de control debido a incumplimiento de los términos de entrega de los requerimentos generados | E54: económico y reputacional | F54: requerimento, multa o sanción de organismos de control | G54: incumplimiento de los términos de entrega de los requerimentos generados | H54: Ejecucion y Administracion de procesos | I54: 100 | J54: =IF(I54<=0,"",IF(I54<=2,"Muy Baja",IF(I54<=24,"Baja",IF(I54<=500,"Media",IF(I54<=5000,"Alta","Muy Alta"))))) -> Media | K54: =IF(J54="","",IF(J54="Muy Baja",0.2,IF(J54="Baja",0.4,IF(J54="Media",0.6,IF(J54="Alta",0.8,IF(J54="Muy Alta",1,)))))) -> 0.6 | L54: El riesgo afecta la imagen de la entidad con algunos usuarios de relevancia frente al logro de los objetivos | M54: =IF(NOT(ISERROR(MATCH(L54,'[5]Tabla Impacto'!#REF!,0))),'[5]Tabla Impacto'!$F$229&"Por favor no seleccionar los criterios de impacto(Afectación Económica o presupuestal y Pérdida Reputacional)",L54) -> El riesgo afecta la imagen de la entidad con algunos usuarios de relevancia frente al logro de los objetivos | N54: =IF(OR(M54='[5]Tabla Impacto'!$C$11,M54='[5]Tabla Impacto'!$D$11),"Leve",IF(OR(M54='[5]Tabla Impacto'!$C$12,M54='[5]Tabla Impacto'!$D$12),"Menor",IF(OR(M54='[5]Tabla Impacto'!$C$13,M54='[5]Tabla Impacto'!$D$13),"Moderado",IF(OR(M54='[5]Tabla Impacto'!$C$14,M54='[5]Tabla Impacto'!$D$14),"Mayor",IF(OR(M54='[5]Tabla Impacto'!$C$15,M54='[5]Tabla Impacto'!$D$15),"Catastrófico",""))))) -> Moderado | O54: =IF(N54="","",IF(N54="Leve",0.2,IF(N54="Menor",0.4,IF(N54="Moderado",0.6,IF(N54="Mayor",0.8,IF(N54="Catastrófico",1,)))))) -> 0.6 | P54: =IF(OR(AND(J54="Muy Baja",N54="Leve"),AND(J54="Muy Baja",N54="Menor"),AND(J54="Baja",N54="Leve")),"Bajo",IF(OR(AND(J54="Muy baja",N54="Moderado"),AND(J54="Baja",N54="Menor"),AND(J54="Baja",N54="Moderado"),AND(J54="Media",N54="Leve"),AND(J54="Media",N54="Menor"),AND(J54="Media",N54="Moderado"),AND(J54="Alta",N54="Leve"),AND(J54="Alta",N54="Menor")),"Moderado",IF(OR(AND(J54="Muy Baja",N54="Mayor"),AND(J54="Baja",N54="Mayor"),AND(J54="Media",N54="Mayor"),AND(J54="Alta",N54="Moderado"),AND(J54="Alta",N54="Mayor"),AND(J54="Muy Alta",N54="Leve"),AND(J54="Muy Alta",N54="Menor"),AND(J54="Muy Alta",N54="Moderado"),AND(J54="Muy Alta",N54="Mayor")),"Alto",IF(OR(AND(J54="Muy Baja",N54="Catastrófico"),AND(J54="Baja",N54="Catastrófico"),AND(J54="Media",N54="Catastrófico"),AND(J54="Alta",N54="Catastrófico"),AND(J54="Muy Alta",N54="Catastrófico")),"Extremo","")))) -> Moderado | Q54: 1 | R54: Registro de las solicitudes o requerimientos de entes de control en matriz de seguimiento para posterior notificación y remisión al grupo responsable de dar respuesta a través de correo electrónico y seguimiento periódico al estado de la solicitud o requerimiento. | S54: Profesional Asignado de la DEE Coordinadores Director (a) | T54: Actualizar la matriz de seguimiento y notificar a los responsables de contestar la solicitudes allegadas por los entes de control. Realizar seguimiento a los tiempos de vencimiento de los requerimientos. Reportar el estado de la atención de los requerimentos | U54: Matriz de seguimiento y alertas sobre el vencimiento de las solicitudes o requerimentos | V54: =IF(OR(W54="Preventivo",W54="Detectivo"),"Probabilidad",IF(W54="Correctivo","Impacto","")) -> Probabilidad | W54: Detectivo | X54: Manual | Y54: =IF(AND(W54="Preventivo",X54="Automático"),"50%",IF(AND(W54="Preventivo",X54="Manual"),"40%",IF(AND(W54="Detectivo",X54="Automático"),"40%",IF(AND(W54="Detectivo",X54="Manual"),"30%",IF(AND(W54="Correctivo",X54="Automático"),"35%",IF(AND(W54="Correctivo",X54="Manual"),"25%","")))))) -> 30% | Z54: Documentado | AA54: Continua | AB54: Con Registro | AC54: =IFERROR(IF(V54="Probabilidad",(K54-(+K54*Y54)),IF(V54="Impacto",K54,"")),"") -> 0.42 | AD54: =IFERROR(IF(AC54="","",IF(AC54<=0.2,"Muy Baja",IF(AC54<=0.4,"Baja",IF(AC54<=0.6,"Media",IF(AC54<=0.8,"Alta","Muy Alta"))))),"") -> Media | AE54: =+AC54 -> 0.42 | AF54: =IFERROR(IF(AG54="","",IF(AG54<=0.2,"Leve",IF(AG54<=0.4,"Menor",IF(AG54<=0.6,"Moderado",IF(AG54<=0.8,"Mayor","Catastrófico"))))),"") -> Moderado | AG54: =IFERROR(IF(V54="Impacto",(O54-(+O54*Y54)),IF(V54="Probabilidad",O54,"")),"") -> 0.6 | AH54: =IFERROR(IF(OR(AND(AD54="Muy Baja",AF54="Leve"),AND(AD54="Muy Baja",AF54="Menor"),AND(AD54="Baja",AF54="Leve")),"Bajo",IF(OR(AND(AD54="Muy baja",AF54="Moderado"),AND(AD54="Baja",AF54="Menor"),AND(AD54="Baja",AF54="Moderado"),AND(AD54="Media",AF54="Leve"),AND(AD54="Media",AF54="Menor"),AND(AD54="Media",AF54="Moderado"),AND(AD54="Alta",AF54="Leve"),AND(AD54="Alta",AF54="Menor")),"Moderado",IF(OR(AND(AD54="Muy Baja",AF54="Mayor"),AND(AD54="Baja",AF54="Mayor"),AND(AD54="Media",AF54="Mayor"),AND(AD54="Alta",AF54="Moderado"),AND(AD54="Alta",AF54="Mayor"),AND(AD54="Muy Alta",AF54="Leve"),AND(AD54="Muy Alta",AF54="Menor"),AND(AD54="Muy Alta",AF54="Moderado"),AND(AD54="Muy Alta",AF54="Mayor")),"Alto",IF(OR(AND(AD54="Muy Baja",AF54="Catastrófico"),AND(AD54="Baja",AF54="Catastrófico"),AND(AD54="Media",AF54="Catastrófico"),AND(AD54="Alta",AF54="Catastrófico"),AND(AD54="Muy Alta",AF54="Catastrófico")),"Extremo","")))),"") -> Moderado | AI54: Evitar | AJ54: Socializar al interior de la DEE las responsabilidades y lineamientos para dar respuesta oportuna a derechos de petición y peticiones de órganos de control | AK54: Profesional Juridico de la DEE | AL54: 2025-06-30 | AM54: 2025-07-30 | AN54: Contratista designado para reporte de riesgos | AO54: Dirección de Energía | AP54: Jefe de Oficina | AQ54: 2025-02-03 | AR54: 2025-12-31
A55: 49 | B55: ENERGÍA | C55: Gestión | D55: =IF(C55="Fiscal",_xlfn.CONCAT("Posibilidad de efectos dañosos sobre bienes públicos "," por o para ",F55," debido a ",G55),IF(C55="Gestión",_xlfn.CONCAT("Posibilidad de afectacion ",E55," por ",F55," debido a ",G55),"")) -> Posibilidad de afectacion reputacional por aplicación indebida de los reglamentos técnicos por parte de los regulados debido a diversidad en la interpretación de los requisitos establecidos, dado que estos reglamentos son aplicados por diferentes sectores y partes interesadas | E55: reputacional | F55: aplicación indebida de los reglamentos técnicos por parte de los regulados | G55: diversidad en la interpretación de los requisitos establecidos, dado que estos reglamentos son aplicados por diferentes sectores y partes interesadas | H55: Ejecucion y Administracion de procesos | I55: 11 | J55: =IF(I55<=0,"",IF(I55<=2,"Muy Baja",IF(I55<=24,"Baja",IF(I55<=500,"Media",IF(I55<=5000,"Alta","Muy Alta"))))) -> Baja | K55: 0.4 | L55: El riesgo afecta la imagen de alguna área de la organización | M55: =IF(NOT(ISERROR(MATCH(L55,'[5]Tabla Impacto'!#REF!,0))),'[5]Tabla Impacto'!$F$229&"Por favor no seleccionar los criterios de impacto(Afectación Económica o presupuestal y Pérdida Reputacional)",L55) -> El riesgo afecta la imagen de alguna área de la organización | N55: =IF(OR(M55='[5]Tabla Impacto'!$C$11,M55='[5]Tabla Impacto'!$D$11),"Leve",IF(OR(M55='[5]Tabla Impacto'!$C$12,M55='[5]Tabla Impacto'!$D$12),"Menor",IF(OR(M55='[5]Tabla Impacto'!$C$13,M55='[5]Tabla Impacto'!$D$13),"Moderado",IF(OR(M55='[5]Tabla Impacto'!$C$14,M55='[5]Tabla Impacto'!$D$14),"Mayor",IF(OR(M55='[5]Tabla Impacto'!$C$15,M55='[5]Tabla Impacto'!$D$15),"Catastrófico",""))))) -> Leve | O55: 0.2 | P55: Bajo | Q55: 1 | R55: El Coordinador del Grupo de Reglamentos Técnicos o su delegado realiza validación de cumplimientos de las buenas prácticas reglamentarias establecidas por el Ministerio de Comercio industria y turismo y realizará reuniones, mesas de trabajo y divulgación de los reglamentos con los regulados del sector, para recibir retroalimentación sobre la normatividad vigente y así obtener insumos que sirvan para actualizar o modificar los reglamentos a demás de medir su impacto | S55: El Coordinador del Grupo de Reglamentos Técnicos o su delegado | T55: Validar el cumplimientos de las buenas prácticas reglamentarias establecidas por el Ministerio de Comercio industria y turismo y socializar a quien corresponda el resultado del análisis realizado a la información recibida por el sector | U55: Documentos soporte de las buenas prácticas reglamentarias. Informe anual con el analisis y compilación de la información aportada por el sector | V55: Probabilidad | W55: Detectivo | X55: Manual | Y55: 30% | Z55: Documentado | AA55: Continua | AB55: Con Registro | AC55: 0.28 | AD55: Baja | AE55: 0.28 | AF55: Leve | AG55: 0.2 | AH55: Bajo | AI55: Evitar | AJ55: Liderar reuniones, mesas de trabajo y divulgaciones de los reglamentos con los regulados del sector Evidencia: Listados de asistencia y actas de reunión | AK55: El Coordinador del Grupo de Reglamentos Técnicos o su delegado | AL55: 2025-12-31 | AM55: 2025-06-15 | AN55: Contratista designado para reporte de riesgos | AO55: Dirección de Energía | AP55: Jefe de Oficina | AQ55: 2025-02-03 | AR55: 2025-12-31
A56: 50 | B56: ENERGÍA | C56: Fiscal | D56: Posibilidad de efectos dañosos sobre bienes públicos por o para dificultad y/o retraso en la ejecución de los proyectos financiados con los Fondos FAER y FAZNI y PRONE, que darán acceso al servicio de energía eléctrica debido a Inadecuada supervisión y verificación del cumplimiento de las condiciones contractuales | E56: económico y reputacional | F56: dificultad y/o retraso en la ejecución de los proyectos financiados con los Fondos FAER y FAZNI y PRONE, que darán acceso al servicio de energía eléctrica | G56: Inadecuada supervisión y verificación del cumplimiento de las condiciones contractuales | H56: Ejecucion y Administracion de procesos | I56: 250 | J56: =IF(I56<=0,"",IF(I56<=2,"Muy Baja",IF(I56<=24,"Baja",IF(I56<=500,"Media",IF(I56<=5000,"Alta","Muy Alta"))))) -> Media | K56: =IF(J56="","",IF(J56="Muy Baja",0.2,IF(J56="Baja",0.4,IF(J56="Media",0.6,IF(J56="Alta",0.8,IF(J56="Muy Alta",1,)))))) -> 0.6 | L56: El riesgo afecta la imagen de la entidad con algunos usuarios de relevancia frente al logro de los objetivos | M56: =IF(NOT(ISERROR(MATCH(L56,'[5]Tabla Impacto'!#REF!,0))),'[5]Tabla Impacto'!$F$229&"Por favor no seleccionar los criterios de impacto(Afectación Económica o presupuestal y Pérdida Reputacional)",L56) -> El riesgo afecta la imagen de la entidad con algunos usuarios de relevancia frente al logro de los objetivos | N56: =IF(OR(M56='[5]Tabla Impacto'!$C$11,M56='[5]Tabla Impacto'!$D$11),"Leve",IF(OR(M56='[5]Tabla Impacto'!$C$12,M56='[5]Tabla Impacto'!$D$12),"Menor",IF(OR(M56='[5]Tabla Impacto'!$C$13,M56='[5]Tabla Impacto'!$D$13),"Moderado",IF(OR(M56='[5]Tabla Impacto'!$C$14,M56='[5]Tabla Impacto'!$D$14),"Mayor",IF(OR(M56='[5]Tabla Impacto'!$C$15,M56='[5]Tabla Impacto'!$D$15),"Catastrófico",""))))) -> Moderado | O56: =IF(N56="","",IF(N56="Leve",0.2,IF(N56="Menor",0.4,IF(N56="Moderado",0.6,IF(N56="Mayor",0.8,IF(N56="Catastrófico",1,)))))) -> 0.6 | P56: =IF(OR(AND(J56="Muy Baja",N56="Leve"),AND(J56="Muy Baja",N56="Menor"),AND(J56="Baja",N56="Leve")),"Bajo",IF(OR(AND(J56="Muy baja",N56="Moderado"),AND(J56="Baja",N56="Menor"),AND(J56="Baja",N56="Moderado"),AND(J56="Media",N56="Leve"),AND(J56="Media",N56="Menor"),AND(J56="Media",N56="Moderado"),AND(J56="Alta",N56="Leve"),AND(J56="Alta",N56="Menor")),"Moderado",IF(OR(AND(J56="Muy Baja",N56="Mayor"),AND(J56="Baja",N56="Mayor"),AND(J56="Media",N56="Mayor"),AND(J56="Alta",N56="Moderado"),AND(J56="Alta",N56="Mayor"),AND(J56="Muy Alta",N56="Leve"),AND(J56="Muy Alta",N56="Menor"),AND(J56="Muy Alta",N56="Moderado"),AND(J56="Muy Alta",N56="Mayor")),"Alto",IF(OR(AND(J56="Muy Baja",N56="Catastrófico"),AND(J56="Baja",N56="Catastrófico"),AND(J56="Media",N56="Catastrófico"),AND(J56="Alta",N56="Catastrófico"),AND(J56="Muy Alta",N56="Catastrófico")),"Extremo","")))) -> Moderado | Q56: 1 | R56: Los profesionales del Grupo de Supervisión de la Dirección de Energía Eléctrica aplican los controles descritos en la ultima versión del procedimiento "M-EN-P-13 Supervisión de proyectos a cargo de la Dirección de Energía Eléctrica" donde se realizan revisiones cruzadas en las áreas técnica, jurídica, financiera y administrativa, lo cual se realizará a través de la matriz general de supervisión donde se evidencian todas las actuaciones hechas en virtud de la supervisión realizada. En caso de haber desviación del control se reporta al grupo de gestión contractual el posible incumplimiento para que se inicie el respectivo proceso. | S56: Profesionales del Grupo de Supervisión de la Dirección de Energía Eléctrica | T56: Realizar revisiones del avance y cumplimiento de las condiciones contractuales, desde los aspectos técnicos, jurídicos y financieros, en caso tal de alguna inconsistencia realizar el reporte de incumplimientos al Grupo de Gestión Contractual | U56: Matriz general de supervisión. Reportes o informes al grupo de gestión contractual | V56: =IF(OR(W56="Preventivo",W56="Detectivo"),"Probabilidad",IF(W56="Correctivo","Impacto","")) -> Probabilidad | W56: Detectivo | X56: Manual | Y56: =IF(AND(W56="Preventivo",X56="Automático"),"50%",IF(AND(W56="Preventivo",X56="Manual"),"40%",IF(AND(W56="Detectivo",X56="Automático"),"40%",IF(AND(W56="Detectivo",X56="Manual"),"30%",IF(AND(W56="Correctivo",X56="Automático"),"35%",IF(AND(W56="Correctivo",X56="Manual"),"25%","")))))) -> 30% | Z56: Documentado | AA56: Continua | AB56: Con Registro | AC56: =IFERROR(IF(V56="Probabilidad",(K56-(+K56*Y56)),IF(V56="Impacto",K56,"")),"") -> 0.42 | AD56: =IFERROR(IF(AC56="","",IF(AC56<=0.2,"Muy Baja",IF(AC56<=0.4,"Baja",IF(AC56<=0.6,"Media",IF(AC56<=0.8,"Alta","Muy Alta"))))),"") -> Media | AE56: =+AC56 -> 0.42 | AF56: =IFERROR(IF(AG56="","",IF(AG56<=0.2,"Leve",IF(AG56<=0.4,"Menor",IF(AG56<=0.6,"Moderado",IF(AG56<=0.8,"Mayor","Catastrófico"))))),"") -> Moderado | AG56: =IFERROR(IF(V56="Impacto",(O56-(+O56*Y56)),IF(V56="Probabilidad",O56,"")),"") -> 0.6 | AH56: =IFERROR(IF(OR(AND(AD56="Muy Baja",AF56="Leve"),AND(AD56="Muy Baja",AF56="Menor"),AND(AD56="Baja",AF56="Leve")),"Bajo",IF(OR(AND(AD56="Muy baja",AF56="Moderado"),AND(AD56="Baja",AF56="Menor"),AND(AD56="Baja",AF56="Moderado"),AND(AD56="Media",AF56="Leve"),AND(AD56="Media",AF56="Menor"),AND(AD56="Media",AF56="Moderado"),AND(AD56="Alta",AF56="Leve"),AND(AD56="Alta",AF56="Menor")),"Moderado",IF(OR(AND(AD56="Muy Baja",AF56="Mayor"),AND(AD56="Baja",AF56="Mayor"),AND(AD56="Media",AF56="Mayor"),AND(AD56="Alta",AF56="Moderado"),AND(AD56="Alta",AF56="Mayor"),AND(AD56="Muy Alta",AF56="Leve"),AND(AD56="Muy Alta",AF56="Menor"),AND(AD56="Muy Alta",AF56="Moderado"),AND(AD56="Muy Alta",AF56="Mayor")),"Alto",IF(OR(AND(AD56="Muy Baja",AF56="Catastrófico"),AND(AD56="Baja",AF56="Catastrófico"),AND(AD56="Media",AF56="Catastrófico"),AND(AD56="Alta",AF56="Catastrófico"),AND(AD56="Muy Alta",AF56="Catastrófico")),"Extremo","")))),"") -> Moderado | AI56: Evitar | AJ56: Realizar reuniones de seguimiento con el ejecutor | AK56: Apoyo a la supervisión | AL56: 2025-12-31 | AM56: 2025-12-31 | AN56: Contratista designado para reporte de riesgos | AO56: Dirección de Energía | AP56: Jefe de Oficina | AQ56: 2025-02-03 | AR56: 2025-12-31
A57: 51 | B57: ENERGÍA | C57: Gestión | D57: =IF(C57="Fiscal",_xlfn.CONCAT("Posibilidad de efectos dañosos sobre bienes públicos "," por o para ",F57," debido a ",G57),IF(C57="Gestión",_xlfn.CONCAT("Posibilidad de afectacion ",E57," por ",F57," debido a ",G57),"")) -> Posibilidad de afectacion económico y reputacional por Incumplimiento de las metas del Gobierno Nacional en usuarios conectados con servicio de energía eléctrica. debido a Insuficiencia de proyectos con viabilidad técnica y financiera favorable, o la no aprobación de proyectos en comité. | E57: económico y reputacional | F57: Incumplimiento de las metas del Gobierno Nacional en usuarios conectados con servicio de energía eléctrica. | G57: Insuficiencia de proyectos con viabilidad técnica y financiera favorable, o la no aprobación de proyectos en comité. | H57: Ejecucion y Administracion de procesos | I57: 3 | J57: =IF(I57<=0,"",IF(I57<=2,"Muy Baja",IF(I57<=24,"Baja",IF(I57<=500,"Media",IF(I57<=5000,"Alta","Muy Alta"))))) -> Baja | K57: 0.4 | L57: El riesgo afecta la imagen de la entidad con algunos usuarios de relevancia frente al logro de los objetivos | M57: =IF(NOT(ISERROR(MATCH(L57,'[5]Tabla Impacto'!#REF!,0))),'[5]Tabla Impacto'!$F$229&"Por favor no seleccionar los criterios de impacto(Afectación Económica o presupuestal y Pérdida Reputacional)",L57) -> El riesgo afecta la imagen de la entidad con algunos usuarios de relevancia frente al logro de los objetivos | N57: =IF(OR(M57='[5]Tabla Impacto'!$C$11,M57='[5]Tabla Impacto'!$D$11),"Leve",IF(OR(M57='[5]Tabla Impacto'!$C$12,M57='[5]Tabla Impacto'!$D$12),"Menor",IF(OR(M57='[5]Tabla Impacto'!$C$13,M57='[5]Tabla Impacto'!$D$13),"Moderado",IF(OR(M57='[5]Tabla Impacto'!$C$14,M57='[5]Tabla Impacto'!$D$14),"Mayor",IF(OR(M57='[5]Tabla Impacto'!$C$15,M57='[5]Tabla Impacto'!$D$15),"Catastrófico",""))))) -> Moderado | O57: 0.6 | P57: Moderado | Q57: 1 | R57: Realizar mesas de trabajo con los entes territoriales, operadores de red y otros estructuradores, para divulgar las diferentes fuentes de financiación (FAER, FAZNI, OCAD Paz, entre otros); en caso de no contar con suficiencia de proyectos solicitar a la IPSE la presentación de proyectos | S57: Coordinador (a) Grupo de Fondos de Inversion y Gestión del Sector Electrico Colombiano o su delegado | T57: Divulgar las fuentes de financiación con los entes territoriales, operadores de red y otros estructuradores, con el propósito de contribuir a la ampliación de cobertura del servicio de energía eléctrica | U57: Actas de reunión y comunicaciones | V57: Probabilidad | W57: Detectivo | X57: Manual | Y57: 30% | Z57: Documentado | AA57: Continua | AB57: Con Registro | AC57: 0.28 | AD57: Baja | AE57: 0.28 | AF57: Moderado | AG57: 0.6 | AH57: Moderado | AI57: Reducir (mitigar) | AJ57: Realizar monitoreo o seguimiento al cumplimiento de las metas del Gobierno Nacional a fin de generar las alertas correspondientes | AK57: Coordinadora Grupo de Gestión del Sector o su delegado | AL57: 2025-03-01 | AM57: 2025-03-31 | AN57: Coordinador (a) | AO57: Grupo de Fondos y Gestión del Sector Eléctrico Colombiano. | AP57: Jefe de oficina | AQ57: 2025-03-01 | AR57: 2025-12-31
A58: 52 | B58: ENERGÍA | C58: Gestión | D58: Posibilidad de afectacion reputacional por incumplimiento en las metas relacionadas con nuevos usuarios de energía eléctrica derivado de la falta de seguimiento, desde el equipo técnico del Grupo de Regalías, debido a la no realización de mesas de trabajo o visitas técnicas suficientes, que permitan evidenciar el avance y terminación de los proyectos que se traducen en nuevos usuarios de energía eléctrica para su oportuno reporte en los diferentes instrumentos de seguimiento. | E58: reputacional | F58: incumplimiento en las metas relacionadas con nuevos usuarios de energía eléctrica derivado de la falta de seguimiento, desde el equipo técnico del Grupo de Regalías, | G58: la no realización de mesas de trabajo o visitas técnicas suficientes, que permitan evidenciar el avance y terminación de los proyectos que se traducen en nuevos usuarios de energía eléctrica para su oportuno reporte en los diferentes instrumentos de seguimiento. | H58: Usuarios, productos y practicas , organizacionales | I58: 200 | J58: Media | K58: 0.6 | L58: El riesgo afecta la imagen de la entidad a nivel nacional, con efecto publicitarios sostenible a nivel país | M58: =IF(NOT(ISERROR(MATCH(L58,'[5]Tabla Impacto'!#REF!,0))),'[5]Tabla Impacto'!$F$229&"Por favor no seleccionar los criterios de impacto(Afectación Económica o presupuestal y Pérdida Reputacional)",L58) -> El riesgo afecta la imagen de la entidad a nivel nacional, con efecto publicitarios sostenible a nivel país | N58: =IF(OR(M58='[5]Tabla Impacto'!$C$11,M58='[5]Tabla Impacto'!$D$11),"Leve",IF(OR(M58='[5]Tabla Impacto'!$C$12,M58='[5]Tabla Impacto'!$D$12),"Menor",IF(OR(M58='[5]Tabla Impacto'!$C$13,M58='[5]Tabla Impacto'!$D$13),"Moderado",IF(OR(M58='[5]Tabla Impacto'!$C$14,M58='[5]Tabla Impacto'!$D$14),"Mayor",IF(OR(M58='[5]Tabla Impacto'!$C$15,M58='[5]Tabla Impacto'!$D$15),"Catastrófico",""))))) -> Catastrófico | O58: 1 | P58: Extremo | Q58: 1 | R58: El equipo técnico del Grupo de Regalías, realizará el seguimiento que permita evidenciar el avance y terminación de los proyectos que se traducen en nuevos usuarios de energía eléctrica que contribuyan a las metas de la Entidad y el Gobierno nacional, a traves de mesas técnicas o visitas reflejadas en actas y listas de asistencia, fichas de seguimiento Grupo de Regalías, adicionalmente, este seguimiento se registrará en la matriz correspondiente con el fin de facilitar la consulta, control relacionados con la revisión de los proyectos y contribuirá a su oportuno reporte en los diferentes instrumentos de seguimiento. | S58: equipo técnico del Grupo de Regalías | T58: realizará el seguimiento que permita evidenciar el avance y terminación de los proyectos que se traducen en nuevos usuarios de energía eléctrica que contribuyan a las metas de la Entidad y el Gobierno nacional | U58: mesas técnicas o visitas reflejadas en actas y listas de asistencia, fichas de seguimiento Grupo de Regalías, adicionalmente, este seguimiento se registrará en la matriz correspondiente con el fin de facilitar la consulta, control relacionados con la revisión de los proyectos y contribuirá a su oportuno reporte en los diferentes instrumentos de seguimiento. | V58: Probabilidad | W58: Preventivo | X58: Manual | Y58: 40% | Z58: Sin Documentar | AA58: Continua | AB58: Con Registro | AC58: 0.36 | AD58: Baja | AE58: 0.36 | AF58: Catastrófico | AG58: 1 | AH58: Extremo | AI58: Evitar | AJ58: Documentar el control | AK58: Asesora | AL58: 2025-01-01 | AM58: Trimestral | AN58: Coordinador | AO58: Gupo de Regalías | AP58: Jefe de Grupo | AQ58: 2025-02-03 | AR58: 2025-12-31
A59: 53 | B59: ENERGÍA | C59: Gestión | D59: Posibilidad de afectacion reputacional por demoras en la verificación de requisitos por parte del equipo técnico del Grupo de Regalías y en consecuencia el incumplimiento en los términos establecidos en la normativa vigente del SGR debido a al retraso en el envio de las comunicaciones correspondientes a las entidades adscritas al Ministerio, las cuales apoyan esta función (IPSE y UPME), entre otros. | E59: reputacional | F59: demoras en la verificación de requisitos por parte del equipo técnico del Grupo de Regalías y en consecuencia el incumplimiento en los términos establecidos en la normativa vigente del SGR | G59: al retraso en el envio de las comunicaciones correspondientes a las entidades adscritas al Ministerio, las cuales apoyan esta función (IPSE y UPME), entre otros. | H59: Usuarios, productos y practicas , organizacionales | I59: 180 | J59: =IF(I59<=0,"",IF(I59<=2,"Muy Baja",IF(I59<=24,"Baja",IF(I59<=500,"Media",IF(I59<=5000,"Alta","Muy Alta"))))) -> Media | K59: =IF(J59="","",IF(J59="Muy Baja",0.2,IF(J59="Baja",0.4,IF(J59="Media",0.6,IF(J59="Alta",0.8,IF(J59="Muy Alta",1,)))))) -> 0.6 | L59: El riesgo afecta la imagen de la entidad a nivel nacional, con efecto publicitarios sostenible a nivel país | M59: =IF(NOT(ISERROR(MATCH(L59,'[5]Tabla Impacto'!#REF!,0))),'[5]Tabla Impacto'!$F$229&"Por favor no seleccionar los criterios de impacto(Afectación Económica o presupuestal y Pérdida Reputacional)",L59) -> El riesgo afecta la imagen de la entidad a nivel nacional, con efecto publicitarios sostenible a nivel país | N59: =IF(OR(M59='[5]Tabla Impacto'!$C$11,M59='[5]Tabla Impacto'!$D$11),"Leve",IF(OR(M59='[5]Tabla Impacto'!$C$12,M59='[5]Tabla Impacto'!$D$12),"Menor",IF(OR(M59='[5]Tabla Impacto'!$C$13,M59='[5]Tabla Impacto'!$D$13),"Moderado",IF(OR(M59='[5]Tabla Impacto'!$C$14,M59='[5]Tabla Impacto'!$D$14),"Mayor",IF(OR(M59='[5]Tabla Impacto'!$C$15,M59='[5]Tabla Impacto'!$D$15),"Catastrófico",""))))) -> Catastrófico | O59: =IF(N59="","",IF(N59="Leve",0.2,IF(N59="Menor",0.4,IF(N59="Moderado",0.6,IF(N59="Mayor",0.8,IF(N59="Catastrófico",1,)))))) -> 1 | P59: =IF(OR(AND(J59="Muy Baja",N59="Leve"),AND(J59="Muy Baja",N59="Menor"),AND(J59="Baja",N59="Leve")),"Bajo",IF(OR(AND(J59="Muy baja",N59="Moderado"),AND(J59="Baja",N59="Menor"),AND(J59="Baja",N59="Moderado"),AND(J59="Media",N59="Leve"),AND(J59="Media",N59="Menor"),AND(J59="Media",N59="Moderado"),AND(J59="Alta",N59="Leve"),AND(J59="Alta",N59="Menor")),"Moderado",IF(OR(AND(J59="Muy Baja",N59="Mayor"),AND(J59="Baja",N59="Mayor"),AND(J59="Media",N59="Mayor"),AND(J59="Alta",N59="Moderado"),AND(J59="Alta",N59="Mayor"),AND(J59="Muy Alta",N59="Leve"),AND(J59="Muy Alta",N59="Menor"),AND(J59="Muy Alta",N59="Moderado"),AND(J59="Muy Alta",N59="Mayor")),"Alto",IF(OR(AND(J59="Muy Baja",N59="Catastrófico"),AND(J59="Baja",N59="Catastrófico"),AND(J59="Media",N59="Catastrófico"),AND(J59="Alta",N59="Catastrófico"),AND(J59="Muy Alta",N59="Catastrófico")),"Extremo","")))) -> Extremo | Q59: 1 | R59: El equipo técnico del Grupo de Regalías, realizará un estricto seguimiento a las solicitudes para la adecuada emisión de conceptosa traves del envío oportuno de comunicaciones a las entidades adscritas al Ministerio que apoyan esta función (IPSE y UPME). Adicionalmente se consolidará en una matriz de control el seguimiento en donde se evidencien las solicitudes de conceptos y los tiempos establecidos. | S59: equipo técnico del Grupo de Regalías | T59: realizará un estricto seguimiento a las solicitudes para la adecuada emisión de conceptos | U59: envío oportuno de comunicaciones a las entidades adscritas al Ministerio que apoyan esta función (IPSE y UPME). Adicionalmente se consolidará en una matriz de control el seguimiento en donde se evidencien las solicitudes de conceptos y los tiempos establecidos. | V59: =IF(OR(W59="Preventivo",W59="Detectivo"),"Probabilidad",IF(W59="Correctivo","Impacto","")) -> Probabilidad | W59: Preventivo | X59: Manual | Y59: =IF(AND(W59="Preventivo",X59="Automático"),"50%",IF(AND(W59="Preventivo",X59="Manual"),"40%",IF(AND(W59="Detectivo",X59="Automático"),"40%",IF(AND(W59="Detectivo",X59="Manual"),"30%",IF(AND(W59="Correctivo",X59="Automático"),"35%",IF(AND(W59="Correctivo",X59="Manual"),"25%","")))))) -> 40% | Z59: Sin Documentar | AA59: Continua | AB59: Con Registro | AC59: =IFERROR(IF(V59="Probabilidad",(K59-(+K59*Y59)),IF(V59="Impacto",K59,"")),"") -> 0.36 | AD59: =IFERROR(IF(AC59="","",IF(AC59<=0.2,"Muy Baja",IF(AC59<=0.4,"Baja",IF(AC59<=0.6,"Media",IF(AC59<=0.8,"Alta","Muy Alta"))))),"") -> Baja | AE59: =+AC59 -> 0.36 | AF59: =IFERROR(IF(AG59="","",IF(AG59<=0.2,"Leve",IF(AG59<=0.4,"Menor",IF(AG59<=0.6,"Moderado",IF(AG59<=0.8,"Mayor","Catastrófico"))))),"") -> Catastrófico | AG59: =IFERROR(IF(V59="Impacto",(O59-(+O59*Y59)),IF(V59="Probabilidad",O59,"")),"") -> 1 | AH59: =IFERROR(IF(OR(AND(AD59="Muy Baja",AF59="Leve"),AND(AD59="Muy Baja",AF59="Menor"),AND(AD59="Baja",AF59="Leve")),"Bajo",IF(OR(AND(AD59="Muy baja",AF59="Moderado"),AND(AD59="Baja",AF59="Menor"),AND(AD59="Baja",AF59="Moderado"),AND(AD59="Media",AF59="Leve"),AND(AD59="Media",AF59="Menor"),AND(AD59="Media",AF59="Moderado"),AND(AD59="Alta",AF59="Leve"),AND(AD59="Alta",AF59="Menor")),"Moderado",IF(OR(AND(AD59="Muy Baja",AF59="Mayor"),AND(AD59="Baja",AF59="Mayor"),AND(AD59="Media",AF59="Mayor"),AND(AD59="Alta",AF59="Moderado"),AND(AD59="Alta",AF59="Mayor"),AND(AD59="Muy Alta",AF59="Leve"),AND(AD59="Muy Alta",AF59="Menor"),AND(AD59="Muy Alta",AF59="Moderado"),AND(AD59="Muy Alta",AF59="Mayor")),"Alto",IF(OR(AND(AD59="Muy Baja",AF59="Catastrófico"),AND(AD59="Baja",AF59="Catastrófico"),AND(AD59="Media",AF59="Catastrófico"),AND(AD59="Alta",AF59="Catastrófico"),AND(AD59="Muy Alta",AF59="Catastrófico")),"Extremo","")))),"") -> Extremo | AI59: Evitar | AJ59: Documentar el control | AK59: Asesora | AL59: 2025-01-01 | AM59: Trimestral | AN59: Coordinador | AO59: Gupo de Regalías | AP59: Jefe de Grupo | AQ59: 2025-02-03 | AR59: 2025-12-31
A60: 54 | B60: ENERGÍA | C60: Gestión | D60: =IF(C60="Fiscal",_xlfn.CONCAT("Posibilidad de efectos dañosos sobre bienes públicos "," por o para ",F60," debido a ",G60),IF(C60="Gestión",_xlfn.CONCAT("Posibilidad de afectacion ",E60," por ",F60," debido a ",G60),"")) -> Posibilidad de afectacion reputacional por rezago en la ejecución de los conceptos de gasto de regalias que corresponden a los distribuidos y asignados por el Ministerio de Minas y Energía debido a la falta de acompañamiento, desde el equipo técnico del Grupo de Regalías, a las entidades beneficiarias de estos recursos debido a la no revisión del componente técnico de los proyectos o la insuficiente realización de mesas de trabajo que permitan promover la inversión de estos recursos en cumplimiento de los objetivos y fines del proyecto de inversión que corresponda. | E60: reputacional | F60: rezago en la ejecución de los conceptos de gasto de regalias que corresponden a los distribuidos y asignados por el Ministerio de Minas y Energía debido a la falta de acompañamiento, desde el equipo técnico del Grupo de Regalías, a las entidades beneficiarias de estos recursos | G60: la no revisión del componente técnico de los proyectos o la insuficiente realización de mesas de trabajo que permitan promover la inversión de estos recursos en cumplimiento de los objetivos y fines del proyecto de inversión que corresponda. | H60: Usuarios, productos y practicas , organizacionales | I60: 80 | J60: =IF(I60<=0,"",IF(I60<=2,"Muy Baja",IF(I60<=24,"Baja",IF(I60<=500,"Media",IF(I60<=5000,"Alta","Muy Alta"))))) -> Media | K60: =IF(J60="","",IF(J60="Muy Baja",0.2,IF(J60="Baja",0.4,IF(J60="Media",0.6,IF(J60="Alta",0.8,IF(J60="Muy Alta",1,)))))) -> 0.6 | L60: El riesgo afecta la imagen de la entidad a nivel nacional, con efecto publicitarios sostenible a nivel país | M60: =IF(NOT(ISERROR(MATCH(L60,'[5]Tabla Impacto'!#REF!,0))),'[5]Tabla Impacto'!$F$229&"Por favor no seleccionar los criterios de impacto(Afectación Económica o presupuestal y Pérdida Reputacional)",L60) -> El riesgo afecta la imagen de la entidad a nivel nacional, con efecto publicitarios sostenible a nivel país | N60: =IF(OR(M60='[5]Tabla Impacto'!$C$11,M60='[5]Tabla Impacto'!$D$11),"Leve",IF(OR(M60='[5]Tabla Impacto'!$C$12,M60='[5]Tabla Impacto'!$D$12),"Menor",IF(OR(M60='[5]Tabla Impacto'!$C$13,M60='[5]Tabla Impacto'!$D$13),"Moderado",IF(OR(M60='[5]Tabla Impacto'!$C$14,M60='[5]Tabla Impacto'!$D$14),"Mayor",IF(OR(M60='[5]Tabla Impacto'!$C$15,M60='[5]Tabla Impacto'!$D$15),"Catastrófico",""))))) -> Catastrófico | O60: =IF(N60="","",IF(N60="Leve",0.2,IF(N60="Menor",0.4,IF(N60="Moderado",0.6,IF(N60="Mayor",0.8,IF(N60="Catastrófico",1,)))))) -> 1 | P60: =IF(OR(AND(J60="Muy Baja",N60="Leve"),AND(J60="Muy Baja",N60="Menor"),AND(J60="Baja",N60="Leve")),"Bajo",IF(OR(AND(J60="Muy baja",N60="Moderado"),AND(J60="Baja",N60="Menor"),AND(J60="Baja",N60="Moderado"),AND(J60="Media",N60="Leve"),AND(J60="Media",N60="Menor"),AND(J60="Media",N60="Moderado"),AND(J60="Alta",N60="Leve"),AND(J60="Alta",N60="Menor")),"Moderado",IF(OR(AND(J60="Muy Baja",N60="Mayor"),AND(J60="Baja",N60="Mayor"),AND(J60="Media",N60="Mayor"),AND(J60="Alta",N60="Moderado"),AND(J60="Alta",N60="Mayor"),AND(J60="Muy Alta",N60="Leve"),AND(J60="Muy Alta",N60="Menor"),AND(J60="Muy Alta",N60="Moderado"),AND(J60="Muy Alta",N60="Mayor")),"Alto",IF(OR(AND(J60="Muy Baja",N60="Catastrófico"),AND(J60="Baja",N60="Catastrófico"),AND(J60="Media",N60="Catastrófico"),AND(J60="Alta",N60="Catastrófico"),AND(J60="Muy Alta",N60="Catastrófico")),"Extremo","")))) -> Extremo | Q60: 1 | R60: El equipo técnico del Grupo de Regalías, realizará el acompañamiento técnico a las entidades beneficiarias de los recursos de inversión distribuidos y asignados por el Ministerio de Minas y Energía, mediante la emisión de fichas de revisión del componente técnico de los proyectos y la realización de mesas tecnicas, asi mismo se registrarán los proyectos en la matriz de seguimiento dispuesta para tal fin. | S60: equipo técnico del Grupo de Regalías | T60: realizará el acompañamiento técnico a las entidades beneficiarias de los recursos de inversión distribuidos y asignados por el Ministerio de Minas y Energía | U60: la emisión de fichas de revisión del componente técnico de los proyectos y la realización de mesas tecnicas, asi mismo se registrarán los proyectos en la matriz de seguimiento dispuesta para tal fin. | V60: =IF(OR(W60="Preventivo",W60="Detectivo"),"Probabilidad",IF(W60="Correctivo","Impacto","")) -> Probabilidad | W60: Preventivo | X60: Manual | Y60: 40% | Z60: Sin Documentar | AA60: Continua | AB60: Con Registro | AC60: =IFERROR(IF(V60="Probabilidad",(K60-(+K60*Y60)),IF(V60="Impacto",K60,"")),"") -> 0.36 | AD60: =IFERROR(IF(AC60="","",IF(AC60<=0.2,"Muy Baja",IF(AC60<=0.4,"Baja",IF(AC60<=0.6,"Media",IF(AC60<=0.8,"Alta","Muy Alta"))))),"") -> Baja | AE60: =+AC60 -> 0.36 | AF60: =IFERROR(IF(AG60="","",IF(AG60<=0.2,"Leve",IF(AG60<=0.4,"Menor",IF(AG60<=0.6,"Moderado",IF(AG60<=0.8,"Mayor","Catastrófico"))))),"") -> Catastrófico | AG60: =IFERROR(IF(V60="Impacto",(O60-(+O60*Y60)),IF(V60="Probabilidad",O60,"")),"") -> 1 | AH60: =IFERROR(IF(OR(AND(AD60="Muy Baja",AF60="Leve"),AND(AD60="Muy Baja",AF60="Menor"),AND(AD60="Baja",AF60="Leve")),"Bajo",IF(OR(AND(AD60="Muy baja",AF60="Moderado"),AND(AD60="Baja",AF60="Menor"),AND(AD60="Baja",AF60="Moderado"),AND(AD60="Media",AF60="Leve"),AND(AD60="Media",AF60="Menor"),AND(AD60="Media",AF60="Moderado"),AND(AD60="Alta",AF60="Leve"),AND(AD60="Alta",AF60="Menor")),"Moderado",IF(OR(AND(AD60="Muy Baja",AF60="Mayor"),AND(AD60="Baja",AF60="Mayor"),AND(AD60="Media",AF60="Mayor"),AND(AD60="Alta",AF60="Moderado"),AND(AD60="Alta",AF60="Mayor"),AND(AD60="Muy Alta",AF60="Leve"),AND(AD60="Muy Alta",AF60="Menor"),AND(AD60="Muy Alta",AF60="Moderado"),AND(AD60="Muy Alta",AF60="Mayor")),"Alto",IF(OR(AND(AD60="Muy Baja",AF60="Catastrófico"),AND(AD60="Baja",AF60="Catastrófico"),AND(AD60="Media",AF60="Catastrófico"),AND(AD60="Alta",AF60="Catastrófico"),AND(AD60="Muy Alta",AF60="Catastrófico")),"Extremo","")))),"") -> Extremo | AI60: Evitar | AJ60: Documentar el control | AK60: Asesora | AL60: 2025-01-01 | AM60: Trimestral | AN60: Coordinador | AO60: Gupo de Regalías | AP60: Jefe de Grupo | AQ60: 2025-02-03 | AR60: 2025-12-31
A61: 55 | B61: GESTIÓN CONTRACTUAL | C61: Gestión | D61: Posibilidad de afectacion económico y reputacional por demoras y reprocesos en los procesos de contratación debido a fallas e indisponibilidad en la platforma SECOP | E61: económico y reputacional | F61: demoras y reprocesos en los procesos de contratación | G61: fallas e indisponibilidad en la platforma SECOP | H61: Fallas Tecnologicas | I61: 1200 | J61: Alta | K61: 0.8 | L61: El riesgo afecta la imagen de la entidad con algunos usuarios de relevancia frente al logro de los objetivos | M61: =IF(NOT(ISERROR(MATCH(L61,'[5]Tabla Impacto'!#REF!,0))),'[5]Tabla Impacto'!$F$229&"Por favor no seleccionar los criterios de impacto(Afectación Económica o presupuestal y Pérdida Reputacional)",L61) -> El riesgo afecta la imagen de la entidad con algunos usuarios de relevancia frente al logro de los objetivos | N61: =IF(OR(M61='[5]Tabla Impacto'!$C$11,M61='[5]Tabla Impacto'!$D$11),"Leve",IF(OR(M61='[5]Tabla Impacto'!$C$12,M61='[5]Tabla Impacto'!$D$12),"Menor",IF(OR(M61='[5]Tabla Impacto'!$C$13,M61='[5]Tabla Impacto'!$D$13),"Moderado",IF(OR(M61='[5]Tabla Impacto'!$C$14,M61='[5]Tabla Impacto'!$D$14),"Mayor",IF(OR(M61='[5]Tabla Impacto'!$C$15,M61='[5]Tabla Impacto'!$D$15),"Catastrófico",""))))) -> Moderado | O61: 0.6 | P61: Alto | Q61: 1 | R61: El Coordinador Grupo de Gestión Contractual, a través del enlace designado, reporta fallas en la funcionalidad de la plataforma SECOP ante Colombia Compra Eficiente y aplica protocolos en caso de indisponibilidad de la plataforma SECOP y adelanta adendas en caso de requerirse | S61: Coordinador (a) Grupo de Gestión Contractual | T61: Reportar fallas en la plataforma SECOP, ante Colombia Compra Eficiente, aplicar protocolos en caso de indisponibilidad de la plataforma secop, adelantar adendas y guardar reporte de incidentes radicados | U61: Certificados de indisponibilidad general y particular, protocolos expedidos por Colombia compra eficiente y constancias de casos radicados en Colombia compra eficiente | V61: Impacto | W61: Correctivo | X61: Manual | Y61: =IF(AND(W61="Preventivo",X61="Automático"),"50%",IF(AND(W61="Preventivo",X61="Manual"),"40%",IF(AND(W61="Detectivo",X61="Automático"),"40%",IF(AND(W61="Detectivo",X61="Manual"),"30%",IF(AND(W61="Correctivo",X61="Automático"),"35%",IF(AND(W61="Correctivo",X61="Manual"),"25%","")))))) -> 25% | Z61: Sin Documentar | AA61: Aleatoria | AB61: Con Registro | AC61: 0.8 | AD61: Alta | AE61: 0.8 | AF61: Moderado | AG61: 0.45 | AH61: Alto | AI61: Evitar | AN61: Coordinador (a) Grupo de Gestión Contractual | AO61: Subdirección Administrativa y Financiera | AP61: Pablo César Pacheco Rodríguez | AQ61: 2025-03-03 | AR61: 2025-12-31
A62: 56 | B62: GESTIÓN FINANCIERA | C62: Gestión | D62: =IF(C62="Fiscal",_xlfn.CONCAT("Posibilidad de efectos dañosos sobre bienes públicos "," por o para ",F62," debido a ",G62),IF(C62="Gestión",_xlfn.CONCAT("Posibilidad de afectacion ",E62," por ",F62," debido a ",G62),"")) -> Posibilidad de afectacion económico por Reducción o no aprobación de los recursos PAC por parte del Ministerio de Hacienda y Crédito Público. debido a Falta de planeación y seguimiento a la ejecución de los recursos PAC programados por parte de las dependencias. | E62: económico | F62: Reducción o no aprobación de los recursos PAC por parte del Ministerio de Hacienda y Crédito Público. | G62: Falta de planeación y seguimiento a la ejecución de los recursos PAC programados por parte de las dependencias. | H62: Ejecucion y Administracion de procesos | I62: 12 | J62: =IF(I62<=0,"",IF(I62<=2,"Muy Baja",IF(I62<=24,"Baja",IF(I62<=500,"Media",IF(I62<=5000,"Alta","Muy Alta"))))) -> Baja | K62: =IF(J62="","",IF(J62="Muy Baja",0.2,IF(J62="Baja",0.4,IF(J62="Media",0.6,IF(J62="Alta",0.8,IF(J62="Muy Alta",1,)))))) -> 0.4 | L62: Mayor a 500 SMLMV | M62: =IF(NOT(ISERROR(MATCH(L62,'[5]Tabla Impacto'!#REF!,0))),'[5]Tabla Impacto'!$F$229&"Por favor no seleccionar los criterios de impacto(Afectación Económica o presupuestal y Pérdida Reputacional)",L62) -> Mayor a 500 SMLMV | N62: =IF(OR(M62='[5]Tabla Impacto'!$C$11,M62='[5]Tabla Impacto'!$D$11),"Leve",IF(OR(M62='[5]Tabla Impacto'!$C$12,M62='[5]Tabla Impacto'!$D$12),"Menor",IF(OR(M62='[5]Tabla Impacto'!$C$13,M62='[5]Tabla Impacto'!$D$13),"Moderado",IF(OR(M62='[5]Tabla Impacto'!$C$14,M62='[5]Tabla Impacto'!$D$14),"Mayor",IF(OR(M62='[5]Tabla Impacto'!$C$15,M62='[5]Tabla Impacto'!$D$15),"Catastrófico",""))))) -> Catastrófico | O62: =IF(N62="","",IF(N62="Leve",0.2,IF(N62="Menor",0.4,IF(N62="Moderado",0.6,IF(N62="Mayor",0.8,IF(N62="Catastrófico",1,)))))) -> 1 | P62: =IF(OR(AND(J62="Muy Baja",N62="Leve"),AND(J62="Muy Baja",N62="Menor"),AND(J62="Baja",N62="Leve")),"Bajo",IF(OR(AND(J62="Muy baja",N62="Moderado"),AND(J62="Baja",N62="Menor"),AND(J62="Baja",N62="Moderado"),AND(J62="Media",N62="Leve"),AND(J62="Media",N62="Menor"),AND(J62="Media",N62="Moderado"),AND(J62="Alta",N62="Leve"),AND(J62="Alta",N62="Menor")),"Moderado",IF(OR(AND(J62="Muy Baja",N62="Mayor"),AND(J62="Baja",N62="Mayor"),AND(J62="Media",N62="Mayor"),AND(J62="Alta",N62="Moderado"),AND(J62="Alta",N62="Mayor"),AND(J62="Muy Alta",N62="Leve"),AND(J62="Muy Alta",N62="Menor"),AND(J62="Muy Alta",N62="Moderado"),AND(J62="Muy Alta",N62="Mayor")),"Alto",IF(OR(AND(J62="Muy Baja",N62="Catastrófico"),AND(J62="Baja",N62="Catastrófico"),AND(J62="Media",N62="Catastrófico"),AND(J62="Alta",N62="Catastrófico"),AND(J62="Muy Alta",N62="Catastrófico")),"Extremo","")))) -> Extremo | Q62: 1 | R62: El profesional asignado del Grupo de Tesorería, realiza un seguimiento continuo a la ejecución de los recursos PAC solicitados mensualmente ante el Ministerio de Hacienda y Crédito Público, según la programación realizada por cada una de las dependencias del MME, con el fin de verificar que todas las obligaciones se causen y se paguen oportunamente. | S62: Profesional PAC Grupo de Tesorería | T62: Realizar control y seguimiento de la ejecución de los recursos PAC programados por cada una de las dependencias del MME, con el fin de evidenciar que los recursos asignados por parte del MHCP sean ejecutados por cada una de las dependencias del MME. | U62: Comunicaciones de seguimiento enviadas a cada una de las dependencias que presentan baja ejecución. | V62: =IF(OR(W62="Preventivo",W62="Detectivo"),"Probabilidad",IF(W62="Correctivo","Impacto","")) -> Probabilidad | W62: Preventivo | X62: Manual | Y62: 40% | Z62: Documentado | AA62: Continua | AB62: Con Registro | AC62: =IFERROR(IF(V62="Probabilidad",(K62-(+K62*Y62)),IF(V62="Impacto",K62,"")),"") -> 0.24 | AD62: =IFERROR(IF(AC62="","",IF(AC62<=0.2,"Muy Baja",IF(AC62<=0.4,"Baja",IF(AC62<=0.6,"Media",IF(AC62<=0.8,"Alta","Muy Alta"))))),"") -> Baja | AE62: =+AC62 -> 0.24 | AF62: =IFERROR(IF(AG62="","",IF(AG62<=0.2,"Leve",IF(AG62<=0.4,"Menor",IF(AG62<=0.6,"Moderado",IF(AG62<=0.8,"Mayor","Catastrófico"))))),"") -> Catastrófico | AG62: =IFERROR(IF(V62="Impacto",(O62-(+O62*Y62)),IF(V62="Probabilidad",O62,"")),"") -> 1 | AH62: =IFERROR(IF(OR(AND(AD62="Muy Baja",AF62="Leve"),AND(AD62="Muy Baja",AF62="Menor"),AND(AD62="Baja",AF62="Leve")),"Bajo",IF(OR(AND(AD62="Muy baja",AF62="Moderado"),AND(AD62="Baja",AF62="Menor"),AND(AD62="Baja",AF62="Moderado"),AND(AD62="Media",AF62="Leve"),AND(AD62="Media",AF62="Menor"),AND(AD62="Media",AF62="Moderado"),AND(AD62="Alta",AF62="Leve"),AND(AD62="Alta",AF62="Menor")),"Moderado",IF(OR(AND(AD62="Muy Baja",AF62="Mayor"),AND(AD62="Baja",AF62="Mayor"),AND(AD62="Media",AF62="Mayor"),AND(AD62="Alta",AF62="Moderado"),AND(AD62="Alta",AF62="Mayor"),AND(AD62="Muy Alta",AF62="Leve"),AND(AD62="Muy Alta",AF62="Menor"),AND(AD62="Muy Alta",AF62="Moderado"),AND(AD62="Muy Alta",AF62="Mayor")),"Alto",IF(OR(AND(AD62="Muy Baja",AF62="Catastrófico"),AND(AD62="Baja",AF62="Catastrófico"),AND(AD62="Media",AF62="Catastrófico"),AND(AD62="Alta",AF62="Catastrófico"),AND(AD62="Muy Alta",AF62="Catastrófico")),"Extremo","")))),"") -> Extremo | AI62: Evitar | AN62: Profesional Especializado | AO62: Subdirección Administrativa y Financiera Grupo de Tesorería | AP62: Pablo César Pacheco Rodríguez | AQ62: 2025-01-01 | AR62: 2025-12-31 | AT62: NO
A63: 57 | B63: GESTIÓN FINANCIERA | C63: Gestión | D63: =IF(C63="Fiscal",_xlfn.CONCAT("Posibilidad de efectos dañosos sobre bienes públicos "," por o para ",F63," debido a ",G63),IF(C63="Gestión",_xlfn.CONCAT("Posibilidad de afectacion ",E63," por ",F63," debido a ",G63),"")) -> Posibilidad de afectacion económico y reputacional por Incumplimiento en el pago de las obligaciones adquiridas con terceros. debido a No cumplimiento parcial o total de los Requisitos establecidos para el trámite de pago. | E63: económico y reputacional | F63: Incumplimiento en el pago de las obligaciones adquiridas con terceros. | G63: No cumplimiento parcial o total de los Requisitos establecidos para el trámite de pago. | H63: Ejecucion y Administracion de procesos | I63: 360 | J63: Media | K63: 0.6 | L63: Mayor a 500 SMLMV | M63: =IF(NOT(ISERROR(MATCH(L63,'[5]Tabla Impacto'!#REF!,0))),'[5]Tabla Impacto'!$F$229&"Por favor no seleccionar los criterios de impacto(Afectación Económica o presupuestal y Pérdida Reputacional)",L63) -> Mayor a 500 SMLMV | N63: =IF(OR(M63='[5]Tabla Impacto'!$C$11,M63='[5]Tabla Impacto'!$D$11),"Leve",IF(OR(M63='[5]Tabla Impacto'!$C$12,M63='[5]Tabla Impacto'!$D$12),"Menor",IF(OR(M63='[5]Tabla Impacto'!$C$13,M63='[5]Tabla Impacto'!$D$13),"Moderado",IF(OR(M63='[5]Tabla Impacto'!$C$14,M63='[5]Tabla Impacto'!$D$14),"Mayor",IF(OR(M63='[5]Tabla Impacto'!$C$15,M63='[5]Tabla Impacto'!$D$15),"Catastrófico",""))))) -> Catastrófico | O63: 1 | P63: Extremo | Q63: 1 | R63: El Profesional del Grupo de Tesorería, revisa el cumplimiento de los requisitos necesarios para cada tipo de pago y una vez cumplido los mismos, se realiza la orden de pago en el aplicativo SIIF Nación y/o SPGR según corresponda, posteriormente a los dos días hábiles siguientes, confirmamos que la orden de pago se encuentre en estado Pagada. | S63: Profesional Grupo de Tesorería | T63: Verificar las consistencias de los requisitos presentados en las cuentas, lo anterior con el fin de identificar el estado de los posibles ajustes que se hayan adelantado en el flujo de las cuentas en el sistema Neón. | U63: Reporte de rechazos generado del sistema Neón. | V63: Probabilidad | W63: Preventivo | X63: Manual | Y63: =IF(AND(W63="Preventivo",X63="Automático"),"50%",IF(AND(W63="Preventivo",X63="Manual"),"40%",IF(AND(W63="Detectivo",X63="Automático"),"40%",IF(AND(W63="Detectivo",X63="Manual"),"30%",IF(AND(W63="Correctivo",X63="Automático"),"35%",IF(AND(W63="Correctivo",X63="Manual"),"25%","")))))) -> 40% | Z63: Documentado | AA63: Continua | AB63: Con Registro | AC63: 0.36 | AD63: Baja | AE63: 0.36 | AF63: Catastrófico | AG63: 1 | AH63: Extremo | AI63: Evitar | AN63: Profesional | AO63: Subdirección Administrativa y Financiera Grupo de Tesorería | AP63: Pablo César Pacheco Rodríguez | AQ63: 2025-01-01 | AR63: 2025-12-31 | AT63: NO
A64: 58 | B64: GESTIÓN FINANCIERA | C64: Gestión | D64: =IF(C64="Fiscal",_xlfn.CONCAT("Posibilidad de efectos dañosos sobre bienes públicos "," por o para ",F64," debido a ",G64),IF(C64="Gestión",_xlfn.CONCAT("Posibilidad de afectacion ",E64," por ",F64," debido a ",G64),"")) -> Posibilidad de afectacion económico por reducción o aplazamiento de las partidas asignadas en el presupuesto del ministerio por baja ejecución del presupuesto asignado, según las metas establecidas en los Acuerdos de Gestión debido a falta de cumplimiento oportuno y falta de planeación así como ausencia de medidas correctivas por parte de las dependencias | E64: económico | F64: reducción o aplazamiento de las partidas asignadas en el presupuesto del ministerio por baja ejecución del presupuesto asignado, según las metas establecidas en los Acuerdos de Gestión | G64: falta de cumplimiento oportuno y falta de planeación así como ausencia de medidas correctivas por parte de las dependencias | H64: Ejecucion y Administracion de procesos | I64: 12 | J64: =IF(I64<=0,"",IF(I64<=2,"Muy Baja",IF(I64<=24,"Baja",IF(I64<=500,"Media",IF(I64<=5000,"Alta","Muy Alta"))))) -> Baja | K64: =IF(J64="","",IF(J64="Muy Baja",0.2,IF(J64="Baja",0.4,IF(J64="Media",0.6,IF(J64="Alta",0.8,IF(J64="Muy Alta",1,)))))) -> 0.4 | L64: Mayor a 500 SMLMV | M64: =IF(NOT(ISERROR(MATCH(L64,'[5]Tabla Impacto'!#REF!,0))),'[5]Tabla Impacto'!$F$229&"Por favor no seleccionar los criterios de impacto(Afectación Económica o presupuestal y Pérdida Reputacional)",L64) -> Mayor a 500 SMLMV | N64: =IF(OR(M64='[5]Tabla Impacto'!$C$11,M64='[5]Tabla Impacto'!$D$11),"Leve",IF(OR(M64='[5]Tabla Impacto'!$C$12,M64='[5]Tabla Impacto'!$D$12),"Menor",IF(OR(M64='[5]Tabla Impacto'!$C$13,M64='[5]Tabla Impacto'!$D$13),"Moderado",IF(OR(M64='[5]Tabla Impacto'!$C$14,M64='[5]Tabla Impacto'!$D$14),"Mayor",IF(OR(M64='[5]Tabla Impacto'!$C$15,M64='[5]Tabla Impacto'!$D$15),"Catastrófico",""))))) -> Catastrófico | O64: =IF(N64="","",IF(N64="Leve",0.2,IF(N64="Menor",0.4,IF(N64="Moderado",0.6,IF(N64="Mayor",0.8,IF(N64="Catastrófico",1,)))))) -> 1 | P64: =IF(OR(AND(J64="Muy Baja",N64="Leve"),AND(J64="Muy Baja",N64="Menor"),AND(J64="Baja",N64="Leve")),"Bajo",IF(OR(AND(J64="Muy baja",N64="Moderado"),AND(J64="Baja",N64="Menor"),AND(J64="Baja",N64="Moderado"),AND(J64="Media",N64="Leve"),AND(J64="Media",N64="Menor"),AND(J64="Media",N64="Moderado"),AND(J64="Alta",N64="Leve"),AND(J64="Alta",N64="Menor")),"Moderado",IF(OR(AND(J64="Muy Baja",N64="Mayor"),AND(J64="Baja",N64="Mayor"),AND(J64="Media",N64="Mayor"),AND(J64="Alta",N64="Moderado"),AND(J64="Alta",N64="Mayor"),AND(J64="Muy Alta",N64="Leve"),AND(J64="Muy Alta",N64="Menor"),AND(J64="Muy Alta",N64="Moderado"),AND(J64="Muy Alta",N64="Mayor")),"Alto",IF(OR(AND(J64="Muy Baja",N64="Catastrófico"),AND(J64="Baja",N64="Catastrófico"),AND(J64="Media",N64="Catastrófico"),AND(J64="Alta",N64="Catastrófico"),AND(J64="Muy Alta",N64="Catastrófico")),"Extremo","")))) -> Extremo | Q64: 1 | R64: El profesional del Grupo de Presupuesto realiza un seguimiento continuo a la ejecución presupuestal de la entidad y mediante comunicaciones dirigidas a cada una de las dependencias remite el informe periodico del estado de su ejecución, con el fin de identificar y evidenciar los recursos pendientes por ejecutar. Para el cumplimiento de los acuerdos de gestión, se implementan controles como el monitoreo mensual de ejecución, informes trimestrales y la priorización de áreas específicas para reuniones de análisis. En estas reuniones se definen acciones correctivas para alinear la ejecución con lo programado y se realiza un seguimiento continuo a las áreas priorizadas, conforme a lo establecido en el Procedimiento T-GF-P-17 | S64: Profesional del Grupo de Presupuesto | T64: Realizar un seguimiento oportuno a la ejecución presupuestal de la entidad para identificar las disponibilidades emitidas pendientes por comprometer, los saldos de registros presupuestales sin ejecución y los saldos de reservas presupuestales. Se priorizarán los recursos de funcionamiento y los proyectos de inversión con baja ejecución, con el objetivo de coordinar con las dependencias las acciones necesarias y establecer un cronograma para el cumplimiento de las metas definidas en los Acuerdos de Gestión | U64: Informe de Seguimiento Informe de Gestión Financiera Informe de Gastos Informe de Reserva Presupuestal Memorandos de Seguimiento Reuniones de Seguimiento Alertas de ejecución Informe Ejecutivo para la alta dirección | V64: =IF(OR(W64="Preventivo",W64="Detectivo"),"Probabilidad",IF(W64="Correctivo","Impacto","")) -> Impacto | W64: Correctivo | X64: Manual | Y64: 25% | Z64: Documentado | AA64: Continua | AB64: Con Registro | AC64: =IFERROR(IF(V64="Probabilidad",(K64-(+K64*Y64)),IF(V64="Impacto",K64,"")),"") -> 0.4 | AD64: =IFERROR(IF(AC64="","",IF(AC64<=0.2,"Muy Baja",IF(AC64<=0.4,"Baja",IF(AC64<=0.6,"Media",IF(AC64<=0.8,"Alta","Muy Alta"))))),"") -> Baja | AE64: =+AC64 -> 0.4 | AF64: =IFERROR(IF(AG64="","",IF(AG64<=0.2,"Leve",IF(AG64<=0.4,"Menor",IF(AG64<=0.6,"Moderado",IF(AG64<=0.8,"Mayor","Catastrófico"))))),"") -> Mayor | AG64: =IFERROR(IF(V64="Impacto",(O64-(+O64*Y64)),IF(V64="Probabilidad",O64,"")),"") -> 0.75 | AH64: =IFERROR(IF(OR(AND(AD64="Muy Baja",AF64="Leve"),AND(AD64="Muy Baja",AF64="Menor"),AND(AD64="Baja",AF64="Leve")),"Bajo",IF(OR(AND(AD64="Muy baja",AF64="Moderado"),AND(AD64="Baja",AF64="Menor"),AND(AD64="Baja",AF64="Moderado"),AND(AD64="Media",AF64="Leve"),AND(AD64="Media",AF64="Menor"),AND(AD64="Media",AF64="Moderado"),AND(AD64="Alta",AF64="Leve"),AND(AD64="Alta",AF64="Menor")),"Moderado",IF(OR(AND(AD64="Muy Baja",AF64="Mayor"),AND(AD64="Baja",AF64="Mayor"),AND(AD64="Media",AF64="Mayor"),AND(AD64="Alta",AF64="Moderado"),AND(AD64="Alta",AF64="Mayor"),AND(AD64="Muy Alta",AF64="Leve"),AND(AD64="Muy Alta",AF64="Menor"),AND(AD64="Muy Alta",AF64="Moderado"),AND(AD64="Muy Alta",AF64="Mayor")),"Alto",IF(OR(AND(AD64="Muy Baja",AF64="Catastrófico"),AND(AD64="Baja",AF64="Catastrófico"),AND(AD64="Media",AF64="Catastrófico"),AND(AD64="Alta",AF64="Catastrófico"),AND(AD64="Muy Alta",AF64="Catastrófico")),"Extremo","")))),"") -> Alto | AI64: Evitar | AN64: Coordinador Grupo Presupuesto | AO64: Subdirección Administrativa y Financiera Grupo Presupuesto | AP64: Pablo César Pacheco Rodríguez | AQ64: 2025-02-21 | AR64: 2025-12-31
A65: 59 | B65: GESTIÓN FINANCIERA | C65: Gestión | D65: Posibilidad de afectacion reputacional por Procesos disciplinarios y sanciones de los entes de control e imposibilidad de tomar decisiones a tiempo y confiables debido a entrega inoportuna de la información contable y financiera, solicitada por las entidades de control acorde con las fechas establecidas | E65: reputacional | F65: Procesos disciplinarios y sanciones de los entes de control e imposibilidad de tomar decisiones a tiempo y confiables | G65: entrega inoportuna de la información contable y financiera, solicitada por las entidades de control acorde con las fechas establecidas | H65: Ejecucion y Administracion de procesos | I65: 24 | J65: Baja | K65: 0.4 | L65: El riesgo afecta la imagen de de la entidad con efecto publicitario sostenido a nivel de sector administrativo, nivel departamental o municipal | M65: =IF(NOT(ISERROR(MATCH(L65,'[5]Tabla Impacto'!#REF!,0))),'[5]Tabla Impacto'!$F$229&"Por favor no seleccionar los criterios de impacto(Afectación Económica o presupuestal y Pérdida Reputacional)",L65) -> El riesgo afecta la imagen de de la entidad con efecto publicitario sostenido a nivel de sector administrativo, nivel departamental o municipal | N65: =IF(OR(M65='[5]Tabla Impacto'!$C$11,M65='[5]Tabla Impacto'!$D$11),"Leve",IF(OR(M65='[5]Tabla Impacto'!$C$12,M65='[5]Tabla Impacto'!$D$12),"Menor",IF(OR(M65='[5]Tabla Impacto'!$C$13,M65='[5]Tabla Impacto'!$D$13),"Moderado",IF(OR(M65='[5]Tabla Impacto'!$C$14,M65='[5]Tabla Impacto'!$D$14),"Mayor",IF(OR(M65='[5]Tabla Impacto'!$C$15,M65='[5]Tabla Impacto'!$D$15),"Catastrófico",""))))) -> Mayor | O65: 0.8 | P65: Alto | Q65: 1 | R65: El Profesional Especializado del Grupo de Gestion Financiera y Contable que de acuerdo con la fecha de entrega de la información financiera que establece por la Contaduría General de la Nación, y realiza el envió con debida antelación de comunicación de oficios internos y externos solicitando la información contable para ser incluida en los estados financieros del MME, revisa y valida la remisión de la información y los seguimientos sobre las entidades que no realizaron el reporte. | S65: Profesional Especializado del Grupo de Gestion Financiera y Contable | T65: De acuerdo con la fecha de entrega de la información financiera establecida por la Contaduría General de la Nación, se envía con la debida antelación cartas internas y externas de solicitud de la información contable para ser incluida en los estados financieros del MME. Una vez cumplidos los términos se valida la remisión de la información y se efectúa seguimientos obre las entidades que no realizaron el reporte para su envió. | U65: Comunicaciones internas y externas de solicitud de información. | V65: Probabilidad | W65: Preventivo | X65: Manual | Y65: =IF(AND(W65="Preventivo",X65="Automático"),"50%",IF(AND(W65="Preventivo",X65="Manual"),"40%",IF(AND(W65="Detectivo",X65="Automático"),"40%",IF(AND(W65="Detectivo",X65="Manual"),"30%",IF(AND(W65="Correctivo",X65="Automático"),"35%",IF(AND(W65="Correctivo",X65="Manual"),"25%","")))))) -> 40% | Z65: Documentado | AA65: Continua | AB65: Con Registro | AC65: 0.24 | AD65: Baja | AE65: 0.24 | AF65: Mayor | AG65: 0.8 | AH65: Alto | AI65: Evitar | AN65: Profesional Especializado | AO65: Subdirección Administrativa y Financiera Grupo de Gestión Financiera y Contable | AP65: Pablo César Pacheco Rodríguez | AQ65: 2025-03-01 | AR65: 2025-12-31
A66: 60 | B66: GESTIÓN FINANCIERA | C66: Gestión | D66: =IF(C66="Fiscal",_xlfn.CONCAT("Posibilidad de efectos dañosos sobre bienes públicos "," por o para ",F66," debido a ",G66),IF(C66="Gestión",_xlfn.CONCAT("Posibilidad de afectacion ",E66," por ",F66," debido a ",G66),"")) -> Posibilidad de afectacion económico y reputacional por irregularidades o deficiencias en la gestión fiscal de la entidad y sanciones disciplinarias. debido a No fenecimiento de la cuenta por la inobservancia e inaplicabilidad de las dinámicas del Plan General de Contabilidad Publica o aplicación de manera parcial o errónea de las normas o instrucciones dadas por la CGN y otras entidades | E66: económico y reputacional | F66: irregularidades o deficiencias en la gestión fiscal de la entidad y sanciones disciplinarias. | G66: No fenecimiento de la cuenta por la inobservancia e inaplicabilidad de las dinámicas del Plan General de Contabilidad Publica o aplicación de manera parcial o errónea de las normas o instrucciones dadas por la CGN y otras entidades | H66: Ejecucion y Administracion de procesos | I66: 1 | J66: =IF(I66<=0,"",IF(I66<=2,"Muy Baja",IF(I66<=24,"Baja",IF(I66<=500,"Media",IF(I66<=5000,"Alta","Muy Alta"))))) -> Muy Baja | K66: =IF(J66="","",IF(J66="Muy Baja",0.2,IF(J66="Baja",0.4,IF(J66="Media",0.6,IF(J66="Alta",0.8,IF(J66="Muy Alta",1,)))))) -> 0.2 | L66: El riesgo afecta la imagen de la entidad a nivel nacional, con efecto publicitarios sostenible a nivel país | M66: =IF(NOT(ISERROR(MATCH(L66,'[5]Tabla Impacto'!#REF!,0))),'[5]Tabla Impacto'!$F$229&"Por favor no seleccionar los criterios de impacto(Afectación Económica o presupuestal y Pérdida Reputacional)",L66) -> El riesgo afecta la imagen de la entidad a nivel nacional, con efecto publicitarios sostenible a nivel país | N66: =IF(OR(M66='[5]Tabla Impacto'!$C$11,M66='[5]Tabla Impacto'!$D$11),"Leve",IF(OR(M66='[5]Tabla Impacto'!$C$12,M66='[5]Tabla Impacto'!$D$12),"Menor",IF(OR(M66='[5]Tabla Impacto'!$C$13,M66='[5]Tabla Impacto'!$D$13),"Moderado",IF(OR(M66='[5]Tabla Impacto'!$C$14,M66='[5]Tabla Impacto'!$D$14),"Mayor",IF(OR(M66='[5]Tabla Impacto'!$C$15,M66='[5]Tabla Impacto'!$D$15),"Catastrófico",""))))) -> Catastrófico | O66: =IF(N66="","",IF(N66="Leve",0.2,IF(N66="Menor",0.4,IF(N66="Moderado",0.6,IF(N66="Mayor",0.8,IF(N66="Catastrófico",1,)))))) -> 1 | P66: =IF(OR(AND(J66="Muy Baja",N66="Leve"),AND(J66="Muy Baja",N66="Menor"),AND(J66="Baja",N66="Leve")),"Bajo",IF(OR(AND(J66="Muy baja",N66="Moderado"),AND(J66="Baja",N66="Menor"),AND(J66="Baja",N66="Moderado"),AND(J66="Media",N66="Leve"),AND(J66="Media",N66="Menor"),AND(J66="Media",N66="Moderado"),AND(J66="Alta",N66="Leve"),AND(J66="Alta",N66="Menor")),"Moderado",IF(OR(AND(J66="Muy Baja",N66="Mayor"),AND(J66="Baja",N66="Mayor"),AND(J66="Media",N66="Mayor"),AND(J66="Alta",N66="Moderado"),AND(J66="Alta",N66="Mayor"),AND(J66="Muy Alta",N66="Leve"),AND(J66="Muy Alta",N66="Menor"),AND(J66="Muy Alta",N66="Moderado"),AND(J66="Muy Alta",N66="Mayor")),"Alto",IF(OR(AND(J66="Muy Baja",N66="Catastrófico"),AND(J66="Baja",N66="Catastrófico"),AND(J66="Media",N66="Catastrófico"),AND(J66="Alta",N66="Catastrófico"),AND(J66="Muy Alta",N66="Catastrófico")),"Extremo","")))) -> Extremo | Q66: 1 | R66: El Profesional Especializado del Grupo de Gestion Financiera y Contable que realiza el análisis de partidas inusuales y saldos negativos con periodicidad trimestral de las cuentas del Balance del MME , de acuerdo a la asignación establecida y con el fin de evitar registros que nos correspondan a las cuentas, en caso de encontrar inconsistencias se efectúa el comprobante de corrección correspondiente del ajuste. | S66: Profesional Especializado del Grupo de Gestion Financiera y Contable | T66: Analizar de manera trimestral las cuentas del Balance del MME, de acuerdo a la distribución establecida, con el fin de evitar registros que no correspondan a estas cuentas. En caso de encontrar inconsistencias se efectúa el comprobante de corrección correspondiente | U66: Cuentas analizadas detectando partidas inusuales y saldos negativos en las cuentas del balance General del MME | V66: =IF(OR(W66="Preventivo",W66="Detectivo"),"Probabilidad",IF(W66="Correctivo","Impacto","")) -> Probabilidad | W66: Preventivo | X66: Manual | Y66: 40% | Z66: Documentado | AA66: Continua | AB66: Con Registro | AC66: =IFERROR(IF(V66="Probabilidad",(K66-(+K66*Y66)),IF(V66="Impacto",K66,"")),"") -> 0.12 | AD66: =IFERROR(IF(AC66="","",IF(AC66<=0.2,"Muy Baja",IF(AC66<=0.4,"Baja",IF(AC66<=0.6,"Media",IF(AC66<=0.8,"Alta","Muy Alta"))))),"") -> Muy Baja | AE66: =+AC66 -> 0.12 | AF66: =IFERROR(IF(AG66="","",IF(AG66<=0.2,"Leve",IF(AG66<=0.4,"Menor",IF(AG66<=0.6,"Moderado",IF(AG66<=0.8,"Mayor","Catastrófico"))))),"") -> Catastrófico | AG66: =IFERROR(IF(V66="Impacto",(O66-(+O66*Y66)),IF(V66="Probabilidad",O66,"")),"") -> 1 | AH66: =IFERROR(IF(OR(AND(AD66="Muy Baja",AF66="Leve"),AND(AD66="Muy Baja",AF66="Menor"),AND(AD66="Baja",AF66="Leve")),"Bajo",IF(OR(AND(AD66="Muy baja",AF66="Moderado"),AND(AD66="Baja",AF66="Menor"),AND(AD66="Baja",AF66="Moderado"),AND(AD66="Media",AF66="Leve"),AND(AD66="Media",AF66="Menor"),AND(AD66="Media",AF66="Moderado"),AND(AD66="Alta",AF66="Leve"),AND(AD66="Alta",AF66="Menor")),"Moderado",IF(OR(AND(AD66="Muy Baja",AF66="Mayor"),AND(AD66="Baja",AF66="Mayor"),AND(AD66="Media",AF66="Mayor"),AND(AD66="Alta",AF66="Moderado"),AND(AD66="Alta",AF66="Mayor"),AND(AD66="Muy Alta",AF66="Leve"),AND(AD66="Muy Alta",AF66="Menor"),AND(AD66="Muy Alta",AF66="Moderado"),AND(AD66="Muy Alta",AF66="Mayor")),"Alto",IF(OR(AND(AD66="Muy Baja",AF66="Catastrófico"),AND(AD66="Baja",AF66="Catastrófico"),AND(AD66="Media",AF66="Catastrófico"),AND(AD66="Alta",AF66="Catastrófico"),AND(AD66="Muy Alta",AF66="Catastrófico")),"Extremo","")))),"") -> Extremo | AI66: Evitar | AN66: Profesional Especializado | AO66: Subdirección Administrativa y Financiera Grupo de Gestión Financiera y Contable | AP66: Pablo César Pacheco Rodríguez | AQ66: 2025-03-01 | AR66: 2025-12-31
A67: 61 | B67: GESTIÓN FINANCIERA | C67: Gestión | D67: Posibilidad de afectacion económico por reflejo erróneo de la situación económica y financiera en los Estados Financieros del MME debido a ausencia de validación de información contable con la que produce el Grupo de Jurisdicción Coactiva | E67: económico | F67: reflejo erróneo de la situación económica y financiera en los Estados Financieros del MME | G67: ausencia de validación de información contable con la que produce el Grupo de Jurisdicción Coactiva | H67: Ejecucion y Administracion de procesos | I67: 12 | J67: Baja | K67: 0.4 | L67: El riesgo afecta la imagen de la entidad a nivel nacional, con efecto publicitarios sostenible a nivel país | M67: =IF(NOT(ISERROR(MATCH(L67,'[5]Tabla Impacto'!#REF!,0))),'[5]Tabla Impacto'!$F$229&"Por favor no seleccionar los criterios de impacto(Afectación Económica o presupuestal y Pérdida Reputacional)",L67) -> El riesgo afecta la imagen de la entidad a nivel nacional, con efecto publicitarios sostenible a nivel país | N67: =IF(OR(M67='[5]Tabla Impacto'!$C$11,M67='[5]Tabla Impacto'!$D$11),"Leve",IF(OR(M67='[5]Tabla Impacto'!$C$12,M67='[5]Tabla Impacto'!$D$12),"Menor",IF(OR(M67='[5]Tabla Impacto'!$C$13,M67='[5]Tabla Impacto'!$D$13),"Moderado",IF(OR(M67='[5]Tabla Impacto'!$C$14,M67='[5]Tabla Impacto'!$D$14),"Mayor",IF(OR(M67='[5]Tabla Impacto'!$C$15,M67='[5]Tabla Impacto'!$D$15),"Catastrófico",""))))) -> Catastrófico | O67: 1 | P67: Extremo | Q67: 1 | R67: El Profesional Especializado del Grupo de Gestion Financiera y Contable verifica los saldos contables del balance en las cuentas por cobrar elaborando una hoja de Excel de la conciliación entre los saldos reportados por el Grupo de Cobro Coactivo, si existir diferencias se analizan las causas y se realizan los ajustes correspondientes del caso. | S67: Profesional Especializado del Grupo de Gestion Financiera y Contable | T67: El profesional especializado verifica los saldos contables del balance en las cuentas por cobrar y elabora hoja de Excel comparándolos contra los saldos reportados por el Grupo de Cobro Coactivo. En caso de existir diferencias se analizan las causas y se efectúan los ajustes correspondientes | U67: Conciliación efectuada entre las partes | V67: Probabilidad | W67: Preventivo | X67: Manual | Y67: =IF(AND(W67="Preventivo",X67="Automático"),"50%",IF(AND(W67="Preventivo",X67="Manual"),"40%",IF(AND(W67="Detectivo",X67="Automático"),"40%",IF(AND(W67="Detectivo",X67="Manual"),"30%",IF(AND(W67="Correctivo",X67="Automático"),"35%",IF(AND(W67="Correctivo",X67="Manual"),"25%","")))))) -> 40% | Z67: Documentado | AA67: Continua | AB67: Con Registro | AC67: 0.24 | AD67: Baja | AE67: 0.24 | AF67: Catastrófico | AG67: 1 | AH67: Extremo | AI67: Evitar | AN67: Profesional Especializado | AO67: Subdirección Administrativa y Financiera Grupo de Gestión Financiera y Contable | AP67: Pablo César Pacheco Rodríguez | AQ67: 2025-03-01 | AR67: 2025-12-31
A68: 62 | B68: GESTIÓN FINANCIERA | C68: Gestión | D68: =IF(C68="Fiscal",_xlfn.CONCAT("Posibilidad de efectos dañosos sobre bienes públicos "," por o para ",F68," debido a ",G68),IF(C68="Gestión",_xlfn.CONCAT("Posibilidad de afectacion ",E68," por ",F68," debido a ",G68),"")) -> Posibilidad de afectacion reputacional por inconsistencias o desviaciones significativas que no pueden justificarse con la información disponible de las cifras en los Estados Financieros del MME debido a desatender las reglas de eliminación emitidas por la Contaduría General de la Nación y falta de comunicación entre las entidades del sector. | E68: reputacional | F68: inconsistencias o desviaciones significativas que no pueden justificarse con la información disponible de las cifras en los Estados Financieros del MME | G68: desatender las reglas de eliminación emitidas por la Contaduría General de la Nación y falta de comunicación entre las entidades del sector. | H68: Ejecucion y Administracion de procesos | I68: 12 | J68: =IF(I68<=0,"",IF(I68<=2,"Muy Baja",IF(I68<=24,"Baja",IF(I68<=500,"Media",IF(I68<=5000,"Alta","Muy Alta"))))) -> Baja | K68: =IF(J68="","",IF(J68="Muy Baja",0.2,IF(J68="Baja",0.4,IF(J68="Media",0.6,IF(J68="Alta",0.8,IF(J68="Muy Alta",1,)))))) -> 0.4 | L68: El riesgo afecta la imagen de la entidad a nivel nacional, con efecto publicitarios sostenible a nivel país | M68: =IF(NOT(ISERROR(MATCH(L68,'[5]Tabla Impacto'!#REF!,0))),'[5]Tabla Impacto'!$F$229&"Por favor no seleccionar los criterios de impacto(Afectación Económica o presupuestal y Pérdida Reputacional)",L68) -> El riesgo afecta la imagen de la entidad a nivel nacional, con efecto publicitarios sostenible a nivel país | N68: =IF(OR(M68='[5]Tabla Impacto'!$C$11,M68='[5]Tabla Impacto'!$D$11),"Leve",IF(OR(M68='[5]Tabla Impacto'!$C$12,M68='[5]Tabla Impacto'!$D$12),"Menor",IF(OR(M68='[5]Tabla Impacto'!$C$13,M68='[5]Tabla Impacto'!$D$13),"Moderado",IF(OR(M68='[5]Tabla Impacto'!$C$14,M68='[5]Tabla Impacto'!$D$14),"Mayor",IF(OR(M68='[5]Tabla Impacto'!$C$15,M68='[5]Tabla Impacto'!$D$15),"Catastrófico",""))))) -> Catastrófico | O68: =IF(N68="","",IF(N68="Leve",0.2,IF(N68="Menor",0.4,IF(N68="Moderado",0.6,IF(N68="Mayor",0.8,IF(N68="Catastrófico",1,)))))) -> 1 | P68: =IF(OR(AND(J68="Muy Baja",N68="Leve"),AND(J68="Muy Baja",N68="Menor"),AND(J68="Baja",N68="Leve")),"Bajo",IF(OR(AND(J68="Muy baja",N68="Moderado"),AND(J68="Baja",N68="Menor"),AND(J68="Baja",N68="Moderado"),AND(J68="Media",N68="Leve"),AND(J68="Media",N68="Menor"),AND(J68="Media",N68="Moderado"),AND(J68="Alta",N68="Leve"),AND(J68="Alta",N68="Menor")),"Moderado",IF(OR(AND(J68="Muy Baja",N68="Mayor"),AND(J68="Baja",N68="Mayor"),AND(J68="Media",N68="Mayor"),AND(J68="Alta",N68="Moderado"),AND(J68="Alta",N68="Mayor"),AND(J68="Muy Alta",N68="Leve"),AND(J68="Muy Alta",N68="Menor"),AND(J68="Muy Alta",N68="Moderado"),AND(J68="Muy Alta",N68="Mayor")),"Alto",IF(OR(AND(J68="Muy Baja",N68="Catastrófico"),AND(J68="Baja",N68="Catastrófico"),AND(J68="Media",N68="Catastrófico"),AND(J68="Alta",N68="Catastrófico"),AND(J68="Muy Alta",N68="Catastrófico")),"Extremo","")))) -> Extremo | Q68: 1 | R68: El Profesional Especializado del Grupo de Gestion Financiera y Contable revisa el cruce de los saldos contables del Ministerio Vs los saldos reportados por las diferentes entidades, si se detectan diferencias se envían comunicaciones a las mismas solicitando aclaración y se efectúa los ajuste contables correspondientes. | S68: Profesional Especializado del Grupo de Gestion Financiera y Contable | T68: El profesional especializado encargado efectúa cruce de saldos contables del Ministerio Vs los saldos reportados por las diferentes entidades, en caso de encontrar diferencias se envían comunicaciones a las mismas solicitando aclaración de la diferencia y se efectúa ajuste contable si es requerido. | U68: Comunicaciones de aclaración enviadas | V68: =IF(OR(W68="Preventivo",W68="Detectivo"),"Probabilidad",IF(W68="Correctivo","Impacto","")) -> Probabilidad | W68: Preventivo | X68: Manual | Y68: 40% | Z68: Documentado | AA68: Continua | AB68: Con Registro | AC68: =IFERROR(IF(V68="Probabilidad",(K68-(+K68*Y68)),IF(V68="Impacto",K68,"")),"") -> 0.24 | AD68: =IFERROR(IF(AC68="","",IF(AC68<=0.2,"Muy Baja",IF(AC68<=0.4,"Baja",IF(AC68<=0.6,"Media",IF(AC68<=0.8,"Alta","Muy Alta"))))),"") -> Baja | AE68: =+AC68 -> 0.24 | AF68: =IFERROR(IF(AG68="","",IF(AG68<=0.2,"Leve",IF(AG68<=0.4,"Menor",IF(AG68<=0.6,"Moderado",IF(AG68<=0.8,"Mayor","Catastrófico"))))),"") -> Catastrófico | AG68: =IFERROR(IF(V68="Impacto",(O68-(+O68*Y68)),IF(V68="Probabilidad",O68,"")),"") -> 1 | AH68: =IFERROR(IF(OR(AND(AD68="Muy Baja",AF68="Leve"),AND(AD68="Muy Baja",AF68="Menor"),AND(AD68="Baja",AF68="Leve")),"Bajo",IF(OR(AND(AD68="Muy baja",AF68="Moderado"),AND(AD68="Baja",AF68="Menor"),AND(AD68="Baja",AF68="Moderado"),AND(AD68="Media",AF68="Leve"),AND(AD68="Media",AF68="Menor"),AND(AD68="Media",AF68="Moderado"),AND(AD68="Alta",AF68="Leve"),AND(AD68="Alta",AF68="Menor")),"Moderado",IF(OR(AND(AD68="Muy Baja",AF68="Mayor"),AND(AD68="Baja",AF68="Mayor"),AND(AD68="Media",AF68="Mayor"),AND(AD68="Alta",AF68="Moderado"),AND(AD68="Alta",AF68="Mayor"),AND(AD68="Muy Alta",AF68="Leve"),AND(AD68="Muy Alta",AF68="Menor"),AND(AD68="Muy Alta",AF68="Moderado"),AND(AD68="Muy Alta",AF68="Mayor")),"Alto",IF(OR(AND(AD68="Muy Baja",AF68="Catastrófico"),AND(AD68="Baja",AF68="Catastrófico"),AND(AD68="Media",AF68="Catastrófico"),AND(AD68="Alta",AF68="Catastrófico"),AND(AD68="Muy Alta",AF68="Catastrófico")),"Extremo","")))),"") -> Extremo | AI68: Evitar | AN68: Profesional Especializado | AO68: Subdirección Administrativa y Financiera Grupo de Gestión Financiera y Contable | AP68: Pablo César Pacheco Rodríguez | AQ68: 2025-03-01 | AR68: 2025-12-31
A69: 63 | B69: GESTIÓN FINANCIERA | C69: Gestión | D69: Posibilidad de afectacion reputacional por errores, diferencias o falta de claridad en la forma en que se han contabilizado los recursos que han sido entregados para administración debido a valores registrados en cuentas diferentes a la de los recursos entregados en administración | E69: reputacional | F69: errores, diferencias o falta de claridad en la forma en que se han contabilizado los recursos que han sido entregados para administración | G69: valores registrados en cuentas diferentes a la de los recursos entregados en administración | H69: Ejecucion y Administracion de procesos | I69: 12 | J69: Baja | K69: 0.4 | L69: El riesgo afecta la imagen de alguna área de la organización | M69: =IF(NOT(ISERROR(MATCH(L69,'[5]Tabla Impacto'!#REF!,0))),'[5]Tabla Impacto'!$F$229&"Por favor no seleccionar los criterios de impacto(Afectación Económica o presupuestal y Pérdida Reputacional)",L69) -> El riesgo afecta la imagen de alguna área de la organización | N69: =IF(OR(M69='[5]Tabla Impacto'!$C$11,M69='[5]Tabla Impacto'!$D$11),"Leve",IF(OR(M69='[5]Tabla Impacto'!$C$12,M69='[5]Tabla Impacto'!$D$12),"Menor",IF(OR(M69='[5]Tabla Impacto'!$C$13,M69='[5]Tabla Impacto'!$D$13),"Moderado",IF(OR(M69='[5]Tabla Impacto'!$C$14,M69='[5]Tabla Impacto'!$D$14),"Mayor",IF(OR(M69='[5]Tabla Impacto'!$C$15,M69='[5]Tabla Impacto'!$D$15),"Catastrófico",""))))) -> Leve | O69: 0.2 | P69: Bajo | Q69: 1 | R69: El Profesional Especializado del Grupo de Gestion Financiera y Contable que revisa y elabora la hoja de Excel de los valores registrados en cuentas diferentes a la de los recursos entregados en administración, revisa los valores dados a cada operador y compara con el valor total efectuado del convenio y verifica que las cifras del contrato coincidan con el total entregado de recursos en la cuenta contable. | S69: Profesional Especializado del Grupo de Gestion Financiera y Contable | T69: El profesional especializado encargado de elaborar lahoja de Excel de valores registrados en cuentas diferentes a la de los recursos entregados en administración, registra los valores dados a cada operador y compara con el total de convenio efectuado, para que las cifras del contrato coincidan con el total entregado de recursos en la cuenta contable que corresponde. | U69: Cuadro de control y hoja de soporte de liquidación del Neón | V69: Probabilidad | W69: Preventivo | X69: Manual | Y69: 40% | Z69: Documentado | AA69: Continua | AB69: Con Registro | AC69: 0.24 | AD69: Baja | AE69: 0.24 | AF69: Leve | AG69: 0.2 | AH69: Bajo | AI69: Evitar | AN69: Profesional Especializado | AO69: Subdirección Administrativa y Financiera Grupo de Gestión Financiera y Contable | AP69: Pablo César Pacheco Rodríguez | AQ69: 2025-03-01 | AR69: 2025-12-31
A70: 64 | B70: GESTIÓN FINANCIERA | C70: Gestión | D70: Posibilidad de afectacion reputacional por Sobrevaluación o subvaluación de las cifras presentadas en las cuentas de Propiedad Planta y Equipo. debido a Inconsistencias entre los saldos de almacén y los registros contables | E70: reputacional | F70: Sobrevaluación o subvaluación de las cifras presentadas en las cuentas de Propiedad Planta y Equipo. | G70: Inconsistencias entre los saldos de almacén y los registros contables | H70: Ejecucion y Administracion de procesos | I70: 12 | J70: Baja | K70: 0.4 | L70: El riesgo afecta la imagen de alguna área de la organización | M70: =IF(NOT(ISERROR(MATCH(L70,'[5]Tabla Impacto'!#REF!,0))),'[5]Tabla Impacto'!$F$229&"Por favor no seleccionar los criterios de impacto(Afectación Económica o presupuestal y Pérdida Reputacional)",L70) -> El riesgo afecta la imagen de alguna área de la organización | N70: =IF(OR(M70='[5]Tabla Impacto'!$C$11,M70='[5]Tabla Impacto'!$D$11),"Leve",IF(OR(M70='[5]Tabla Impacto'!$C$12,M70='[5]Tabla Impacto'!$D$12),"Menor",IF(OR(M70='[5]Tabla Impacto'!$C$13,M70='[5]Tabla Impacto'!$D$13),"Moderado",IF(OR(M70='[5]Tabla Impacto'!$C$14,M70='[5]Tabla Impacto'!$D$14),"Mayor",IF(OR(M70='[5]Tabla Impacto'!$C$15,M70='[5]Tabla Impacto'!$D$15),"Catastrófico",""))))) -> Leve | O70: 0.2 | P70: Bajo | Q70: 1 | R70: El Profesional Especializado del Grupo de Gestion Financiera y Contable revisa y compara el saldo anterior de las cuentas de Propiedad Planta y Equipo y concilia con el saldo final de las mismas para establecer el valor de los movimientos, esta información es conciliada con el reporte de movimientos que genera el Sistema Neón | S70: Profesional Especializado del Grupo de Gestion Financiera y Contable | T70: El profesional Especializado encargado, compara el saldo anterior de las cuentas de Propiedad Planta y Equipo contra el saldo final de las mismas para establecer el valor de los movimientos , esta información se compara con el reporte de movimientos emitido por el Neón | U70: Conciliación efectuada | V70: Probabilidad | W70: Preventivo | X70: Manual | Y70: 40% | Z70: Documentado | AA70: Continua | AB70: Con Registro | AC70: 0.24 | AD70: Baja | AE70: 0.24 | AF70: Leve | AG70: 0.2 | AH70: Bajo | AI70: Evitar | AN70: Profesional Especializado | AO70: Subdirección Administrativa y Financiera Grupo de Gestión Financiera y Contable | AP70: Pablo César Pacheco Rodríguez | AQ70: 2025-03-01 | AR70: 2025-12-31
A71: 65 | B71: GESTIÓN DE RECURSOS FÍSICOS | C71: Gestión | D71: Posibilidad de afectacion económico por ausencia del registro presupuestal que compromete los recursos para el pago de la comisión debido a radicación de comisiones fuera de los plazos establecidos | E71: económico | F71: ausencia del registro presupuestal que compromete los recursos para el pago de la comisión | G71: radicación de comisiones fuera de los plazos establecidos | H71: Ejecucion y Administracion de procesos | I71: 3569 | J71: Alta | K71: 0.8 | L71: El riesgo afecta la imagen de la entidad con algunos usuarios de relevancia frente al logro de los objetivos | M71: =IF(NOT(ISERROR(MATCH(L71,'[5]Tabla Impacto'!#REF!,0))),'[5]Tabla Impacto'!$F$229&"Por favor no seleccionar los criterios de impacto(Afectación Económica o presupuestal y Pérdida Reputacional)",L71) -> El riesgo afecta la imagen de la entidad con algunos usuarios de relevancia frente al logro de los objetivos | N71: =IF(OR(M71='[5]Tabla Impacto'!$C$11,M71='[5]Tabla Impacto'!$D$11),"Leve",IF(OR(M71='[5]Tabla Impacto'!$C$12,M71='[5]Tabla Impacto'!$D$12),"Menor",IF(OR(M71='[5]Tabla Impacto'!$C$13,M71='[5]Tabla Impacto'!$D$13),"Moderado",IF(OR(M71='[5]Tabla Impacto'!$C$14,M71='[5]Tabla Impacto'!$D$14),"Mayor",IF(OR(M71='[5]Tabla Impacto'!$C$15,M71='[5]Tabla Impacto'!$D$15),"Catastrófico",""))))) -> Moderado | O71: 0.6 | P71: Alto | Q71: 1 | R71: El grupo de comisiones y viaticos realiza seguimiento oportuno bimensual en reuniones PAE | S71: Profesional Especializado grado 13 | T71: 1. Diligenciamiento por las dependencias del formato de Planeación y Programación de comisiones que remitiran quincenalmente al grupo de comisiones. 2. Reuniones de seguimiento PAE bimensuales con las áreas. 3. En caso de encontrarse un porcentaje alto en las solicitudes de comisión extemporáneas se informará al jefe de la dependencia para que tome las medidas correctivas. | U71: 1. Formato de Programación y Planeación de comisiones. 2. Correos electrónicos con la presentación realizada en la reunión de seguimiento PAE con la ejecución del presupuesto de viáticos y tiquetes | V71: Probabilidad | W71: Detectivo | X71: Manual | Y71: 30% | Z71: Sin Documentar | AA71: Continua | AB71: Con Registro | AC71: 0.56 | AD71: Media | AE71: 0.56 | AF71: Moderado | AG71: 0.6 | AH71: Moderado | AI71: Evitar | AJ71: Legalizar el formato de Programación y Plenaación de solicitud de comisiones | AK71: Cooordinador - Profesional Especializado grado 13 | AL71: 2025-06-30 | AM71: 2025-06-30 | AN71: Cooordinador - Profesional Especializado grado 13 | AO71: Subdirección Administrativa y Financiera Grupo de comisión de servicios, viáticos y transporte | AP71: Pablo César Pacheco Rodríguez | AQ71: 2025-04-17 | AR71: 2025-12-31
A72: 66 | B72: GESTIÓN DE RECURSOS FÍSICOS | C72: Gestión | D72: =IF(C72="Fiscal",_xlfn.CONCAT("Posibilidad de efectos dañosos sobre bienes públicos "," por o para ",F72," debido a ",G72),IF(C72="Gestión",_xlfn.CONCAT("Posibilidad de afectacion ",E72," por ",F72," debido a ",G72),"")) -> Posibilidad de afectacion reputacional por retrasos en los tiempos de pago de las comisiones debido a trámite de legalizaciones por parte de comisionados fuera de los tiempos establecidos al interior del MME y falta autorización de PAC solicitado ante el Ministerio de Hacienda y Crédito Público | E72: reputacional | F72: retrasos en los tiempos de pago de las comisiones | G72: trámite de legalizaciones por parte de comisionados fuera de los tiempos establecidos al interior del MME y falta autorización de PAC solicitado ante el Ministerio de Hacienda y Crédito Público | H72: Ejecucion y Administracion de procesos | I72: 12 | J72: =IF(I72<=0,"",IF(I72<=2,"Muy Baja",IF(I72<=24,"Baja",IF(I72<=500,"Media",IF(I72<=5000,"Alta","Muy Alta"))))) -> Baja | K72: =IF(J72="","",IF(J72="Muy Baja",0.2,IF(J72="Baja",0.4,IF(J72="Media",0.6,IF(J72="Alta",0.8,IF(J72="Muy Alta",1,)))))) -> 0.4 | L72: El riesgo afecta la imagen de alguna área de la organización | M72: =IF(NOT(ISERROR(MATCH(L72,'[5]Tabla Impacto'!#REF!,0))),'[5]Tabla Impacto'!$F$229&"Por favor no seleccionar los criterios de impacto(Afectación Económica o presupuestal y Pérdida Reputacional)",L72) -> El riesgo afecta la imagen de alguna área de la organización | N72: =IF(OR(M72='[5]Tabla Impacto'!$C$11,M72='[5]Tabla Impacto'!$D$11),"Leve",IF(OR(M72='[5]Tabla Impacto'!$C$12,M72='[5]Tabla Impacto'!$D$12),"Menor",IF(OR(M72='[5]Tabla Impacto'!$C$13,M72='[5]Tabla Impacto'!$D$13),"Moderado",IF(OR(M72='[5]Tabla Impacto'!$C$14,M72='[5]Tabla Impacto'!$D$14),"Mayor",IF(OR(M72='[5]Tabla Impacto'!$C$15,M72='[5]Tabla Impacto'!$D$15),"Catastrófico",""))))) -> Leve | O72: =IF(N72="","",IF(N72="Leve",0.2,IF(N72="Menor",0.4,IF(N72="Moderado",0.6,IF(N72="Mayor",0.8,IF(N72="Catastrófico",1,)))))) -> 0.2 | P72: =IF(OR(AND(J72="Muy Baja",N72="Leve"),AND(J72="Muy Baja",N72="Menor"),AND(J72="Baja",N72="Leve")),"Bajo",IF(OR(AND(J72="Muy baja",N72="Moderado"),AND(J72="Baja",N72="Menor"),AND(J72="Baja",N72="Moderado"),AND(J72="Media",N72="Leve"),AND(J72="Media",N72="Menor"),AND(J72="Media",N72="Moderado"),AND(J72="Alta",N72="Leve"),AND(J72="Alta",N72="Menor")),"Moderado",IF(OR(AND(J72="Muy Baja",N72="Mayor"),AND(J72="Baja",N72="Mayor"),AND(J72="Media",N72="Mayor"),AND(J72="Alta",N72="Moderado"),AND(J72="Alta",N72="Mayor"),AND(J72="Muy Alta",N72="Leve"),AND(J72="Muy Alta",N72="Menor"),AND(J72="Muy Alta",N72="Moderado"),AND(J72="Muy Alta",N72="Mayor")),"Alto",IF(OR(AND(J72="Muy Baja",N72="Catastrófico"),AND(J72="Baja",N72="Catastrófico"),AND(J72="Media",N72="Catastrófico"),AND(J72="Alta",N72="Catastrófico"),AND(J72="Muy Alta",N72="Catastrófico")),"Extremo","")))) -> Bajo | Q72: 1 | R72: El Profesional del Grupo de Legalización y Facturación de Comisiones, Viáticos y Transporte, realiza seguimiento mensual a los saldos autorizados al PAC para proceder al trámite de pago de las legalizaciones, en caso de no encontrar suficiencia en saldo para legalizar procede a priorizar los pagos del periodo. Así mismo, notifica a los jefes de área y coordinadores el estado de las comisiones pendientes por legalizar a traves de un reporte de seguimiento al estado de trámite de las legalizaciones, mediante memorando y un reporte comparativo de seguimiento a la programación del PAC de saldo solicitado vs saldos ejecutados. | S72: Profesional del Grupo de Legalización y Facturación de Comisiones, Viáticos y Transporte | T72: realiza seguimiento mensual a los saldos autorizados al PAC para proceder al trámite de pago de las legalizaciones, en caso de no encontrar suficiencia en saldo para legalizar procede a priorizar los pagos del periodo. Así mismo, notifica a los jefes de área y coordinadores el estado de las comisiones pendientes por legalizar | U72: un reporte de seguimiento al estado de trámite de las legalizaciones, mediante memorando y un reporte comparativo de seguimiento a la programación del PAC de saldo solicitado vs saldos ejecutados. | V72: =IF(OR(W72="Preventivo",W72="Detectivo"),"Probabilidad",IF(W72="Correctivo","Impacto","")) -> Probabilidad | W72: Preventivo | X72: Manual | Y72: =IF(AND(W72="Preventivo",X72="Automático"),"50%",IF(AND(W72="Preventivo",X72="Manual"),"40%",IF(AND(W72="Detectivo",X72="Automático"),"40%",IF(AND(W72="Detectivo",X72="Manual"),"30%",IF(AND(W72="Correctivo",X72="Automático"),"35%",IF(AND(W72="Correctivo",X72="Manual"),"25%","")))))) -> 40% | Z72: Sin Documentar | AA72: Continua | AB72: Con Registro | AC72: =IFERROR(IF(V72="Probabilidad",(K72-(+K72*Y72)),IF(V72="Impacto",K72,"")),"") -> 0.24 | AD72: =IFERROR(IF(AC72="","",IF(AC72<=0.2,"Muy Baja",IF(AC72<=0.4,"Baja",IF(AC72<=0.6,"Media",IF(AC72<=0.8,"Alta","Muy Alta"))))),"") -> Baja | AE72: =+AC72 -> 0.24 | AF72: =IFERROR(IF(AG72="","",IF(AG72<=0.2,"Leve",IF(AG72<=0.4,"Menor",IF(AG72<=0.6,"Moderado",IF(AG72<=0.8,"Mayor","Catastrófico"))))),"") -> Leve | AG72: =IFERROR(IF(V72="Impacto",(O72-(+O72*Y72)),IF(V72="Probabilidad",O72,"")),"") -> 0.2 | AH72: =IFERROR(IF(OR(AND(AD72="Muy Baja",AF72="Leve"),AND(AD72="Muy Baja",AF72="Menor"),AND(AD72="Baja",AF72="Leve")),"Bajo",IF(OR(AND(AD72="Muy baja",AF72="Moderado"),AND(AD72="Baja",AF72="Menor"),AND(AD72="Baja",AF72="Moderado"),AND(AD72="Media",AF72="Leve"),AND(AD72="Media",AF72="Menor"),AND(AD72="Media",AF72="Moderado"),AND(AD72="Alta",AF72="Leve"),AND(AD72="Alta",AF72="Menor")),"Moderado",IF(OR(AND(AD72="Muy Baja",AF72="Mayor"),AND(AD72="Baja",AF72="Mayor"),AND(AD72="Media",AF72="Mayor"),AND(AD72="Alta",AF72="Moderado"),AND(AD72="Alta",AF72="Mayor"),AND(AD72="Muy Alta",AF72="Leve"),AND(AD72="Muy Alta",AF72="Menor"),AND(AD72="Muy Alta",AF72="Moderado"),AND(AD72="Muy Alta",AF72="Mayor")),"Alto",IF(OR(AND(AD72="Muy Baja",AF72="Catastrófico"),AND(AD72="Baja",AF72="Catastrófico"),AND(AD72="Media",AF72="Catastrófico"),AND(AD72="Alta",AF72="Catastrófico"),AND(AD72="Muy Alta",AF72="Catastrófico")),"Extremo","")))),"") -> Bajo | AI72: Evitar | AJ72: Realizar la actualización de los controles de tiempos de la legalización y saldos de PAC en el procedimiento | AK72: Profesional Grupo de Legalización y Facturación de Comisiones, Viáticos y Transporte | AL72: 2025-06-30 | AM72: 2025-06-30 | AN72: Profesional Grupo de Legalización y Facturación de Comisiones, Viáticos y Transporte | AO72: Subdirección Administrativa y Financiera Grupo de Legalización y Facturación de Comisiones, Viáticos y Transporte | AP72: Pablo César Pacheco Rodríguez | AQ72: 2025-03-01 | AR72: 2025-12-31 | AS72: En el 1er Trimestre de 2025, se pago el 71,13% de las cuentas que fueron rechazadas por inconsistencias en requisitos presentados en las cuentas. La ejecución de pagos para los meses de enero, febrero y marzo fue del 100%, 86.67% y 57.14% respectivamente, lo que evidencia que el Ministerio de Minas y Energía ha cumplido oportunamente con el pago de sus obligaciones. | AT72: NO | AV72: En el 2do Trimestre de 2025, se tuvo una ejecución de PAC del 37% que equivale a $338.240.144 millones con respecto a un PAC asignado de $1.390.000.000 millones. Para los meses de abril, mayo y junio, fueron del 82%, 27% y 38% por funcionamiento y por inversión fue del 76% para abril, 66% para mayo y 98% para junio. En consecuencia, durante el segundo trimestre no se ejecutó el PAC en su totalidad por el aumento de legalizaciones que no habian sido radicadas o que tenían alguna caulsa de devoluición sin subanadar del trismestre anterior por parte de los comisionados.
A73: 67 | B73: GESTIÓN DE RECURSOS FÍSICOS | C73: Gestión | D73: Posibilidad de afectacion económico y reputacional por perdida de recursos debido a ausencia o inconsistencias en el reporte de movimientos y saldos mensuales de gestión de activos que puede generarse por la no elaboración del control dual entre el proceso de gestión financiera y el proceso gestión de recursos físicos. | E73: económico y reputacional | F73: perdida de recursos | G73: ausencia o inconsistencias en el reporte de movimientos y saldos mensuales de gestión de activos que puede generarse por la no elaboración del control dual entre el proceso de gestión financiera y el proceso gestión de recursos físicos. | H73: Fraude Interno | I73: 12 | J73: Baja | K73: 0.4 | L73: El riesgo afecta la imagen de alguna área de la organización | M73: =IF(NOT(ISERROR(MATCH(L73,'[5]Tabla Impacto'!#REF!,0))),'[5]Tabla Impacto'!$F$229&"Por favor no seleccionar los criterios de impacto(Afectación Económica o presupuestal y Pérdida Reputacional)",L73) -> El riesgo afecta la imagen de alguna área de la organización | N73: =IF(OR(M73='[5]Tabla Impacto'!$C$11,M73='[5]Tabla Impacto'!$D$11),"Leve",IF(OR(M73='[5]Tabla Impacto'!$C$12,M73='[5]Tabla Impacto'!$D$12),"Menor",IF(OR(M73='[5]Tabla Impacto'!$C$13,M73='[5]Tabla Impacto'!$D$13),"Moderado",IF(OR(M73='[5]Tabla Impacto'!$C$14,M73='[5]Tabla Impacto'!$D$14),"Mayor",IF(OR(M73='[5]Tabla Impacto'!$C$15,M73='[5]Tabla Impacto'!$D$15),"Catastrófico",""))))) -> Leve | O73: 0.2 | P73: Bajo | Q73: 1 | R73: El profesional del grupo de gestión administrativa, realiza informe mensual de saldos y movimientos de almacén para garantizar un control dual entre el proceso de Gestión Financiera y el proceso Gestión de Recursos Físicos, si se encuentran desviaciones del control posterior a la elaboración del informe se realizarán los ajustes respectivos | S73: Profesional del Grupo de Gestión Administrativa | T73: Realizar informe mensual de saldos y movimientos de almacén para garantizar un control dual entre el proceso de Gestión Financiera y el proceso Gestión de Recursos Físicos, si se encuentran desviaciones del control posterior a la elaboración del informe se realizarán los ajustes respectivos | U73: Reporte al proceso de gestión financiera. Informe de saldos | V73: Probabilidad | W73: Detectivo | X73: Manual | Y73: 30% | Z73: Documentado | AA73: Continua | AB73: Con Registro | AC73: 0.28 | AD73: Baja | AE73: 0.28 | AF73: Leve | AG73: 0.2 | AH73: Bajo | AI73: Evitar | AN73: Profesional Grupo de Gestión Administrativa | AO73: Subdirección Administrativa y Financiera Grupo de Gestión Administrativa | AP73: Pablo César Pacheco Rodríguez | AQ73: 2025-01-01 | AR73: 2025-12-31
M74: =IF(NOT(ISERROR(MATCH(L74,'[5]Tabla Impacto'!#REF!,0))),'[5]Tabla Impacto'!$F$229&"Por favor no seleccionar los criterios de impacto(Afectación Económica o presupuestal y Pérdida Reputacional)",L74) -> 0 | N74: =IF(OR(M74='[5]Tabla Impacto'!$C$11,M74='[5]Tabla Impacto'!$D$11),"Leve",IF(OR(M74='[5]Tabla Impacto'!$C$12,M74='[5]Tabla Impacto'!$D$12),"Menor",IF(OR(M74='[5]Tabla Impacto'!$C$13,M74='[5]Tabla Impacto'!$D$13),"Moderado",IF(OR(M74='[5]Tabla Impacto'!$C$14,M74='[5]Tabla Impacto'!$D$14),"Mayor",IF(OR(M74='[5]Tabla Impacto'!$C$15,M74='[5]Tabla Impacto'!$D$15),"Catastrófico",""))))) ->  | Q74: 1
M75: =IF(NOT(ISERROR(MATCH(L75,'[5]Tabla Impacto'!#REF!,0))),'[5]Tabla Impacto'!$F$229&"Por favor no seleccionar los criterios de impacto(Afectación Económica o presupuestal y Pérdida Reputacional)",L75) -> 0 | N75: =IF(OR(M75='[5]Tabla Impacto'!$C$11,M75='[5]Tabla Impacto'!$D$11),"Leve",IF(OR(M75='[5]Tabla Impacto'!$C$12,M75='[5]Tabla Impacto'!$D$12),"Menor",IF(OR(M75='[5]Tabla Impacto'!$C$13,M75='[5]Tabla Impacto'!$D$13),"Moderado",IF(OR(M75='[5]Tabla Impacto'!$C$14,M75='[5]Tabla Impacto'!$D$14),"Mayor",IF(OR(M75='[5]Tabla Impacto'!$C$15,M75='[5]Tabla Impacto'!$D$15),"Catastrófico",""))))) ->  | Q75: 1 | Y75: =IF(AND(W75="Preventivo",X75="Automático"),"50%",IF(AND(W75="Preventivo",X75="Manual"),"40%",IF(AND(W75="Detectivo",X75="Automático"),"40%",IF(AND(W75="Detectivo",X75="Manual"),"30%",IF(AND(W75="Correctivo",X75="Automático"),"35%",IF(AND(W75="Correctivo",X75="Manual"),"25%","")))))) -> 

Sheet Matriz_Riesgos_Corrupción
C2: FORMATO PARA LA FORMULACIÓN Y TRATAMIENTOS DE RIESGOS
F3: E-ME-F-08
F4: 2025-12-30 | G4: V-3
A6: Proceso: | C6: TODOS LOS PROCESOS
A7: Identificación del riesgo | G7: Análisis del riesgo inherente | AG7: Evaluación del riesgo - Valoración de los controles | AS7: Evaluación del riesgo - Nivel del riesgo residual | AZ7: Tratamiento del Riesgo
A8: Referencia | B8: Proceso | C8: Descripción del Riesgo | D8: Causa Inmediata ¿Cómo se podria dar la corrupción? | E8: Clasificación del Riesgo | F8: Frecuencia con la cual se realiza la actividad anual | G8: Probabilidad Inherente | H8: % | I8: Si el Riesgo se materializará podria… | AB8: Suma Afirmaciones | AC8: Calificación Impacto | AD8: Impacto Inherente | AE8: % | AF8: Zona de Riesgo Inherente | AG8: No. Control | AL8: Afectación | AM8: Atributos | AS8: Probabilidad Residual | AT8: Probabilidad Residual Final | AU8: % | AV8: Impacto Residual Final | AW8: % | AX8: Zona de Riesgo Final | AY8: Tratamiento | AZ8: Plan de acción | BD8: Responsable de Tratamiento
I9: ¿Afectar al grupo de funcionarios del proceso? | J9: ¿Afectar el cumplimiento de metas y objetivos de la dependencia? | K9: ¿Afectar el cumplimiento de misión de la Entidad? | L9: ¿Afectar el cumplimiento de la misión del sector al que pertenece la Entidad? | M9: ¿Generar pérdida de confianza de la Entidad, afectando su reputación? | N9: ¿Generar pérdida de recursos económicos? | O9: ¿Afectar la generación de los productos o la prestación de servicios? | P9: ¿Dar lugar al detrimento de calidad de vida de la comunidad por la pérdida del bien o servicios o los recursos públicos? | Q9: ¿Generar pérdida de información de la Entidad? | R9: ¿Generar intervención de los órganos de control, de la Fiscalía, u otro ente? | S9: ¿Dar lugar a procesos sancionatorios? | T9: ¿Dar lugar a procesos disciplinarios? | U9: ¿Dar lugar a procesos fiscales? | V9: ¿Dar lugar a procesos penales? | W9: ¿Generar pérdida de credibilidad del sector? | X9: ¿Ocasionar lesiones físicas o pérdida de vidas humanas? | Y9: ¿Afectar la imagen regional? | Z9: ¿Afectar la imagen nacional? | AA9: ¿Generar daño ambiental? | AH9: Descripción del Control | AI9: Cargo del reponsable del control | AJ9: Acción que realiza | AK9: Evidencia esperada del control | AM9: Tipo | AN9: Implementación | AO9: Calificación | AP9: Documentación | AQ9: Frecuencia | AR9: Evidencia | AZ9: Acción a realizar | BA9: Cargo del Responsable | BB9: Fecha de implementación | BC9: Fecha de seguimiento | BD9: Cargo del responsable | BE9: Área del Responsable | BF9: Jefe del Área del Responsable | BG9: Fecha Implementación Inicio | BH9: Fecha de Implementación (Fin) | BI9: Reporte febrero | BJ9: ¿se materializó? Si/No | BK9: Seguimiento segunda línea de defensa | BL9: Reporte marzo | BM9: ¿se materializó? Si/No | BN9: Seguimiento segunda línea de defensa | BO9: Reporte abril | BP9: ¿se materializó? Si/No | BQ9: Seguimiento segunda línea de defensa | BR9: Reporte mayo | BS9: ¿se materializó? Si/No | BT9: Seguimiento segunda línea de defensa | BU9: Reporte junio | BV9: ¿se materializó? Si/No | BW9: Seguimiento segunda línea de defensa | BX9: Reporte julio | BY9: ¿se materializó? Si/No | BZ9: Seguimiento segunda línea de defensa | CA9: Reporte agosto | CB9: ¿se materializó? Si/No | CC9: Seguimiento segunda línea de defensa | CD9: Reporte septiembre | CE9: ¿se materializó? Si/No | CF9: Seguimiento segunda línea de defensa | CG9: Reporte octubre | CH9: ¿se materializó? Si/No | CI9: Seguimiento segunda línea de defensa | CJ9: Reporte noviembre | CK9: ¿se materializó? Si/No | CL9: Seguimiento segunda línea de defensa | CM9: Reporte diciembre | CN9: ¿se materializó? Si/No | CO9: Seguimiento segunda línea de defensa
A10: 1 | B10: GESTIÓN TALENTO HUMANO | C10: ="Posibilidad de recibir cualquier dádiva o beneficio a nombre propio o de terceros por "&D10 -> Posibilidad de recibir cualquier dádiva o beneficio a nombre propio o de terceros por revelar información reservada y/o clasificada de expedientes laborales a terceros no titulares | D10: revelar información reservada y/o clasificada de expedientes laborales a terceros no titulares | E10: Fraude Interno | F10: 1000 | G10: =IF(F10<=0,"",IF(F10<=2,"Muy Baja",IF(F10<=24,"Baja",IF(F10<=500,"Media",IF(F10<=5000,"Alta","Muy Alta"))))) -> Alta | H10: =IF(G10="","",IF(G10="Muy Baja",0.2,IF(G10="Baja",0.4,IF(G10="Media",0.6,IF(G10="Alta",0.8,IF(G10="Muy Alta",1,)))))) -> 0.8 | I10: si | J10: si | K10: no | L10: no | M10: si | N10: si | O10: no | P10: no | Q10: si | R10: si | S10: si | T10: si | U10: si | V10: si | W10: si | X10: no | Y10: si | Z10: no | AA10: no | AB10: =IF(X10="Si","19",COUNTIF(I10:AA10,"si")) -> 12 | AC10: =VALUE(IF(AB10<=5,5,IF(AND(AB10>5,AB10<=11),10,IF(AB10>11,20,0)))) -> 20 | AD10: =IF(AC10=5,"Moderado",IF(AC10=10,"Mayor",IF(AC10=20,"Catastrófico",0))) -> Catastrófico | AE10: =IF(AD10="","",IF(AD10="Leve",0.2,IF(AD10="Menor",0.4,IF(AD10="Moderado",0.6,IF(AD10="Mayor",0.8,IF(AD10="Catastrófico",1,)))))) -> 1 | AF10: =IF(OR(AND(G10="Muy Baja",AD10="Leve"),AND(G10="Muy Baja",AD10="Menor"),AND(G10="Baja",AD10="Leve")),"Bajo",IF(OR(AND(G10="Muy baja",AD10="Moderado"),AND(G10="Baja",AD10="Menor"),AND(G10="Baja",AD10="Moderado"),AND(G10="Media",AD10="Leve"),AND(G10="Media",AD10="Menor"),AND(G10="Media",AD10="Moderado"),AND(G10="Alta",AD10="Leve"),AND(G10="Alta",AD10="Menor")),"Moderado",IF(OR(AND(G10="Muy Baja",AD10="Mayor"),AND(G10="Baja",AD10="Mayor"),AND(G10="Media",AD10="Mayor"),AND(G10="Alta",AD10="Moderado"),AND(G10="Alta",AD10="Mayor"),AND(G10="Muy Alta",AD10="Leve"),AND(G10="Muy Alta",AD10="Menor"),AND(G10="Muy Alta",AD10="Moderado"),AND(G10="Muy Alta",AD10="Mayor")),"Alto",IF(OR(AND(G10="Muy Baja",AD10="Catastrófico"),AND(G10="Baja",AD10="Catastrófico"),AND(G10="Media",AD10="Catastrófico"),AND(G10="Alta",AD10="Catastrófico"),AND(G10="Muy Alta",AD10="Catastrófico")),"Extremo","")))) -> Extremo | AG10: 1 | AH10: El coordinador y profesional designado del Grupo de Pensiones y Entidades Liquidadas realiza la verificación de la solicitud de información con el fin de evitar la suplantación de identidad (esta verficación consiste en revisar que el requirimiento este firmado y con copia de la cédula de ciudadanía; cuando éste es realizado por el abogado debe adjuntar copia del poder y si es por la esposa o conyugue del beneficiario debe anexar copia del documento que permita identificar el parentesco); una vez la solicitud cumple con los requisitos se solicita anexar mayor información y se procede a entregar información requerida. Si la solicitud no cumple con los requerimientos se informa al peticionario | AI10: Coordinador y profesional designado del Grupo de Pensiones y Entidades Liquidadas | AJ10: Realizar la verificación de la solicitud con el fin de evitar suplantación de identidad | AK10: Formato control de documentos para retiro diligenciado y parte de los expedientes | AL10: =IF(OR(AM10="Preventivo",AM10="Detectivo"),"Probabilidad",IF(AM10="Correctivo","Impacto","")) -> Probabilidad | AM10: Detectivo | AN10: Manual | AO10: =IF(AND(AM10="Preventivo",AN10="Automático"),"50%",IF(AND(AM10="Preventivo",AN10="Manual"),"40%",IF(AND(AM10="Detectivo",AN10="Automático"),"40%",IF(AND(AM10="Detectivo",AN10="Manual"),"30%",IF(AND(AM10="Correctivo",AN10="Automático"),"35%",IF(AND(AM10="Correctivo",AN10="Manual"),"25%","")))))) -> 30% | AP10: Documentado | AQ10: Continua | AR10: Con Registro | AS10: =IFERROR(IF(AL10="Probabilidad",(H10-(+H10*AO10)),IF(AL10="Impacto",H10,"")),"") -> 0.56 | AT10: =IFERROR(IF(AS10="","",IF(AS10<=0.2,"Muy Baja",IF(AS10<=0.4,"Baja",IF(AS10<=0.6,"Media",IF(AS10<=0.8,"Alta","Muy Alta"))))),"") -> Media | AU10: =+AS10 -> 0.56 | AV10: =IFERROR(IF(AW10="","",IF(AW10<=0.2,"Leve",IF(AW10<=0.4,"Menor",IF(AW10<=0.6,"Moderado",IF(AW10<=0.8,"Mayor","Catastrófico"))))),"") -> Catastrófico | AW10: =IFERROR(IF(AL10="Impacto",(AE10-(+AE10*AO10)),IF(AL10="Probabilidad",AE10,"")),"") -> 1 | AX10: =IFERROR(IF(OR(AND(AT10="Muy Baja",AV10="Leve"),AND(AT10="Muy Baja",AV10="Menor"),AND(AT10="Baja",AV10="Leve")),"Bajo",IF(OR(AND(AT10="Muy baja",AV10="Moderado"),AND(AT10="Baja",AV10="Menor"),AND(AT10="Baja",AV10="Moderado"),AND(AT10="Media",AV10="Leve"),AND(AT10="Media",AV10="Menor"),AND(AT10="Media",AV10="Moderado"),AND(AT10="Alta",AV10="Leve"),AND(AT10="Alta",AV10="Menor")),"Moderado",IF(OR(AND(AT10="Muy Baja",AV10="Mayor"),AND(AT10="Baja",AV10="Mayor"),AND(AT10="Media",AV10="Mayor"),AND(AT10="Alta",AV10="Moderado"),AND(AT10="Alta",AV10="Mayor"),AND(AT10="Muy Alta",AV10="Leve"),AND(AT10="Muy Alta",AV10="Menor"),AND(AT10="Muy Alta",AV10="Moderado"),AND(AT10="Muy Alta",AV10="Mayor")),"Alto",IF(OR(AND(AT10="Muy Baja",AV10="Catastrófico"),AND(AT10="Baja",AV10="Catastrófico"),AND(AT10="Media",AV10="Catastrófico"),AND(AT10="Alta",AV10="Catastrófico"),AND(AT10="Muy Alta",AV10="Catastrófico")),"Extremo","")))),"") -> Extremo | AY10: Evitar | BD10: Ivonne Maritza Ruíz | BE10: Subdirección de Talento Humano | BF10: Subdirectora de Talento Humano | BG10: 2024-01-15 | BH10: 2024-12-31
A11: 2 | B11: GESTIÓN TECNOLÓGICA | C11: Posibilidad de recibir cualquier dádiva o beneficio a nombre propio o de terceros por Entrega de incentivos, regalos o favores personales a funcionarios para direccionar contratos de adquisición o desarrollo de software, comprometiendo la transparencia del proceso. | D11: Entrega de incentivos, regalos o favores personales a funcionarios para direccionar contratos de adquisición o desarrollo de software, comprometiendo la transparencia del proceso. | E11: Fraude Interno | F11: 4 | G11: =IF(F11<=0,"",IF(F11<=2,"Muy Baja",IF(F11<=24,"Baja",IF(F11<=500,"Media",IF(F11<=5000,"Alta","Muy Alta"))))) -> Baja | H11: =IF(G11="","",IF(G11="Muy Baja",0.2,IF(G11="Baja",0.4,IF(G11="Media",0.6,IF(G11="Alta",0.8,IF(G11="Muy Alta",1,)))))) -> 0.4 | I11: si | J11: si | K11: si | L11: no | M11: si | N11: si | O11: si | P11: no | Q11: no | R11: si | S11: si | T11: si | U11: si | V11: si | W11: si | X11: no | Y11: si | Z11: si | AA11: no | AB11: =IF(X11="Si","19",COUNTIF(I11:AA11,"si")) -> 13 | AC11: =VALUE(IF(AB11<=5,5,IF(AND(AB11>5,AB11<=11),10,IF(AB11>11,20,0)))) -> 20 | AD11: Catastrófico | AE11: =IF(AD11="","",IF(AD11="Leve",0.2,IF(AD11="Menor",0.4,IF(AD11="Moderado",0.6,IF(AD11="Mayor",0.8,IF(AD11="Catastrófico",1,)))))) -> 1 | AF11: =IF(OR(AND(G11="Muy Baja",AD11="Leve"),AND(G11="Muy Baja",AD11="Menor"),AND(G11="Baja",AD11="Leve")),"Bajo",IF(OR(AND(G11="Muy baja",AD11="Moderado"),AND(G11="Baja",AD11="Menor"),AND(G11="Baja",AD11="Moderado"),AND(G11="Media",AD11="Leve"),AND(G11="Media",AD11="Menor"),AND(G11="Media",AD11="Moderado"),AND(G11="Alta",AD11="Leve"),AND(G11="Alta",AD11="Menor")),"Moderado",IF(OR(AND(G11="Muy Baja",AD11="Mayor"),AND(G11="Baja",AD11="Mayor"),AND(G11="Media",AD11="Mayor"),AND(G11="Alta",AD11="Moderado"),AND(G11="Alta",AD11="Mayor"),AND(G11="Muy Alta",AD11="Leve"),AND(G11="Muy Alta",AD11="Menor"),AND(G11="Muy Alta",AD11="Moderado"),AND(G11="Muy Alta",AD11="Mayor")),"Alto",IF(OR(AND(G11="Muy Baja",AD11="Catastrófico"),AND(G11="Baja",AD11="Catastrófico"),AND(G11="Media",AD11="Catastrófico"),AND(G11="Alta",AD11="Catastrófico"),AND(G11="Muy Alta",AD11="Catastrófico")),"Extremo","")))) -> Extremo | AG11: 1 | AH11: El funcionario TIC, realiza un seguimiento a los desarrollos adquiridos o a las adquisiones registradas para verificar que estén acordes con las necesidades planetadas por la entidad | AI11: Funcionario TIC | AJ11: Identificar y realizar seguimiento a las necesidades de soluciones y desarrollos de software | AK11: informes consolidados de avances de desarrollo | AL11: =IF(OR(AM11="Preventivo",AM11="Detectivo"),"Probabilidad",IF(AM11="Correctivo","Impacto","")) -> Probabilidad | AM11: Preventivo | AN11: Manual | AO11: =IF(AND(AM11="Preventivo",AN11="Automático"),"50%",IF(AND(AM11="Preventivo",AN11="Manual"),"40%",IF(AND(AM11="Detectivo",AN11="Automático"),"40%",IF(AND(AM11="Detectivo",AN11="Manual"),"30%",IF(AND(AM11="Correctivo",AN11="Automático"),"35%",IF(AND(AM11="Correctivo",AN11="Manual"),"25%","")))))) -> 40% | AP11: Documentado | AQ11: Continua | AR11: Con Registro | AS11: =IFERROR(IF(AL11="Probabilidad",(H11-(+H11*AO11)),IF(AL11="Impacto",H11,"")),"") -> 0.24 | AT11: =IFERROR(IF(AS11="","",IF(AS11<=0.2,"Muy Baja",IF(AS11<=0.4,"Baja",IF(AS11<=0.6,"Media",IF(AS11<=0.8,"Alta","Muy Alta"))))),"") -> Baja | AU11: =+AS11 -> 0.24 | AV11: =IFERROR(IF(AW11="","",IF(AW11<=0.2,"Leve",IF(AW11<=0.4,"Menor",IF(AW11<=0.6,"Moderado",IF(AW11<=0.8,"Mayor","Catastrófico"))))),"") -> Catastrófico | AW11: =IFERROR(IF(AL11="Impacto",(AE11-(+AE11*AO11)),IF(AL11="Probabilidad",AE11,"")),"") -> 1 | AX11: =IFERROR(IF(OR(AND(AT11="Muy Baja",AV11="Leve"),AND(AT11="Muy Baja",AV11="Menor"),AND(AT11="Baja",AV11="Leve")),"Bajo",IF(OR(AND(AT11="Muy baja",AV11="Moderado"),AND(AT11="Baja",AV11="Menor"),AND(AT11="Baja",AV11="Moderado"),AND(AT11="Media",AV11="Leve"),AND(AT11="Media",AV11="Menor"),AND(AT11="Media",AV11="Moderado"),AND(AT11="Alta",AV11="Leve"),AND(AT11="Alta",AV11="Menor")),"Moderado",IF(OR(AND(AT11="Muy Baja",AV11="Mayor"),AND(AT11="Baja",AV11="Mayor"),AND(AT11="Media",AV11="Mayor"),AND(AT11="Alta",AV11="Moderado"),AND(AT11="Alta",AV11="Mayor"),AND(AT11="Muy Alta",AV11="Leve"),AND(AT11="Muy Alta",AV11="Menor"),AND(AT11="Muy Alta",AV11="Moderado"),AND(AT11="Muy Alta",AV11="Mayor")),"Alto",IF(OR(AND(AT11="Muy Baja",AV11="Catastrófico"),AND(AT11="Baja",AV11="Catastrófico"),AND(AT11="Media",AV11="Catastrófico"),AND(AT11="Alta",AV11="Catastrófico"),AND(AT11="Muy Alta",AV11="Catastrófico")),"Extremo","")))),"") -> Extremo | AY11: Evitar | BD11: Funcionario | BE11: Grupo de Tecnologías de la Información y las Comunicaciones TICS. | BF11: Andrés Alejandro Ayure- Coordinador Grupo TICS | BG11: 2025-02-21 | BH11: 2025-12-31
